Department,Entity,Date of Payment,Expense Type,Expense Area,Suppliers,Transaction Number,Amount
United Kingdom Atomic energy Authority,United Kingdom Atomic energy Authority,19/02/2014,MATERIALS & SPARES,FUSION,3D METAL-FORMING,5100299307,18182.65
United Kingdom Atomic energy Authority,United Kingdom Atomic energy Authority,17/02/2014,MATERIALS & SPARES,FUSION,A and J Non Ferrous LLP,5100299912,59.97
United Kingdom Atomic energy Authority,United Kingdom Atomic energy Authority,03/02/2014,PLANT SPARES,FUSION,A W CLARKE,5100299173,210
United Kingdom Atomic energy Authority,United Kingdom Atomic energy Authority,03/02/2014,PLANT SPARES,FUSION,A W CLARKE,5100299172,1234.5
United Kingdom Atomic energy Authority,United Kingdom Atomic energy Authority,17/02/2014,PLANT SPARES,FUSION,A W CLARKE,5100294682,4839
United Kingdom Atomic energy Authority,United Kingdom Atomic energy Authority,17/02/2014,PLANT SPARES,FUSION,A W CLARKE,5100295854,1923.6
United Kingdom Atomic energy Authority,United Kingdom Atomic energy Authority,17/02/2014,PLANT SPARES,FUSION,A W CLARKE,5100296855,-425
United Kingdom Atomic energy Authority,United Kingdom Atomic energy Authority,17/02/2014,PLANT SPARES,FUSION,A W CLARKE,5100296856,-4312.5
United Kingdom Atomic energy Authority,United Kingdom Atomic energy Authority,17/02/2014,PLANT SPARES,FUSION,A W CLARKE,5100298931,332
United Kingdom Atomic energy Authority,United Kingdom Atomic energy Authority,27/01/2014,PLANT SPARES,FUSION,A W CLARKE,5100298932,312
United Kingdom Atomic energy Authority,United Kingdom Atomic energy Authority,17/02/2014,PLANT SPARES,FUSION,A W CLARKE,5100299512,2125
United Kingdom Atomic energy Authority,United Kingdom Atomic energy Authority,05/02/2014,PLANT & EQUIPMENT,FUSION,AALCO LIMITED,5100299384,200
United Kingdom Atomic energy Authority,United Kingdom Atomic energy Authority,03/02/2014,PLANT & EQUIPMENT,FUSION,AALCO LIMITED,5100299350,152
United Kingdom Atomic energy Authority,United Kingdom Atomic energy Authority,27/01/2014,PLANT & EQUIPMENT,FUSION,AALCO LIMITED,5100298187,89.3
United Kingdom Atomic energy Authority,United Kingdom Atomic energy Authority,27/01/2014,PLANT & EQUIPMENT,FUSION,AALCO LIMITED,5100298674,-110
United Kingdom Atomic energy Authority,United Kingdom Atomic energy Authority,27/01/2014,PLANT & EQUIPMENT,FUSION,AALCO LIMITED,5100298761,89.3
United Kingdom Atomic energy Authority,United Kingdom Atomic energy Authority,27/01/2014,PLANT & EQUIPMENT,FUSION,AALCO LIMITED,5100298839,-738.9
United Kingdom Atomic energy Authority,United Kingdom Atomic energy Authority,27/01/2014,PLANT & EQUIPMENT,FUSION,AALCO LIMITED,5100298894,849
United Kingdom Atomic energy Authority,United Kingdom Atomic energy Authority,17/02/2014,PLANT & EQUIPMENT,FUSION,AALCO LIMITED,5100299999,210
United Kingdom Atomic energy Authority,United Kingdom Atomic energy Authority,10/02/2014,PLANT & EQUIPMENT,FUSION,AALCO LIMITED,5100299753,379.2
United Kingdom Atomic energy Authority,United Kingdom Atomic energy Authority,05/02/2014,PLANT & EQUIPMENT,FUSION,AALCO LIMITED,5100299349,338
United Kingdom Atomic energy Authority,United Kingdom Atomic energy Authority,27/01/2014,PLANT & EQUIPMENT,FUSION,AALCO LIMITED,5100298967,187.4
United Kingdom Atomic energy Authority,United Kingdom Atomic energy Authority,29/01/2014,PLANT & EQUIPMENT,FUSION,AALCO LIMITED,5100299123,167.81
United Kingdom Atomic energy Authority,United Kingdom Atomic energy Authority,05/02/2014,SOFTWARE,FUSION,ABB LTD,5100299456,1420
United Kingdom Atomic energy Authority,United Kingdom Atomic energy Authority,13/02/2014,CHARITABLE DONATIONS,SUPPORT SERVICES,Action Medical Research,1900059446, 200.00
United Kingdom Atomic energy Authority,United Kingdom Atomic energy Authority,19/02/2014,OTHER EXTERNAL COSTS,FUSION,Adrien Autricque,1900059478, 780.00
United Kingdom Atomic energy Authority,United Kingdom Atomic energy Authority,12/02/2014,SOFTWARE,FUSION,ADRIS LTD,5100299919,430
United Kingdom Atomic energy Authority,United Kingdom Atomic energy Authority,10/02/2014,PLANT SPARES,FUSION,Aerotech Ltd,5100299570,5714
United Kingdom Atomic energy Authority,United Kingdom Atomic energy Authority,29/01/2014,CONSUMABLES,FUSION,AGATE PRODUCTS LTD,5100298451,10607.5
United Kingdom Atomic energy Authority,United Kingdom Atomic energy Authority,12/02/2014,CONSUMABLES,FUSION,AGATE PRODUCTS LTD,5100299796,475
United Kingdom Atomic energy Authority,United Kingdom Atomic energy Authority,10/02/2014,GASES,FUSION,AIR PRODUCTS PLC,5100298968,8.36
United Kingdom Atomic energy Authority,United Kingdom Atomic energy Authority,27/01/2014,GASES,FUSION,AIR PRODUCTS PLC,5100298950,8.36
United Kingdom Atomic energy Authority,United Kingdom Atomic energy Authority,27/01/2014,GASES,FUSION,AIR PRODUCTS PLC,5100298951,8.36
United Kingdom Atomic energy Authority,United Kingdom Atomic energy Authority,17/02/2014,MATERIALS & SPARES,FUSION,ALLECTRA LTD,5100299875,177
United Kingdom Atomic energy Authority,United Kingdom Atomic energy Authority,10/02/2014,MATERIALS & SPARES,FUSION,ALLWELD SUPPLIES,5100299801,421.25
United Kingdom Atomic energy Authority,United Kingdom Atomic energy Authority,10/02/2014,MATERIALS & SPARES,FUSION,ALLWELD SUPPLIES,5100299803,209.9
United Kingdom Atomic energy Authority,United Kingdom Atomic energy Authority,10/02/2014,MATERIALS & SPARES,FUSION,ALLWELD SUPPLIES,5100299802,92.5
United Kingdom Atomic energy Authority,United Kingdom Atomic energy Authority,27/01/2014,MATERIALS & SPARES,FUSION,ALPHA ENGINEERING SUPPLIES,5100299025,263.5
United Kingdom Atomic energy Authority,United Kingdom Atomic energy Authority,27/01/2014,PLANT & EQUIPMENT,FUSION,ALPHA LABORATORIES,5100299070,179
United Kingdom Atomic energy Authority,United Kingdom Atomic energy Authority,10/02/2014,MATERIALS & SPARES,SUPPORT SERVICES,ALPHA PACKAGING,5100299632,266
United Kingdom Atomic energy Authority,United Kingdom Atomic energy Authority,17/02/2014,MATERIALS & SPARES,SUPPORT SERVICES,ALPHA PACKAGING,5100299848,124.92
United Kingdom Atomic energy Authority,United Kingdom Atomic energy Authority,03/02/2014,MATERIALS & SPARES,FUSION,ANDREW SKYES LTD,5100298444,937.2
United Kingdom Atomic energy Authority,United Kingdom Atomic energy Authority,03/02/2014,MATERIALS & SPARES,FUSION,ANDREW SKYES LTD,5100298823,65
United Kingdom Atomic energy Authority,United Kingdom Atomic energy Authority,03/02/2014,MATERIALS & SPARES,FUSION,ANDREW SKYES LTD,5100299378,-298.2
United Kingdom Atomic energy Authority,United Kingdom Atomic energy Authority,03/02/2014,MATERIALS & SPARES,FUSION,ANIXTER (UK) LTD,5100299366,646
United Kingdom Atomic energy Authority,United Kingdom Atomic energy Authority,27/01/2014,OPERATING LEASE,FUSION,ANNODATA BUSINESS COMMUNICATIONS,5100298924,2070
United Kingdom Atomic energy Authority,United Kingdom Atomic energy Authority,27/01/2014,OPERATING LEASE,FUSION,ANNODATA BUSINESS COMMUNICATIONS,5100298926,-376.7
United Kingdom Atomic energy Authority,United Kingdom Atomic energy Authority,27/01/2014,OPERATING LEASE,FUSION,ANNODATA BUSINESS COMMUNICATIONS,5100298928,12048.75
United Kingdom Atomic energy Authority,United Kingdom Atomic energy Authority,03/02/2014,OPERATING LEASE,FUSION,ANNODATA BUSINESS COMMUNICATIONS,5100299177,2778.3
United Kingdom Atomic energy Authority,United Kingdom Atomic energy Authority,03/02/2014,OPERATING LEASE,FUSION,ANNODATA BUSINESS COMMUNICATIONS,5100299178,2968.13
United Kingdom Atomic energy Authority,United Kingdom Atomic energy Authority,03/02/2014,OPERATING LEASE,FUSION,ANNODATA BUSINESS COMMUNICATIONS,5100299179,3392.79
United Kingdom Atomic energy Authority,United Kingdom Atomic energy Authority,03/02/2014,OPERATING LEASE,FUSION,ANNODATA BUSINESS COMMUNICATIONS,5100299180,10931.46
United Kingdom Atomic energy Authority,United Kingdom Atomic energy Authority,03/02/2014,OPERATING LEASE,FUSION,ANNODATA BUSINESS COMMUNICATIONS,5100299187,-20.79
United Kingdom Atomic energy Authority,United Kingdom Atomic energy Authority,03/02/2014,OPERATING LEASE,FUSION,ANNODATA BUSINESS COMMUNICATIONS,5100299189,-25.95
United Kingdom Atomic energy Authority,United Kingdom Atomic energy Authority,03/02/2014,OPERATING LEASE,FUSION,ANNODATA BUSINESS COMMUNICATIONS,5100299195,-197.22
United Kingdom Atomic energy Authority,United Kingdom Atomic energy Authority,13/02/2014,PLANT & EQUIPMENT,FUSION,Ansomat Ltd,1900059451," 7,077.00"
United Kingdom Atomic energy Authority,United Kingdom Atomic energy Authority,03/02/2014,PROFESSIONAL SERVICES,SUPPORT SERVICES,AON HEWITT LTD,5100299331,153682.51
United Kingdom Atomic energy Authority,United Kingdom Atomic energy Authority,10/02/2014,PROFESSIONAL SERVICES,SUPPORT SERVICES,AON HEWITT LTD,5100299525,153682.51
United Kingdom Atomic energy Authority,United Kingdom Atomic energy Authority,27/01/2014,SOFTWARE,FUSION,APPLIED CAE,5100298955,2030
United Kingdom Atomic energy Authority,United Kingdom Atomic energy Authority,17/02/2014,SOFTWARE,FUSION,APPLIED CAE,5100299878,5470
United Kingdom Atomic energy Authority,United Kingdom Atomic energy Authority,27/01/2014,PERSONAL PROTECTIVE EQUIPMENT,SUPPORT SERVICES,ARCO LTD,5100298913,34.11
United Kingdom Atomic energy Authority,United Kingdom Atomic energy Authority,03/02/2014,PERSONAL PROTECTIVE EQUIPMENT,SUPPORT SERVICES,ARCO LTD,5100299338,650
United Kingdom Atomic energy Authority,United Kingdom Atomic energy Authority,10/02/2014,PERSONAL PROTECTIVE EQUIPMENT,SUPPORT SERVICES,ARCO LTD,5100299574,31.19
United Kingdom Atomic energy Authority,United Kingdom Atomic energy Authority,19/02/2014,PERSONAL PROTECTIVE EQUIPMENT,SUPPORT SERVICES,ARCO LTD,5100299701,89.26
United Kingdom Atomic energy Authority,United Kingdom Atomic energy Authority,17/02/2014,PERSONAL PROTECTIVE EQUIPMENT,SUPPORT SERVICES,ARCO LTD,5100299909,133.37
United Kingdom Atomic energy Authority,United Kingdom Atomic energy Authority,17/02/2014,PERSONAL PROTECTIVE EQUIPMENT,FUSION,ARCO LTD,5100299934,73.04
United Kingdom Atomic energy Authority,United Kingdom Atomic energy Authority,03/02/2014,PERSONAL PROTECTIVE EQUIPMENT,FUSION,ARCO LTD,5100299297,37.72
United Kingdom Atomic energy Authority,United Kingdom Atomic energy Authority,03/02/2014,PERSONAL PROTECTIVE EQUIPMENT,FUSION,ARCO LTD,5100299337,99.18
United Kingdom Atomic energy Authority,United Kingdom Atomic energy Authority,27/01/2014,PERSONAL PROTECTIVE EQUIPMENT,FUSION,ARCO LTD,5100298911,15.7
United Kingdom Atomic energy Authority,United Kingdom Atomic energy Authority,27/01/2014,PERSONAL PROTECTIVE EQUIPMENT,FUSION,ARCO LTD,5100298945,146.41
United Kingdom Atomic energy Authority,United Kingdom Atomic energy Authority,17/02/2014,PERSONAL PROTECTIVE EQUIPMENT,FUSION,ARCO LTD,5100299931,32.44
United Kingdom Atomic energy Authority,United Kingdom Atomic energy Authority,27/01/2014,PERSONAL PROTECTIVE EQUIPMENT,FUSION,ARCO LTD,5100298896,1641
United Kingdom Atomic energy Authority,United Kingdom Atomic energy Authority,27/01/2014,PERSONAL PROTECTIVE EQUIPMENT,FUSION,ARCO LTD,5100298912,411.48
United Kingdom Atomic energy Authority,United Kingdom Atomic energy Authority,27/01/2014,PERSONAL PROTECTIVE EQUIPMENT,FUSION,ARCO LTD,5100298914,85.8
United Kingdom Atomic energy Authority,United Kingdom Atomic energy Authority,27/01/2014,PERSONAL PROTECTIVE EQUIPMENT,FUSION,ARCO LTD,5100298915,1307.2
United Kingdom Atomic energy Authority,United Kingdom Atomic energy Authority,27/01/2014,PERSONAL PROTECTIVE EQUIPMENT,FUSION,ARCO LTD,5100298944,29.1
United Kingdom Atomic energy Authority,United Kingdom Atomic energy Authority,03/02/2014,PERSONAL PROTECTIVE EQUIPMENT,FUSION,ARCO LTD,5100299256,912
United Kingdom Atomic energy Authority,United Kingdom Atomic energy Authority,03/02/2014,PERSONAL PROTECTIVE EQUIPMENT,FUSION,ARCO LTD,5100299257,441.56
United Kingdom Atomic energy Authority,United Kingdom Atomic energy Authority,05/02/2014,PERSONAL PROTECTIVE EQUIPMENT,FUSION,ARCO LTD,5100299335,516.78
United Kingdom Atomic energy Authority,United Kingdom Atomic energy Authority,05/02/2014,PERSONAL PROTECTIVE EQUIPMENT,FUSION,ARCO LTD,5100299336,124.08
United Kingdom Atomic energy Authority,United Kingdom Atomic energy Authority,10/02/2014,PERSONAL PROTECTIVE EQUIPMENT,FUSION,ARCO LTD,5100299539,188.27
United Kingdom Atomic energy Authority,United Kingdom Atomic energy Authority,10/02/2014,PERSONAL PROTECTIVE EQUIPMENT,FUSION,ARCO LTD,5100299548,165.44
United Kingdom Atomic energy Authority,United Kingdom Atomic energy Authority,10/02/2014,PERSONAL PROTECTIVE EQUIPMENT,FUSION,ARCO LTD,5100299698,1641
United Kingdom Atomic energy Authority,United Kingdom Atomic energy Authority,10/02/2014,PERSONAL PROTECTIVE EQUIPMENT,FUSION,ARCO LTD,5100299699,274.32
United Kingdom Atomic energy Authority,United Kingdom Atomic energy Authority,10/02/2014,PERSONAL PROTECTIVE EQUIPMENT,FUSION,ARCO LTD,5100299700,19.7
United Kingdom Atomic energy Authority,United Kingdom Atomic energy Authority,19/02/2014,PERSONAL PROTECTIVE EQUIPMENT,FUSION,ARCO LTD,5100299910,446
United Kingdom Atomic energy Authority,United Kingdom Atomic energy Authority,19/02/2014,PERSONAL PROTECTIVE EQUIPMENT,FUSION,ARCO LTD,5100299911,60.76
United Kingdom Atomic energy Authority,United Kingdom Atomic energy Authority,19/02/2014,PERSONAL PROTECTIVE EQUIPMENT,FUSION,ARCO LTD,5100299550,52.31
United Kingdom Atomic energy Authority,United Kingdom Atomic energy Authority,10/02/2014,PERSONAL PROTECTIVE EQUIPMENT,FUSION,ARCO LTD,5100299575,64.54
United Kingdom Atomic energy Authority,United Kingdom Atomic energy Authority,10/02/2014,PERSONAL PROTECTIVE EQUIPMENT,FUSION,ARCO LTD,5100299576,33.6
United Kingdom Atomic energy Authority,United Kingdom Atomic energy Authority,17/02/2014,PERSONAL PROTECTIVE EQUIPMENT,FUSION,ARCO LTD,5100299932,53.66
United Kingdom Atomic energy Authority,United Kingdom Atomic energy Authority,05/02/2014,PERSONAL PROTECTIVE EQUIPMENT,FUSION,ARCO LTD,5100299334,58.2
United Kingdom Atomic energy Authority,United Kingdom Atomic energy Authority,10/02/2014,STATIONERY,FUSION,ARTISAN LITHO PRINT  DESIGN,5100299507,89
United Kingdom Atomic energy Authority,United Kingdom Atomic energy Authority,21/02/2014,TRAINING COURSE FEES,SUPPORT SERVICES,Asbestos Training Ltd,1900059492, 950.00
United Kingdom Atomic energy Authority,United Kingdom Atomic energy Authority,21/02/2014,TRAINING COURSE FEES,SUPPORT SERVICES,Asbestos Training Ltd,1900059495, 950.00
United Kingdom Atomic energy Authority,United Kingdom Atomic energy Authority,21/02/2014,,,Asbestos Training Ltd,1700001688,"- 1,140.00"
United Kingdom Atomic energy Authority,United Kingdom Atomic energy Authority,05/02/2014,INSPECTION SERVICES,FUSION,ASHDALE ENGINEERING,5100299381,7640
United Kingdom Atomic energy Authority,United Kingdom Atomic energy Authority,10/02/2014,PLANT SPARES,FUSION,AURIGA EUROPE PLC,5100299536,160
United Kingdom Atomic energy Authority,United Kingdom Atomic energy Authority,27/01/2014,CATERING,FUSION,AVENANCE PLC,5100299030,687.39
United Kingdom Atomic energy Authority,United Kingdom Atomic energy Authority,27/01/2014,CATERING,FUSION,AVENANCE PLC,5100299032,1178.3
United Kingdom Atomic energy Authority,United Kingdom Atomic energy Authority,27/01/2014,CATERING,,AVENANCE PLC,5100298975,2010.12
United Kingdom Atomic energy Authority,United Kingdom Atomic energy Authority,27/01/2014,CATERING,PROPERTY,AVENANCE PLC,5100299031,746.66
United Kingdom Atomic energy Authority,United Kingdom Atomic energy Authority,27/01/2014,CATERING,PROPERTY,AVENANCE PLC,5100299033,8565.86
United Kingdom Atomic energy Authority,United Kingdom Atomic energy Authority,27/01/2014,CATERING,PROPERTY,AVENANCE PLC,5100299034,425
United Kingdom Atomic energy Authority,United Kingdom Atomic energy Authority,03/02/2014,CATERING,PROPERTY,AVENANCE PLC,5100299415,275.65
United Kingdom Atomic energy Authority,United Kingdom Atomic energy Authority,03/02/2014,PLANT SPARES,FUSION,AXTEC WEIGHT TECHNOLOGY ,5100298826,17083
United Kingdom Atomic energy Authority,United Kingdom Atomic energy Authority,27/01/2014,TREATED WATER,FUSION,B & V WATER TREATMENT,5100299124,3104.5
United Kingdom Atomic energy Authority,United Kingdom Atomic energy Authority,10/02/2014,TREATED WATER,FUSION,B & V WATER TREATMENT,5100299343,169.4
United Kingdom Atomic energy Authority,United Kingdom Atomic energy Authority,10/02/2014,TREATED WATER,FUSION,B & V WATER TREATMENT,5100299427,1234.88
United Kingdom Atomic energy Authority,United Kingdom Atomic energy Authority,10/02/2014,REPAIRS & MAINTENANCE,FUSION,BATT CABLES PLC,5100299755,2958.11
United Kingdom Atomic energy Authority,United Kingdom Atomic energy Authority,03/02/2014,COMPUTER REPAIRS,FUSION,BCAS LTD,5100299216,95.96
United Kingdom Atomic energy Authority,United Kingdom Atomic energy Authority,10/02/2014,COMPUTER REPAIRS,FUSION,BCAS LTD,5100299571,183.8
United Kingdom Atomic energy Authority,United Kingdom Atomic energy Authority,29/01/2014,PLANT SPARES,FUSION,Beacon Group International Ltd,5100299143,738.44
United Kingdom Atomic energy Authority,United Kingdom Atomic energy Authority,29/01/2014,PLANT SPARES,FUSION,Beacon Group International Ltd,5100299161,147.6
United Kingdom Atomic energy Authority,United Kingdom Atomic energy Authority,10/02/2014,PLANT SPARES,FUSION,Beacon Group International Ltd,5100299623,154.8
United Kingdom Atomic energy Authority,United Kingdom Atomic energy Authority,10/02/2014,REPAIRS & MAINTENANCE,FUSION,BEAVER 84 LIMITED,5100299712,565
United Kingdom Atomic energy Authority,United Kingdom Atomic energy Authority,10/02/2014,REPAIRS & MAINTENANCE,FUSION,BEAVER 84 LIMITED,5100299728,2373.5
United Kingdom Atomic energy Authority,United Kingdom Atomic energy Authority,27/01/2014,REPAIRS & MAINTENANCE,FUSION,BEAVER 84 LIMITED,5100298953,25
United Kingdom Atomic energy Authority,United Kingdom Atomic energy Authority,10/02/2014,REPAIRS & MAINTENANCE,FUSION,BEAVER 84 LIMITED,5100299730,1190.66
United Kingdom Atomic energy Authority,United Kingdom Atomic energy Authority,10/02/2014,REPAIRS & MAINTENANCE,FUSION,BEAVER 84 LIMITED,5100299733,72.28
United Kingdom Atomic energy Authority,United Kingdom Atomic energy Authority,12/02/2014,MATERIALS & SPARES,FUSION,BELMOUNT FABRICATIONS,5100299807,8707.07
United Kingdom Atomic energy Authority,United Kingdom Atomic energy Authority,12/02/2014,MATERIALS & SPARES,FUSION,BERYLLIANT INC,5100299713,1960.42
United Kingdom Atomic energy Authority,United Kingdom Atomic energy Authority,03/02/2014,CLEANING,FUSION,BIFFA RECYCLING,5100299394,527.85
United Kingdom Atomic energy Authority,United Kingdom Atomic energy Authority,03/02/2014,CLEANING,FUSION,BIFFA RECYCLING,5100299395,189.5
United Kingdom Atomic energy Authority,United Kingdom Atomic energy Authority,03/02/2014,CLEANING,FUSION,BIFFA RECYCLING,5100299396,545.5
United Kingdom Atomic energy Authority,United Kingdom Atomic energy Authority,03/02/2014,CLEANING,FUSION,BIFFA RECYCLING,5100299397,17.5
United Kingdom Atomic energy Authority,United Kingdom Atomic energy Authority,03/02/2014,CLEANING,FUSION,BIFFA RECYCLING,5100299399,17.5
United Kingdom Atomic energy Authority,United Kingdom Atomic energy Authority,03/02/2014,CLEANING,FUSION,BIFFA RECYCLING,5100299400,214.7
United Kingdom Atomic energy Authority,United Kingdom Atomic energy Authority,03/02/2014,CLEANING,FUSION,BIFFA RECYCLING,5100299401,951.77
United Kingdom Atomic energy Authority,United Kingdom Atomic energy Authority,03/02/2014,CLEANING,FUSION,BIFFA RECYCLING,5100299402,295
United Kingdom Atomic energy Authority,United Kingdom Atomic energy Authority,03/02/2014,CLEANING,FUSION,BIFFA RECYCLING,5100299403,268
United Kingdom Atomic energy Authority,United Kingdom Atomic energy Authority,03/02/2014,CLEANING,FUSION,BIFFA RECYCLING,5100299404,96.5
United Kingdom Atomic energy Authority,United Kingdom Atomic energy Authority,03/02/2014,CLEANING,FUSION,BIFFA RECYCLING,5100299405,291.6
United Kingdom Atomic energy Authority,United Kingdom Atomic energy Authority,03/02/2014,CLEANING,FUSION,BIFFA RECYCLING,5100299406,33.5
United Kingdom Atomic energy Authority,United Kingdom Atomic energy Authority,03/02/2014,CLEANING,FUSION,BIFFA RECYCLING,5100299407,17.5
United Kingdom Atomic energy Authority,United Kingdom Atomic energy Authority,03/02/2014,CLEANING,FUSION,BIFFA RECYCLING,5100299408,204
United Kingdom Atomic energy Authority,United Kingdom Atomic energy Authority,03/02/2014,CLEANING,FUSION,BIFFA RECYCLING,5100299409,-60.5
United Kingdom Atomic energy Authority,United Kingdom Atomic energy Authority,10/02/2014,CLEANING,FUSION,BIFFA RECYCLING,5100299633,269
United Kingdom Atomic energy Authority,United Kingdom Atomic energy Authority,10/02/2014,CLEANING,FUSION,BIFFA RECYCLING,5100299634,326
United Kingdom Atomic energy Authority,United Kingdom Atomic energy Authority,10/02/2014,CLEANING,FUSION,BIFFA RECYCLING,5100299635,9
United Kingdom Atomic energy Authority,United Kingdom Atomic energy Authority,10/02/2014,CLEANING,FUSION,BIFFA RECYCLING,5100299636,152.3
United Kingdom Atomic energy Authority,United Kingdom Atomic energy Authority,10/02/2014,CLEANING,FUSION,BIFFA RECYCLING,5100299637,96.5
United Kingdom Atomic energy Authority,United Kingdom Atomic energy Authority,10/02/2014,CLEANING,FUSION,BIFFA RECYCLING,5100299638,411.5
United Kingdom Atomic energy Authority,United Kingdom Atomic energy Authority,10/02/2014,CLEANING,FUSION,BIFFA RECYCLING,5100299639,645
United Kingdom Atomic energy Authority,United Kingdom Atomic energy Authority,10/02/2014,CLEANING,FUSION,BIFFA RECYCLING,5100299640,287.5
United Kingdom Atomic energy Authority,United Kingdom Atomic energy Authority,19/02/2014,LEGAL FEES,SUPPORT SERVICES,BIGGART BAILLIE,5100300232,682.5
United Kingdom Atomic energy Authority,United Kingdom Atomic energy Authority,27/01/2014,PLANT & EQUIPMENT,FUSION,BLACK BOX UK LTD,5100298946,3592
United Kingdom Atomic energy Authority,United Kingdom Atomic energy Authority,03/02/2014,PLANT & EQUIPMENT,FUSION,BLACK BOX UK LTD,5100299333,1536
United Kingdom Atomic energy Authority,United Kingdom Atomic energy Authority,27/01/2014,PLANT & EQUIPMENT,FUSION,BLACK BOX UK LTD,5100299068,139.96
United Kingdom Atomic energy Authority,United Kingdom Atomic energy Authority,05/02/2014,PROFESSIONAL SERVICES,FUSION,BNS NUCLEAR SERVICES,5100299433,71112.59
United Kingdom Atomic energy Authority,United Kingdom Atomic energy Authority,05/02/2014,PROFESSIONAL SERVICES,FUSION,BNS NUCLEAR SERVICES,5100299434,79512.6
United Kingdom Atomic energy Authority,United Kingdom Atomic energy Authority,03/02/2014,GASES,FUSION,BOC LTD,5100298682,181.96
United Kingdom Atomic energy Authority,United Kingdom Atomic energy Authority,03/02/2014,GASES,FUSION,BOC LTD,5100299207,59.88
United Kingdom Atomic energy Authority,United Kingdom Atomic energy Authority,03/02/2014,GASES,FUSION,BOC LTD,5100298652,451.69
United Kingdom Atomic energy Authority,United Kingdom Atomic energy Authority,10/02/2014,GASES,FUSION,BOC LTD,5100298218,3700.04
United Kingdom Atomic energy Authority,United Kingdom Atomic energy Authority,29/01/2014,GASES,FUSION,BOC LTD,5100298313,20004.3
United Kingdom Atomic energy Authority,United Kingdom Atomic energy Authority,29/01/2014,GASES,FUSION,BOC LTD,5100298669,27358.29
United Kingdom Atomic energy Authority,United Kingdom Atomic energy Authority,03/02/2014,GASES,FUSION,BOC LTD,5100295885,687.38
United Kingdom Atomic energy Authority,United Kingdom Atomic energy Authority,03/02/2014,GASES,FUSION,BOC LTD,5100299483,-687.38
United Kingdom Atomic energy Authority,United Kingdom Atomic energy Authority,10/02/2014,GASES,FUSION,BOC LTD,5100299484,687.38
United Kingdom Atomic energy Authority,United Kingdom Atomic energy Authority,03/02/2014,GASES,FUSION,BOC LTD,5100299205,44.59
United Kingdom Atomic energy Authority,United Kingdom Atomic energy Authority,03/02/2014,GASES,FUSION,BOC LTD,5100299209,15.6
United Kingdom Atomic energy Authority,United Kingdom Atomic energy Authority,29/01/2014,GASES,FUSION,BOC LTD,5100299258,-44.59
United Kingdom Atomic energy Authority,United Kingdom Atomic energy Authority,10/02/2014,GASES,FUSION,BOC LTD,5100299691,15.6
United Kingdom Atomic energy Authority,United Kingdom Atomic energy Authority,10/02/2014,GASES,FUSION,BOC LTD,5100299547,31.2
United Kingdom Atomic energy Authority,United Kingdom Atomic energy Authority,10/02/2014,PROFESSIONAL SERVICES,FUSION,BODYCOTE HEAT LTD,5100297952,2036.86
United Kingdom Atomic energy Authority,United Kingdom Atomic energy Authority,10/02/2014,PROFESSIONAL SERVICES,FUSION,BODYCOTE HEAT LTD,5100299023,991.5
United Kingdom Atomic energy Authority,United Kingdom Atomic energy Authority,10/02/2014,PROFESSIONAL SERVICES,FUSION,BODYCOTE HEAT LTD,5100299455,2273.88
United Kingdom Atomic energy Authority,United Kingdom Atomic energy Authority,12/02/2014,BOOKS & PUBLICATIONS,FUSION,BOOKS & PUBLICATIONS,1900059440, 20.00
United Kingdom Atomic energy Authority,United Kingdom Atomic energy Authority,27/01/2014,ARCHIVING & RECORDS,SUPPORT SERVICES,BOX-IT UK LTD,5100298771,1999.37
United Kingdom Atomic energy Authority,United Kingdom Atomic energy Authority,27/01/2014,TRAINING COURSE FEES,SUPPORT SERVICES,BPP LEARNING MEDIA LTD,5100299056,12.5
United Kingdom Atomic energy Authority,United Kingdom Atomic energy Authority,27/01/2014,TRAINING COURSE FEES,SUPPORT SERVICES,BPP LEARNING MEDIA LTD,5100299057,38
United Kingdom Atomic energy Authority,United Kingdom Atomic energy Authority,27/01/2014,MATERIALS & SPARES,FUSION,BRAMMER UK LTD,5100299067,53.4
United Kingdom Atomic energy Authority,United Kingdom Atomic energy Authority,10/02/2014,PLANT SPARES,FUSION,BRITE PRECISION,5100299573,10102.84
United Kingdom Atomic energy Authority,United Kingdom Atomic energy Authority,19/02/2014,UTILITIES/ELECTRICITY,PROPERTY,BRITISH GAS BUSINESS,5100300009,65.79
United Kingdom Atomic energy Authority,United Kingdom Atomic energy Authority,19/02/2014,UTILITIES/ELECTRICITY,PROPERTY,BRITISH GAS BUSINESS,5100300011,918.5
United Kingdom Atomic energy Authority,United Kingdom Atomic energy Authority,19/02/2014,UTILITIES/ELECTRICITY,PROPERTY,BRITISH GAS BUSINESS,5100300012,1716.46
United Kingdom Atomic energy Authority,United Kingdom Atomic energy Authority,19/02/2014,UTILITIES/ELECTRICITY,PROPERTY,BRITISH GAS BUSINESS,5100300014,321.95
United Kingdom Atomic energy Authority,United Kingdom Atomic energy Authority,19/02/2014,UTILITIES/ELECTRICITY,PROPERTY,BRITISH GAS BUSINESS,5100300017,432.11
United Kingdom Atomic energy Authority,United Kingdom Atomic energy Authority,19/02/2014,UTILITIES/ELECTRICITY,PROPERTY,BRITISH GAS BUSINESS,5100300019,192.64
United Kingdom Atomic energy Authority,United Kingdom Atomic energy Authority,19/02/2014,UTILITIES/ELECTRICITY,PROPERTY,BRITISH GAS BUSINESS,5100300021,89.35
United Kingdom Atomic energy Authority,United Kingdom Atomic energy Authority,19/02/2014,UTILITIES/ELECTRICITY,PROPERTY,BRITISH GAS BUSINESS,5100300022,48.32
United Kingdom Atomic energy Authority,United Kingdom Atomic energy Authority,19/02/2014,UTILITIES/ELECTRICITY,PROPERTY,BRITISH GAS BUSINESS,5100300272,-48.32
United Kingdom Atomic energy Authority,United Kingdom Atomic energy Authority,19/02/2014,UTILITIES/ELECTRICITY,PROPERTY,BRITISH GAS BUSINESS,5100300273,48.32
United Kingdom Atomic energy Authority,United Kingdom Atomic energy Authority,10/02/2014,REPAIRS & MAINTENANCE,FUSION,BSA MACHINE TOOLS LTD,5100299697,378.9
United Kingdom Atomic energy Authority,United Kingdom Atomic energy Authority,27/01/2014,MATERIALS & SPARES,FUSION,BSS OXFORD,5100299119,290.72
United Kingdom Atomic energy Authority,United Kingdom Atomic energy Authority,27/01/2014,MATERIALS & SPARES,FUSION,BSS OXFORD,5100299120,374.54
United Kingdom Atomic energy Authority,United Kingdom Atomic energy Authority,27/01/2014,MATERIALS & SPARES,FUSION,BSS OXFORD,5100299121,42.6
United Kingdom Atomic energy Authority,United Kingdom Atomic energy Authority,03/02/2014,MATERIALS & SPARES,FUSION,BSS OXFORD,5100299215,68.78
United Kingdom Atomic energy Authority,United Kingdom Atomic energy Authority,10/02/2014,MATERIALS & SPARES,FUSION,BSS OXFORD,5100299653,168
United Kingdom Atomic energy Authority,United Kingdom Atomic energy Authority,05/02/2014,MATERIALS & SPARES,FUSION,BSS OXFORD,5100297663,98.39
United Kingdom Atomic energy Authority,United Kingdom Atomic energy Authority,05/02/2014,MATERIALS & SPARES,FUSION,BSS OXFORD,5100299371,-23.66
United Kingdom Atomic energy Authority,United Kingdom Atomic energy Authority,10/02/2014,MATERIALS & SPARES,FUSION,BSS OXFORD,5100299675,463.62
United Kingdom Atomic energy Authority,United Kingdom Atomic energy Authority,10/02/2014,MATERIALS & SPARES,FUSION,BSS OXFORD,5100299676,257.91
United Kingdom Atomic energy Authority,United Kingdom Atomic energy Authority,29/01/2014,MATERIALS & SPARES,FUSION,BT Business Direct Ltd,5100298954,43.96
United Kingdom Atomic energy Authority,United Kingdom Atomic energy Authority,10/02/2014,MATERIALS & SPARES,FUSION,BUDGET FORKTRUCKS LTD,5100299354,390
United Kingdom Atomic energy Authority,United Kingdom Atomic energy Authority,05/02/2014,MATERIALS & SPARES,FUSION,BUDGET FORKTRUCKS LTD,5100299358,312
United Kingdom Atomic energy Authority,United Kingdom Atomic energy Authority,10/02/2014,MATERIALS & SPARES,FUSION,BUDGET FORKTRUCKS LTD,5100299355,268.67
United Kingdom Atomic energy Authority,United Kingdom Atomic energy Authority,10/02/2014,MATERIALS & SPARES,FUSION,BUDGET FORKTRUCKS LTD,5100299356,342.33
United Kingdom Atomic energy Authority,United Kingdom Atomic energy Authority,29/01/2014,MATERIALS & SPARES,FUSION,BUEHLER,5100298965,1247.3
United Kingdom Atomic energy Authority,United Kingdom Atomic energy Authority,03/02/2014,PLANT SPARES,FUSION,BURCKHARDT COMPRESSION UK LTD,5100299309,564.14
United Kingdom Atomic energy Authority,United Kingdom Atomic energy Authority,12/02/2014,CATERING SUPPLIES,SUPPORT SERVICES,BWT UK LTD,5100299812,982.1
United Kingdom Atomic energy Authority,United Kingdom Atomic energy Authority,12/02/2014,CATERING SUPPLIES,SUPPORT SERVICES,BWT UK LTD,5100299813,180
United Kingdom Atomic energy Authority,United Kingdom Atomic energy Authority,17/02/2014,PLANT & EQUIPMENT,FUSION,CALUMET,5100299920,16
United Kingdom Atomic energy Authority,United Kingdom Atomic energy Authority,17/02/2014,PLANT & EQUIPMENT,FUSION,CALUMET,5100299921,323.86
United Kingdom Atomic energy Authority,United Kingdom Atomic energy Authority,05/02/2014,CONSUMABLES,FUSION,CARILLON INDUSTRIAL SERVICES LTD,5100299460,94.36
United Kingdom Atomic energy Authority,United Kingdom Atomic energy Authority,05/02/2014,CONSUMABLES,FUSION,CARILLON INDUSTRIAL SERVICES LTD,5100299461,106.4
United Kingdom Atomic energy Authority,United Kingdom Atomic energy Authority,12/02/2014,MATERIALS & SPARES,FUSION,CBL ELECTRIC VEHICLES LTD,5100299805,90
United Kingdom Atomic energy Authority,United Kingdom Atomic energy Authority,28/01/2014,OTHER STAFF COSTS,FUSION,CBS Butler Ltd,1900059382," 5,223.00"
United Kingdom Atomic energy Authority,United Kingdom Atomic energy Authority,03/02/2014,CONSUMABLES,FUSION,CENTRAL METAL & ALLOYS LTD,5100299247,213
United Kingdom Atomic energy Authority,United Kingdom Atomic energy Authority,12/02/2014,CONSUMABLES,FUSION,CENTRAL METAL & ALLOYS LTD,5100299795,901.5
United Kingdom Atomic energy Authority,United Kingdom Atomic energy Authority,06/02/2014,OTHER EXTERNAL COSTS,SUPPORT SERVICES,CERN,1900059420," 1,655.36"
United Kingdom Atomic energy Authority,United Kingdom Atomic energy Authority,27/01/2014,MATERIALS & SPARES,FUSION,CHANNEL SAFETY SERVICES LTD,5100298976,600
United Kingdom Atomic energy Authority,United Kingdom Atomic energy Authority,21/02/2014,OTHER EXTERNAL COSTS,FUSION,Chase Resources Ltd,1900059490, 419.95
United Kingdom Atomic energy Authority,United Kingdom Atomic energy Authority,27/01/2014,MATERIALS: HAZARDOUS,FUSION,CHEMTECH WASTE MANAGEMENT,5100298663,4217.01
United Kingdom Atomic energy Authority,United Kingdom Atomic energy Authority,29/01/2014,IT EQUIPMENT NON CAPITAL,FUSION,CIEMAT,5100298329,24575.99
United Kingdom Atomic energy Authority,United Kingdom Atomic energy Authority,27/01/2014,MATERIALS & SPARES,FUSION,CITY ELECTRICAL FACTORS,5100299122,217.42
United Kingdom Atomic energy Authority,United Kingdom Atomic energy Authority,05/02/2014,LAUNDRY,FUSION,CLEAN LINEN SERVICES LTD,5100299360,64.72
United Kingdom Atomic energy Authority,United Kingdom Atomic energy Authority,10/02/2014,CATERING,PROPERTY,CLEANSING SERVICE GROUP LTD,5100299458,74.3
United Kingdom Atomic energy Authority,United Kingdom Atomic energy Authority,10/02/2014,CATERING,PROPERTY,CLEANSING SERVICE GROUP LTD,5100299459,54.6
United Kingdom Atomic energy Authority,United Kingdom Atomic energy Authority,12/02/2014,EFDA SECONDEE CONTRACT,FUSION,CNR CONSIGLIO NAZIONALE DELLE RICER,5100299564,15701.88
United Kingdom Atomic energy Authority,United Kingdom Atomic energy Authority,17/02/2014,DESIGN & CONSTRUCTION,FUSION,COBHAM TECHNICAL SERVICES,5100299879,1804
United Kingdom Atomic energy Authority,United Kingdom Atomic energy Authority,27/01/2014,UTILITIES/GAS,PROPERTY,COFELY LTD,5100299009,74070.65
United Kingdom Atomic energy Authority,United Kingdom Atomic energy Authority,27/01/2014,UTILITIES/GAS,PROPERTY,COFELY LTD,5100299011,4498.78
United Kingdom Atomic energy Authority,United Kingdom Atomic energy Authority,10/02/2014,UTILITIES/GAS,PROPERTY,COFELY LTD,5100299770,26582.5
United Kingdom Atomic energy Authority,United Kingdom Atomic energy Authority,10/02/2014,UTILITIES/GAS,PROPERTY,COFELY LTD,5100299771,20044.73
United Kingdom Atomic energy Authority,United Kingdom Atomic energy Authority,10/02/2014,STATIONERY,FUSION,COLOURCOM,5100299626,299
United Kingdom Atomic energy Authority,United Kingdom Atomic energy Authority,29/01/2014,EFDA SECONDEE CONTRACT,FUSION,COMMISSARIAT L ENERGIE ATOMIQUE CEA,5100298605,1571.66
United Kingdom Atomic energy Authority,United Kingdom Atomic energy Authority,17/02/2014,PLANT SPARES,FUSION,COMMUNICATIONS & POWER INDUSTRIES,5100299876,15000
United Kingdom Atomic energy Authority,United Kingdom Atomic energy Authority,03/02/2014,MATERIALS & SPARES,FUSION,COMPLETE PCB SERVICES LTD,5100299266,3648.14
United Kingdom Atomic energy Authority,United Kingdom Atomic energy Authority,10/02/2014,PLANT SPARES,FUSION,CONDEC INDUSTRIAL MAINTENANCE,5100299589,760
United Kingdom Atomic energy Authority,United Kingdom Atomic energy Authority,17/02/2014,PROFESSIONAL SERVICES,PROPERTY,CONNAUGHT COMPLIANCE SERVICES LTD,5100299947,912
United Kingdom Atomic energy Authority,United Kingdom Atomic energy Authority,17/02/2014,PROFESSIONAL SERVICES,PROPERTY,CONNAUGHT COMPLIANCE SERVICES LTD,5100299996,912
United Kingdom Atomic energy Authority,United Kingdom Atomic energy Authority,27/01/2014,MATERIALS & SPARES,FUSION,CPC PLC,5100299164,19.21
United Kingdom Atomic energy Authority,United Kingdom Atomic energy Authority,27/01/2014,MATERIALS & SPARES,FUSION,CPC PLC,5100299163,55.02
United Kingdom Atomic energy Authority,United Kingdom Atomic energy Authority,10/02/2014,MATERIALS & SPARES,FUSION,CPC PLC,5100299569,164.74
United Kingdom Atomic energy Authority,United Kingdom Atomic energy Authority,10/02/2014,MATERIALS & SPARES,FUSION,CPC PLC,5100299810,26.52
United Kingdom Atomic energy Authority,United Kingdom Atomic energy Authority,27/01/2014,MATERIALS & SPARES,FUSION,CPC PLC,5100299162,433.52
United Kingdom Atomic energy Authority,United Kingdom Atomic energy Authority,27/01/2014,MATERIALS & SPARES,FUSION,CPC PLC,5100298898,48.3
United Kingdom Atomic energy Authority,United Kingdom Atomic energy Authority,27/01/2014,REPAIRS & MAINTENANCE,FUSION,CRANE CARE LTD,5100299069,213.38
United Kingdom Atomic energy Authority,United Kingdom Atomic energy Authority,10/02/2014,UNIVERSITY PLACEMENT,FUSION,CRANFIELD UNIVERSITY,5100299620,3945
United Kingdom Atomic energy Authority,United Kingdom Atomic energy Authority,27/01/2014,MATERIALS & SPARES,FUSION,CROMWELL LTD,5100298776,69
United Kingdom Atomic energy Authority,United Kingdom Atomic energy Authority,27/01/2014,MATERIALS & SPARES,FUSION,CROMWELL LTD,5100299079,286.08
United Kingdom Atomic energy Authority,United Kingdom Atomic energy Authority,10/02/2014,MATERIALS & SPARES,FUSION,CROMWELL LTD,5100299678,84.75
United Kingdom Atomic energy Authority,United Kingdom Atomic energy Authority,10/02/2014,MATERIALS & SPARES,FUSION,CROMWELL LTD,5100299681,90.8
United Kingdom Atomic energy Authority,United Kingdom Atomic energy Authority,10/02/2014,MATERIALS & SPARES,FUSION,CROMWELL LTD,5100299683,113.02
United Kingdom Atomic energy Authority,United Kingdom Atomic energy Authority,17/02/2014,MATERIALS & SPARES,FUSION,CROMWELL LTD,5100299853,160.8
United Kingdom Atomic energy Authority,United Kingdom Atomic energy Authority,17/02/2014,MATERIALS & SPARES,FUSION,CROMWELL LTD,5100299854,71.98
United Kingdom Atomic energy Authority,United Kingdom Atomic energy Authority,17/02/2014,MATERIALS & SPARES,FUSION,CROMWELL LTD,5100299856,55.2
United Kingdom Atomic energy Authority,United Kingdom Atomic energy Authority,17/02/2014,MATERIALS & SPARES,FUSION,CROMWELL LTD,5100299857,8.39
United Kingdom Atomic energy Authority,United Kingdom Atomic energy Authority,17/02/2014,MATERIALS & SPARES,FUSION,CROMWELL LTD,5100299858,243.91
United Kingdom Atomic energy Authority,United Kingdom Atomic energy Authority,17/02/2014,MATERIALS & SPARES,FUSION,CROMWELL LTD,5100299859,68.61
United Kingdom Atomic energy Authority,United Kingdom Atomic energy Authority,27/01/2014,MATERIALS & SPARES,FUSION,CROMWELL LTD,5100299076,59.69
United Kingdom Atomic energy Authority,United Kingdom Atomic energy Authority,27/01/2014,MATERIALS & SPARES,FUSION,CROMWELL LTD,5100299077,28.77
United Kingdom Atomic energy Authority,United Kingdom Atomic energy Authority,27/01/2014,MATERIALS & SPARES,FUSION,CROMWELL LTD,5100299078,103.74
United Kingdom Atomic energy Authority,United Kingdom Atomic energy Authority,27/01/2014,MATERIALS & SPARES,FUSION,CROMWELL LTD,5100299080,56.09
United Kingdom Atomic energy Authority,United Kingdom Atomic energy Authority,10/02/2014,MATERIALS & SPARES,FUSION,CROMWELL LTD,5100299686,730.55
United Kingdom Atomic energy Authority,United Kingdom Atomic energy Authority,10/02/2014,MATERIALS & SPARES,FUSION,CROMWELL LTD,5100299688,41.8
United Kingdom Atomic energy Authority,United Kingdom Atomic energy Authority,17/02/2014,MATERIALS & SPARES,FUSION,CROMWELL LTD,5100299855,280.5
United Kingdom Atomic energy Authority,United Kingdom Atomic energy Authority,03/02/2014,MATERIALS & SPARES,FUSION,CROSSMAN ENGINEERING,5100299210,116
United Kingdom Atomic energy Authority,United Kingdom Atomic energy Authority,03/02/2014,MATERIALS & SPARES,FUSION,CROSSMAN ENGINEERING,5100299211,1170
United Kingdom Atomic energy Authority,United Kingdom Atomic energy Authority,27/01/2014,PROFESSIONAL SERVICES,SUPPORT SERVICES,CSC COMPUTER SERVICES,5100298977,13599.4
United Kingdom Atomic energy Authority,United Kingdom Atomic energy Authority,27/01/2014,PROFESSIONAL SERVICES,SUPPORT SERVICES,CSC COMPUTER SERVICES,5100298978,22769.97
United Kingdom Atomic energy Authority,United Kingdom Atomic energy Authority,27/01/2014,PROFESSIONAL SERVICES,SUPPORT SERVICES,CSC COMPUTER SERVICES,5100299165,3955.77
United Kingdom Atomic energy Authority,United Kingdom Atomic energy Authority,27/01/2014,PROFESSIONAL SERVICES,SUPPORT SERVICES,CSC COMPUTER SERVICES,5100298806,6922
United Kingdom Atomic energy Authority,United Kingdom Atomic energy Authority,27/01/2014,PROFESSIONAL SERVICES,SUPPORT SERVICES,CSC COMPUTER SERVICES,5100299132,-6922
United Kingdom Atomic energy Authority,United Kingdom Atomic energy Authority,03/02/2014,OTHER EXTERNAL COSTS,FUSION,Cunningham Covers Ltd,1900059400," 4,593.60"
United Kingdom Atomic energy Authority,United Kingdom Atomic energy Authority,27/01/2014,BUILDING REPAIRS,FUSION,D CLOUGH LTD,5100299046,2102.02
United Kingdom Atomic energy Authority,United Kingdom Atomic energy Authority,03/02/2014,BUILDING REPAIRS,FUSION,D CLOUGH LTD,5100299288,165
United Kingdom Atomic energy Authority,United Kingdom Atomic energy Authority,27/01/2014,IT EQUIPMENT NON CAPITAL,FUSION,DASSAULT SYSTEMES SIMULIA LTD,5100298893,22807.05
United Kingdom Atomic energy Authority,United Kingdom Atomic energy Authority,03/02/2014,PLANT & EQUIPMENT,FUSION,DAVIS INDUSTRIAL PLASTICS,5100299480,45.83
United Kingdom Atomic energy Authority,United Kingdom Atomic energy Authority,29/01/2014,SOFTWARE,FUSION,DELCAM UK LTD,5100298892,3666.66
United Kingdom Atomic energy Authority,United Kingdom Atomic energy Authority,05/02/2014,PLANT & EQUIPMENT,FUSION,DIRECTA (UK) LTD,5100299359,92.5
United Kingdom Atomic energy Authority,United Kingdom Atomic energy Authority,17/02/2014,PLANT & EQUIPMENT,FUSION,DIRECTA (UK) LTD,5100299844,92.5
United Kingdom Atomic energy Authority,United Kingdom Atomic energy Authority,27/01/2014,PROFESSIONAL SERVICES,SUPPORT SERVICES,DISCLOSURE SCOTLAND,5100299084,275
United Kingdom Atomic energy Authority,United Kingdom Atomic energy Authority,27/01/2014,MATERIALS & SPARES,FUSION,DURBIN METAL INDUSTRIES LTD,5100298947,115.07
United Kingdom Atomic energy Authority,United Kingdom Atomic energy Authority,27/01/2014,MATERIALS & SPARES,FUSION,DURBIN METAL INDUSTRIES LTD,5100298948,108.75
United Kingdom Atomic energy Authority,United Kingdom Atomic energy Authority,10/02/2014,MATERIALS & SPARES,FUSION,DURBIN METAL INDUSTRIES LTD,5100299760,31.75
United Kingdom Atomic energy Authority,United Kingdom Atomic energy Authority,27/01/2014,MATERIALS & SPARES,FUSION,DURBIN METAL INDUSTRIES LTD,5100298949,101.9
United Kingdom Atomic energy Authority,United Kingdom Atomic energy Authority,03/02/2014,MATERIALS & SPARES,FUSION,DURBIN METAL INDUSTRIES LTD,5100299251,64.47
United Kingdom Atomic energy Authority,United Kingdom Atomic energy Authority,03/02/2014,MATERIALS & SPARES,FUSION,DURBIN METAL INDUSTRIES LTD,5100299252,39.2
United Kingdom Atomic energy Authority,United Kingdom Atomic energy Authority,03/02/2014,MATERIALS & SPARES,FUSION,DURBIN METAL INDUSTRIES LTD,5100299253,318.4
United Kingdom Atomic energy Authority,United Kingdom Atomic energy Authority,03/02/2014,MATERIALS & SPARES,FUSION,DURBIN METAL INDUSTRIES LTD,5100299254,315.87
United Kingdom Atomic energy Authority,United Kingdom Atomic energy Authority,03/02/2014,MATERIALS & SPARES,FUSION,DURBIN METAL INDUSTRIES LTD,5100299255,254
United Kingdom Atomic energy Authority,United Kingdom Atomic energy Authority,03/02/2014,MATERIALS & SPARES,FUSION,DURBIN METAL INDUSTRIES LTD,5100299261,73
United Kingdom Atomic energy Authority,United Kingdom Atomic energy Authority,10/02/2014,MATERIALS & SPARES,FUSION,DURBIN METAL INDUSTRIES LTD,5100299756,120
United Kingdom Atomic energy Authority,United Kingdom Atomic energy Authority,10/02/2014,MATERIALS & SPARES,FUSION,DURBIN METAL INDUSTRIES LTD,5100299757,214.76
United Kingdom Atomic energy Authority,United Kingdom Atomic energy Authority,10/02/2014,MATERIALS & SPARES,FUSION,DURBIN METAL INDUSTRIES LTD,5100299758,12.5
United Kingdom Atomic energy Authority,United Kingdom Atomic energy Authority,12/02/2014,MATERIALS & SPARES,FUSION,DURBIN METAL INDUSTRIES LTD,5100299761,143.4
United Kingdom Atomic energy Authority,United Kingdom Atomic energy Authority,12/02/2014,MATERIALS & SPARES,FUSION,DURBIN METAL INDUSTRIES LTD,5100299762,123.45
United Kingdom Atomic energy Authority,United Kingdom Atomic energy Authority,12/02/2014,MATERIALS & SPARES,FUSION,DURBIN METAL INDUSTRIES LTD,5100299763,90.05
United Kingdom Atomic energy Authority,United Kingdom Atomic energy Authority,10/02/2014,MATERIALS & SPARES,FUSION,DURBIN METAL INDUSTRIES LTD,5100299764,68.35
United Kingdom Atomic energy Authority,United Kingdom Atomic energy Authority,10/02/2014,MATERIALS & SPARES,FUSION,DURBIN METAL INDUSTRIES LTD,5100299765,14.9
United Kingdom Atomic energy Authority,United Kingdom Atomic energy Authority,10/02/2014,MATERIALS & SPARES,FUSION,DURBIN METAL INDUSTRIES LTD,5100299766,37.8
United Kingdom Atomic energy Authority,United Kingdom Atomic energy Authority,12/02/2014,MATERIALS & SPARES,FUSION,DURBIN METAL INDUSTRIES LTD,5100299767,24.45
United Kingdom Atomic energy Authority,United Kingdom Atomic energy Authority,10/02/2014,MATERIALS & SPARES,FUSION,DURBIN METAL INDUSTRIES LTD,5100299768,41.7
United Kingdom Atomic energy Authority,United Kingdom Atomic energy Authority,17/02/2014,MATERIALS & SPARES,FUSION,DURBIN METAL INDUSTRIES LTD,5100299890,195
United Kingdom Atomic energy Authority,United Kingdom Atomic energy Authority,14/02/2014,OTHER EXTERNAL COSTS,SUPPORT SERVICES,DWF LLP,1900059469," 25,741.05"
United Kingdom Atomic energy Authority,United Kingdom Atomic energy Authority,05/02/2014,MATERIALS & SPARES,FUSION,Dwyer Instruments Ltd,5100299609,359
United Kingdom Atomic energy Authority,United Kingdom Atomic energy Authority,29/01/2014,MATERIALS & SPARES,FUSION,DynAmp LLC,5100299129,33438.68
United Kingdom Atomic energy Authority,United Kingdom Atomic energy Authority,10/02/2014,UTILITIES/ELECTRICITY,FUSION,EDF ENERGY,5100299594,39710.15
United Kingdom Atomic energy Authority,United Kingdom Atomic energy Authority,10/02/2014,UTILITIES/ELECTRICITY,FUSION,EDF ENERGY,5100299658,262139.88
United Kingdom Atomic energy Authority,United Kingdom Atomic energy Authority,27/01/2014,UTILITIES/ELECTRICITY,PROPERTY,EDF ENERGY,5100299041,1899.11
United Kingdom Atomic energy Authority,United Kingdom Atomic energy Authority,27/01/2014,UTILITIES/ELECTRICITY,PROPERTY,EDF ENERGY,5100299042,1899.11
United Kingdom Atomic energy Authority,United Kingdom Atomic energy Authority,27/01/2014,UTILITIES/ELECTRICITY,PROPERTY,EDF ENERGY,5100299128,0.96
United Kingdom Atomic energy Authority,United Kingdom Atomic energy Authority,10/02/2014,UTILITIES/ELECTRICITY,PROPERTY,EDF ENERGY,5100299590,3604.69
United Kingdom Atomic energy Authority,United Kingdom Atomic energy Authority,10/02/2014,UTILITIES/ELECTRICITY,PROPERTY,EDF ENERGY,5100299591,1899.11
United Kingdom Atomic energy Authority,United Kingdom Atomic energy Authority,10/02/2014,UTILITIES/ELECTRICITY,PROPERTY,EDF ENERGY,5100299592,783.57
United Kingdom Atomic energy Authority,United Kingdom Atomic energy Authority,10/02/2014,UTILITIES/ELECTRICITY,PROPERTY,EDF ENERGY,5100299598,569.32
United Kingdom Atomic energy Authority,United Kingdom Atomic energy Authority,10/02/2014,UTILITIES/ELECTRICITY,PROPERTY,EDF ENERGY,5100299599,1560.62
United Kingdom Atomic energy Authority,United Kingdom Atomic energy Authority,10/02/2014,UTILITIES/ELECTRICITY,PROPERTY,EDF ENERGY,5100299662,24074.66
United Kingdom Atomic energy Authority,United Kingdom Atomic energy Authority,10/02/2014,UTILITIES/ELECTRICITY,PROPERTY,EDF ENERGY,5100299664,41486.39
United Kingdom Atomic energy Authority,United Kingdom Atomic energy Authority,10/02/2014,UTILITIES/ELECTRICITY,PROPERTY,EDF ENERGY,5100299665,23660.14
United Kingdom Atomic energy Authority,United Kingdom Atomic energy Authority,10/02/2014,PROFESSIONAL SERVICES,FUSION,EDM PRECISION TECHNOLOGIES,5100299565,350
United Kingdom Atomic energy Authority,United Kingdom Atomic energy Authority,03/02/2014,PLANT & EQUIPMENT,FUSION,EDMUNDSON ELECTRICALS LTD,5100298545,846
United Kingdom Atomic energy Authority,United Kingdom Atomic energy Authority,27/01/2014,PLANT & EQUIPMENT,FUSION,EDMUNDSON ELECTRICALS LTD,5100298971,163.94
United Kingdom Atomic energy Authority,United Kingdom Atomic energy Authority,05/02/2014,PLANT & EQUIPMENT,FUSION,EDMUNDSON ELECTRICALS LTD,5100299346,185.5
United Kingdom Atomic energy Authority,United Kingdom Atomic energy Authority,27/01/2014,PLANT & EQUIPMENT,FUSION,EDMUNDSON ELECTRICALS LTD,5100298969,283.53
United Kingdom Atomic energy Authority,United Kingdom Atomic energy Authority,27/01/2014,PLANT & EQUIPMENT,FUSION,EDMUNDSON ELECTRICALS LTD,5100298970,430.64
United Kingdom Atomic energy Authority,United Kingdom Atomic energy Authority,27/01/2014,PLANT & EQUIPMENT,FUSION,EDMUNDSON ELECTRICALS LTD,5100298974,237.93
United Kingdom Atomic energy Authority,United Kingdom Atomic energy Authority,27/01/2014,PLANT & EQUIPMENT,FUSION,EDMUNDSON ELECTRICALS LTD,5100299027,214.35
United Kingdom Atomic energy Authority,United Kingdom Atomic energy Authority,27/01/2014,PLANT & EQUIPMENT,FUSION,EDMUNDSON ELECTRICALS LTD,5100299028,255.34
United Kingdom Atomic energy Authority,United Kingdom Atomic energy Authority,27/01/2014,PLANT & EQUIPMENT,FUSION,EDMUNDSON ELECTRICALS LTD,5100299029,1324.36
United Kingdom Atomic energy Authority,United Kingdom Atomic energy Authority,27/01/2014,PLANT & EQUIPMENT,FUSION,EDMUNDSON ELECTRICALS LTD,5100299059,252
United Kingdom Atomic energy Authority,United Kingdom Atomic energy Authority,27/01/2014,PLANT & EQUIPMENT,FUSION,EDMUNDSON ELECTRICALS LTD,5100299063,531.21
United Kingdom Atomic energy Authority,United Kingdom Atomic energy Authority,27/01/2014,PLANT & EQUIPMENT,FUSION,EDMUNDSON ELECTRICALS LTD,5100299064,67.79
United Kingdom Atomic energy Authority,United Kingdom Atomic energy Authority,27/01/2014,PLANT & EQUIPMENT,FUSION,EDMUNDSON ELECTRICALS LTD,5100299160,609.75
United Kingdom Atomic energy Authority,United Kingdom Atomic energy Authority,05/02/2014,PLANT & EQUIPMENT,FUSION,EDMUNDSON ELECTRICALS LTD,5100299345,1498.37
United Kingdom Atomic energy Authority,United Kingdom Atomic energy Authority,05/02/2014,PLANT & EQUIPMENT,FUSION,EDMUNDSON ELECTRICALS LTD,5100299347,750.17
United Kingdom Atomic energy Authority,United Kingdom Atomic energy Authority,05/02/2014,PLANT & EQUIPMENT,FUSION,EDMUNDSON ELECTRICALS LTD,5100299348,176.79
United Kingdom Atomic energy Authority,United Kingdom Atomic energy Authority,05/02/2014,PLANT & EQUIPMENT,FUSION,EDMUNDSON ELECTRICALS LTD,5100299471,992.6
United Kingdom Atomic energy Authority,United Kingdom Atomic energy Authority,05/02/2014,PLANT & EQUIPMENT,FUSION,EDMUNDSON ELECTRICALS LTD,5100299474,43.06
United Kingdom Atomic energy Authority,United Kingdom Atomic energy Authority,10/02/2014,PLANT & EQUIPMENT,FUSION,EDMUNDSON ELECTRICALS LTD,5100299561,82.05
United Kingdom Atomic energy Authority,United Kingdom Atomic energy Authority,10/02/2014,PLANT & EQUIPMENT,FUSION,EDMUNDSON ELECTRICALS LTD,5100299562,335.76
United Kingdom Atomic energy Authority,United Kingdom Atomic energy Authority,10/02/2014,PLANT & EQUIPMENT,FUSION,EDMUNDSON ELECTRICALS LTD,5100299563,222.66
United Kingdom Atomic energy Authority,United Kingdom Atomic energy Authority,12/02/2014,PLANT & EQUIPMENT,FUSION,EDMUNDSON ELECTRICALS LTD,5100299811,125.74
United Kingdom Atomic energy Authority,United Kingdom Atomic energy Authority,12/02/2014,PLANT & EQUIPMENT,FUSION,EDMUNDSON ELECTRICALS LTD,5100299814,77.15
United Kingdom Atomic energy Authority,United Kingdom Atomic energy Authority,12/02/2014,PLANT & EQUIPMENT,FUSION,EDMUNDSON ELECTRICALS LTD,5100299815,558.27
United Kingdom Atomic energy Authority,United Kingdom Atomic energy Authority,12/02/2014,PLANT & EQUIPMENT,FUSION,EDMUNDSON ELECTRICALS LTD,5100299816,153.09
United Kingdom Atomic energy Authority,United Kingdom Atomic energy Authority,19/02/2014,PLANT & EQUIPMENT,FUSION,EDMUNDSON ELECTRICALS LTD,5100299902,110.35
United Kingdom Atomic energy Authority,United Kingdom Atomic energy Authority,19/02/2014,PLANT & EQUIPMENT,FUSION,EDMUNDSON ELECTRICALS LTD,5100299903,182.5
United Kingdom Atomic energy Authority,United Kingdom Atomic energy Authority,19/02/2014,PLANT & EQUIPMENT,FUSION,EDMUNDSON ELECTRICALS LTD,5100299904,431.41
United Kingdom Atomic energy Authority,United Kingdom Atomic energy Authority,05/02/2014,PLANT & EQUIPMENT,FUSION,EDMUNDSON ELECTRICALS LTD,5100299469,122.66
United Kingdom Atomic energy Authority,United Kingdom Atomic energy Authority,10/02/2014,PLANT & EQUIPMENT,FUSION,EDMUNDSON ELECTRICALS LTD,5100299671,65.81
United Kingdom Atomic energy Authority,United Kingdom Atomic energy Authority,10/02/2014,PLANT & EQUIPMENT,FUSION,EDMUNDSON ELECTRICALS LTD,5100299672,193.69
United Kingdom Atomic energy Authority,United Kingdom Atomic energy Authority,27/01/2014,F&F,SUPPORT SERVICES,EFG MATTHEWS OFFICE FURNITURE LTD,5100298891,118.35
United Kingdom Atomic energy Authority,United Kingdom Atomic energy Authority,03/02/2014,F&F,SUPPORT SERVICES,EFG MATTHEWS OFFICE FURNITURE LTD,5100299304,1009.2
United Kingdom Atomic energy Authority,United Kingdom Atomic energy Authority,05/02/2014,F&F,FUSION,EFG MATTHEWS OFFICE FURNITURE LTD,5100298684,2118.61
United Kingdom Atomic energy Authority,United Kingdom Atomic energy Authority,03/02/2014,F&F,FUSION,EFG MATTHEWS OFFICE FURNITURE LTD,5100299305,1363.88
United Kingdom Atomic energy Authority,United Kingdom Atomic energy Authority,01/02/2014,EFDA TRAVEL EXPENSES,FUSION,EMPLOYEES EXPENSES,100713812,417.70
United Kingdom Atomic energy Authority,United Kingdom Atomic energy Authority,01/02/2014,EFDA TRAVEL EXPENSES,FUSION,EMPLOYEES EXPENSES,100713814,78.00
United Kingdom Atomic energy Authority,United Kingdom Atomic energy Authority,01/02/2014,EFDA TRAVEL EXPENSES,FUSION,EMPLOYEES EXPENSES,100713815,234.20
United Kingdom Atomic energy Authority,United Kingdom Atomic energy Authority,01/02/2014,EFDA TRAVEL EXPENSES,FUSION,EMPLOYEES EXPENSES,100713816,443.38
United Kingdom Atomic energy Authority,United Kingdom Atomic energy Authority,01/02/2014,EFDA TRAVEL EXPENSES,FUSION,EMPLOYEES EXPENSES,100713817,559.42
United Kingdom Atomic energy Authority,United Kingdom Atomic energy Authority,01/02/2014,EFDA TRAVEL EXPENSES,FUSION,EMPLOYEES EXPENSES,100713820,464.31
United Kingdom Atomic energy Authority,United Kingdom Atomic energy Authority,01/02/2014,EFDA TRAVEL EXPENSES,FUSION,EMPLOYEES EXPENSES,100713828,341.20
United Kingdom Atomic energy Authority,United Kingdom Atomic energy Authority,08/02/2014,EFDA TRAVEL EXPENSES,FUSION,EMPLOYEES EXPENSES,100713878,305.47
United Kingdom Atomic energy Authority,United Kingdom Atomic energy Authority,08/02/2014,EFDA TRAVEL EXPENSES,FUSION,EMPLOYEES EXPENSES,100713879,355.15
United Kingdom Atomic energy Authority,United Kingdom Atomic energy Authority,08/02/2014,EFDA TRAVEL EXPENSES,FUSION,EMPLOYEES EXPENSES,100713880,278.05
United Kingdom Atomic energy Authority,United Kingdom Atomic energy Authority,08/02/2014,EFDA TRAVEL EXPENSES,FUSION,EMPLOYEES EXPENSES,100713881,441.55
United Kingdom Atomic energy Authority,United Kingdom Atomic energy Authority,08/02/2014,EFDA TRAVEL EXPENSES,FUSION,EMPLOYEES EXPENSES,100713882,361.04
United Kingdom Atomic energy Authority,United Kingdom Atomic energy Authority,08/02/2014,EFDA TRAVEL EXPENSES,FUSION,EMPLOYEES EXPENSES,100713883,446.44
United Kingdom Atomic energy Authority,United Kingdom Atomic energy Authority,21/02/2014,EFDA TRAVEL EXPENSES,FUSION,EMPLOYEES EXPENSES,100714103,443.10
United Kingdom Atomic energy Authority,United Kingdom Atomic energy Authority,06/02/2014,MILEAGE ALLOWANCE,SUPPORT SERVICES,EMPLOYEES EXPENSES,100713849,28.41
United Kingdom Atomic energy Authority,United Kingdom Atomic energy Authority,08/02/2014,SUBSISTENCE,SUPPORT SERVICES,EMPLOYEES EXPENSES,100713885,3.20
United Kingdom Atomic energy Authority,United Kingdom Atomic energy Authority,08/02/2014,MILEAGE ALLOWANCE,SUPPORT SERVICES,EMPLOYEES EXPENSES,100713885,4.05
United Kingdom Atomic energy Authority,United Kingdom Atomic energy Authority,08/02/2014,ROAD TRAVEL,SUPPORT SERVICES,EMPLOYEES EXPENSES,100713885,6.00
United Kingdom Atomic energy Authority,United Kingdom Atomic energy Authority,14/02/2014,RAIL TRAVEL,SUPPORT SERVICES,EMPLOYEES EXPENSES,100713957,10.60
United Kingdom Atomic energy Authority,United Kingdom Atomic energy Authority,30/01/2014,PROFESSIONAL SUBSCRIPTION,SUPPORT SERVICES,EMPLOYEES EXPENSES,100712940,272.50
United Kingdom Atomic energy Authority,United Kingdom Atomic energy Authority,30/01/2014,SUBSISTENCE,SUPPORT SERVICES,EMPLOYEES EXPENSES,100712956,27.45
United Kingdom Atomic energy Authority,United Kingdom Atomic energy Authority,30/01/2014,MILEAGE ALLOWANCE,SUPPORT SERVICES,EMPLOYEES EXPENSES,100712958,46.80
United Kingdom Atomic energy Authority,United Kingdom Atomic energy Authority,30/01/2014,MILEAGE ALLOWANCE,SUPPORT SERVICES,EMPLOYEES EXPENSES,100712959,51.30
United Kingdom Atomic energy Authority,United Kingdom Atomic energy Authority,01/02/2014,MILEAGE ALLOWANCE,SUPPORT SERVICES,EMPLOYEES EXPENSES,100713827,19.20
United Kingdom Atomic energy Authority,United Kingdom Atomic energy Authority,14/02/2014,SUBSISTENCE,SUPPORT SERVICES,EMPLOYEES EXPENSES,100713947,5.00
United Kingdom Atomic energy Authority,United Kingdom Atomic energy Authority,14/02/2014,SUBSISTENCE,SUPPORT SERVICES,EMPLOYEES EXPENSES,100713947,91.92
United Kingdom Atomic energy Authority,United Kingdom Atomic energy Authority,14/02/2014,MILEAGE ALLOWANCE,SUPPORT SERVICES,EMPLOYEES EXPENSES,100713958,13.50
United Kingdom Atomic energy Authority,United Kingdom Atomic energy Authority,14/02/2014,MILEAGE ALLOWANCE,SUPPORT SERVICES,EMPLOYEES EXPENSES,100713959,13.50
United Kingdom Atomic energy Authority,United Kingdom Atomic energy Authority,14/02/2014,MILEAGE ALLOWANCE,SUPPORT SERVICES,EMPLOYEES EXPENSES,100713960,13.50
United Kingdom Atomic energy Authority,United Kingdom Atomic energy Authority,14/02/2014,MILEAGE ALLOWANCE,SUPPORT SERVICES,EMPLOYEES EXPENSES,100713961,13.50
United Kingdom Atomic energy Authority,United Kingdom Atomic energy Authority,14/02/2014,MILEAGE ALLOWANCE,SUPPORT SERVICES,EMPLOYEES EXPENSES,100713962,13.50
United Kingdom Atomic energy Authority,United Kingdom Atomic energy Authority,14/02/2014,MILEAGE ALLOWANCE,SUPPORT SERVICES,EMPLOYEES EXPENSES,100713963,32.64
United Kingdom Atomic energy Authority,United Kingdom Atomic energy Authority,14/02/2014,MILEAGE ALLOWANCE,SUPPORT SERVICES,EMPLOYEES EXPENSES,100713964,16.32
United Kingdom Atomic energy Authority,United Kingdom Atomic energy Authority,21/02/2014,PROFESSIONAL SUBSCRIPTION,SUPPORT SERVICES,EMPLOYEES EXPENSES,100714091,157.00
United Kingdom Atomic energy Authority,United Kingdom Atomic energy Authority,21/02/2014,PROFESSIONAL SUBSCRIPTION,SUPPORT SERVICES,EMPLOYEES EXPENSES,100714098,115.00
United Kingdom Atomic energy Authority,United Kingdom Atomic energy Authority,21/02/2014,PROFESSIONAL SUBSCRIPTION,SUPPORT SERVICES,EMPLOYEES EXPENSES,100714107,72.00
United Kingdom Atomic energy Authority,United Kingdom Atomic energy Authority,21/02/2014,ROAD TRAVEL,SUPPORT SERVICES,EMPLOYEES EXPENSES,100714109,4.58
United Kingdom Atomic energy Authority,United Kingdom Atomic energy Authority,21/02/2014,PROFESSIONAL SUBSCRIPTION,SUPPORT SERVICES,EMPLOYEES EXPENSES,100714111,145.00
United Kingdom Atomic energy Authority,United Kingdom Atomic energy Authority,14/02/2014,SUBSISTENCE,FUSION,EMPLOYEES EXPENSES,100713933,5.00
United Kingdom Atomic energy Authority,United Kingdom Atomic energy Authority,14/02/2014,SUBSISTENCE,FUSION,EMPLOYEES EXPENSES,100713933,57.73
United Kingdom Atomic energy Authority,United Kingdom Atomic energy Authority,14/02/2014,MILEAGE ALLOWANCE,FUSION,EMPLOYEES EXPENSES,100713933,186.75
United Kingdom Atomic energy Authority,United Kingdom Atomic energy Authority,08/02/2014,SUBSISTENCE,FUSION,EMPLOYEES EXPENSES,100713893,103.26
United Kingdom Atomic energy Authority,United Kingdom Atomic energy Authority,08/02/2014,RAIL TRAVEL,FUSION,EMPLOYEES EXPENSES,100713893,17.12
United Kingdom Atomic energy Authority,United Kingdom Atomic energy Authority,14/02/2014,PROFESSIONAL SUBSCRIPTION,FUSION,EMPLOYEES EXPENSES,100713949,254.80
United Kingdom Atomic energy Authority,United Kingdom Atomic energy Authority,21/02/2014,SUBSISTENCE,FUSION,EMPLOYEES EXPENSES,100714116,5.67
United Kingdom Atomic energy Authority,United Kingdom Atomic energy Authority,21/02/2014,ROAD TRAVEL,FUSION,EMPLOYEES EXPENSES,100714116,16.21
United Kingdom Atomic energy Authority,United Kingdom Atomic energy Authority,21/02/2014,SUBSISTENCE,FUSION,EMPLOYEES EXPENSES,100714114,238.79
United Kingdom Atomic energy Authority,United Kingdom Atomic energy Authority,30/01/2014,PROFESSIONAL SUBSCRIPTION,FUSION,EMPLOYEES EXPENSES,100712937,162.30
United Kingdom Atomic energy Authority,United Kingdom Atomic energy Authority,30/01/2014,MILEAGE ALLOWANCE,FUSION,EMPLOYEES EXPENSES,100712950,66.60
United Kingdom Atomic energy Authority,United Kingdom Atomic energy Authority,30/01/2014,MILEAGE ALLOWANCE,FUSION,EMPLOYEES EXPENSES,100712954,69.75
United Kingdom Atomic energy Authority,United Kingdom Atomic energy Authority,30/01/2014,ROAD TRAVEL,FUSION,EMPLOYEES EXPENSES,100712954,2.50
United Kingdom Atomic energy Authority,United Kingdom Atomic energy Authority,08/02/2014,MILEAGE ALLOWANCE,FUSION,EMPLOYEES EXPENSES,100713887,66.60
United Kingdom Atomic energy Authority,United Kingdom Atomic energy Authority,08/02/2014,SUBSISTENCE,FUSION,EMPLOYEES EXPENSES,100713888,4.08
United Kingdom Atomic energy Authority,United Kingdom Atomic energy Authority,08/02/2014,MILEAGE ALLOWANCE,FUSION,EMPLOYEES EXPENSES,100713888,69.75
United Kingdom Atomic energy Authority,United Kingdom Atomic energy Authority,08/02/2014,ROAD TRAVEL,FUSION,EMPLOYEES EXPENSES,100713888,2.50
United Kingdom Atomic energy Authority,United Kingdom Atomic energy Authority,14/02/2014,PROFESSIONAL SUBSCRIPTION,FUSION,EMPLOYEES EXPENSES,100713931,197.50
United Kingdom Atomic energy Authority,United Kingdom Atomic energy Authority,14/02/2014,MILEAGE ALLOWANCE,FUSION,EMPLOYEES EXPENSES,100713953,66.60
United Kingdom Atomic energy Authority,United Kingdom Atomic energy Authority,14/02/2014,SUBSISTENCE,FUSION,EMPLOYEES EXPENSES,100713955,4.08
United Kingdom Atomic energy Authority,United Kingdom Atomic energy Authority,14/02/2014,MILEAGE ALLOWANCE,FUSION,EMPLOYEES EXPENSES,100713955,69.75
United Kingdom Atomic energy Authority,United Kingdom Atomic energy Authority,14/02/2014,ROAD TRAVEL,FUSION,EMPLOYEES EXPENSES,100713955,3.00
United Kingdom Atomic energy Authority,United Kingdom Atomic energy Authority,21/02/2014,PROFESSIONAL SUBSCRIPTION,FUSION,EMPLOYEES EXPENSES,100714096,137.00
United Kingdom Atomic energy Authority,United Kingdom Atomic energy Authority,21/02/2014,SUBSISTENCE,FUSION,EMPLOYEES EXPENSES,100714106,"1,371.63"
United Kingdom Atomic energy Authority,United Kingdom Atomic energy Authority,21/02/2014,SUBSISTENCE,FUSION,EMPLOYEES EXPENSES,100714106,10.37
United Kingdom Atomic energy Authority,United Kingdom Atomic energy Authority,21/02/2014,RAIL TRAVEL,FUSION,EMPLOYEES EXPENSES,100714106,72.47
United Kingdom Atomic energy Authority,United Kingdom Atomic energy Authority,21/02/2014,ROAD TRAVEL,FUSION,EMPLOYEES EXPENSES,100714106,3.00
United Kingdom Atomic energy Authority,United Kingdom Atomic energy Authority,21/02/2014,OTHER EMPLOYEE EXPENSES,FUSION,EMPLOYEES EXPENSES,100714106,60.00
United Kingdom Atomic energy Authority,United Kingdom Atomic energy Authority,21/02/2014,SUBSISTENCE,FUSION,EMPLOYEES EXPENSES,100714108,6.87
United Kingdom Atomic energy Authority,United Kingdom Atomic energy Authority,21/02/2014,MILEAGE ALLOWANCE,FUSION,EMPLOYEES EXPENSES,100714108,69.75
United Kingdom Atomic energy Authority,United Kingdom Atomic energy Authority,21/02/2014,ROAD TRAVEL,FUSION,EMPLOYEES EXPENSES,100714108,2.50
United Kingdom Atomic energy Authority,United Kingdom Atomic energy Authority,30/01/2014,PROFESSIONAL SUBSCRIPTION,FUSION,EMPLOYEES EXPENSES,100712942,133.00
United Kingdom Atomic energy Authority,United Kingdom Atomic energy Authority,30/01/2014,PROFESSIONAL SUBSCRIPTION,FUSION,EMPLOYEES EXPENSES,100712946,120.00
United Kingdom Atomic energy Authority,United Kingdom Atomic energy Authority,30/01/2014,SUBSISTENCE,FUSION,EMPLOYEES EXPENSES,100712951,10.00
United Kingdom Atomic energy Authority,United Kingdom Atomic energy Authority,30/01/2014,MILEAGE ALLOWANCE,FUSION,EMPLOYEES EXPENSES,100712951,69.30
United Kingdom Atomic energy Authority,United Kingdom Atomic energy Authority,30/01/2014,SUBSISTENCE,FUSION,EMPLOYEES EXPENSES,100712952,10.00
United Kingdom Atomic energy Authority,United Kingdom Atomic energy Authority,30/01/2014,MILEAGE ALLOWANCE,FUSION,EMPLOYEES EXPENSES,100712952,69.30
United Kingdom Atomic energy Authority,United Kingdom Atomic energy Authority,30/01/2014,SUBSISTENCE,FUSION,EMPLOYEES EXPENSES,100712953,5.60
United Kingdom Atomic energy Authority,United Kingdom Atomic energy Authority,30/01/2014,SUBSISTENCE,FUSION,EMPLOYEES EXPENSES,100712953,7.21
United Kingdom Atomic energy Authority,United Kingdom Atomic energy Authority,30/01/2014,ROAD TRAVEL,FUSION,EMPLOYEES EXPENSES,100712953,17.50
United Kingdom Atomic energy Authority,United Kingdom Atomic energy Authority,01/02/2014,PROFESSIONAL SUBSCRIPTION,FUSION,EMPLOYEES EXPENSES,100713809,103.00
United Kingdom Atomic energy Authority,United Kingdom Atomic energy Authority,01/02/2014,SUBSISTENCE,FUSION,EMPLOYEES EXPENSES,100713811,125.00
United Kingdom Atomic energy Authority,United Kingdom Atomic energy Authority,01/02/2014,SUBSISTENCE,FUSION,EMPLOYEES EXPENSES,100713822,8.65
United Kingdom Atomic energy Authority,United Kingdom Atomic energy Authority,01/02/2014,SUBSISTENCE,FUSION,EMPLOYEES EXPENSES,100713822,7.21
United Kingdom Atomic energy Authority,United Kingdom Atomic energy Authority,21/02/2014,SUBSISTENCE,FUSION,EMPLOYEES EXPENSES,100714099,125.00
United Kingdom Atomic energy Authority,United Kingdom Atomic energy Authority,06/02/2014,TAXIS,FUSION,EMPLOYEES EXPENSES,100713850,9.15
United Kingdom Atomic energy Authority,United Kingdom Atomic energy Authority,06/02/2014,SUBSISTENCE,FUSION,EMPLOYEES EXPENSES,100713850,194.33
United Kingdom Atomic energy Authority,United Kingdom Atomic energy Authority,01/02/2014,TAXIS,FUSION,EMPLOYEES EXPENSES,100713804,9.20
United Kingdom Atomic energy Authority,United Kingdom Atomic energy Authority,01/02/2014,SUBSISTENCE,FUSION,EMPLOYEES EXPENSES,100713804,24.85
United Kingdom Atomic energy Authority,United Kingdom Atomic energy Authority,01/02/2014,SUBSISTENCE,FUSION,EMPLOYEES EXPENSES,100713804,100.75
United Kingdom Atomic energy Authority,United Kingdom Atomic energy Authority,01/02/2014,ROAD TRAVEL,FUSION,EMPLOYEES EXPENSES,100713804,8.00
United Kingdom Atomic energy Authority,United Kingdom Atomic energy Authority,14/02/2014,SUBSISTENCE,FUSION,EMPLOYEES EXPENSES,100713948,5.74
United Kingdom Atomic energy Authority,United Kingdom Atomic energy Authority,14/02/2014,ROAD TRAVEL,FUSION,EMPLOYEES EXPENSES,100713948,41.03
United Kingdom Atomic energy Authority,United Kingdom Atomic energy Authority,30/01/2014,PROFESSIONAL SUBSCRIPTION,FUSION,EMPLOYEES EXPENSES,100712943,156.00
United Kingdom Atomic energy Authority,United Kingdom Atomic energy Authority,30/01/2014,MILEAGE ALLOWANCE,FUSION,EMPLOYEES EXPENSES,100712945,67.50
United Kingdom Atomic energy Authority,United Kingdom Atomic energy Authority,06/02/2014,PROFESSIONAL SUBSCRIPTION,FUSION,EMPLOYEES EXPENSES,100713861,225.50
United Kingdom Atomic energy Authority,United Kingdom Atomic energy Authority,06/02/2014,MILEAGE ALLOWANCE,FUSION,EMPLOYEES EXPENSES,100713859,14.40
United Kingdom Atomic energy Authority,United Kingdom Atomic energy Authority,06/02/2014,SUBSISTENCE,FUSION,EMPLOYEES EXPENSES,100713862,508.62
United Kingdom Atomic energy Authority,United Kingdom Atomic energy Authority,06/02/2014,SUBSISTENCE,FUSION,EMPLOYEES EXPENSES,100713862,1.79
United Kingdom Atomic energy Authority,United Kingdom Atomic energy Authority,06/02/2014,RAIL TRAVEL,FUSION,EMPLOYEES EXPENSES,100713862,45.80
United Kingdom Atomic energy Authority,United Kingdom Atomic energy Authority,06/02/2014,RAIL TRAVEL,FUSION,EMPLOYEES EXPENSES,100713862,19.06
United Kingdom Atomic energy Authority,United Kingdom Atomic energy Authority,30/01/2014,SUBSISTENCE,FUSION,EMPLOYEES EXPENSES,100712941,5.00
United Kingdom Atomic energy Authority,United Kingdom Atomic energy Authority,30/01/2014,SUBSISTENCE,FUSION,EMPLOYEES EXPENSES,100712941,62.50
United Kingdom Atomic energy Authority,United Kingdom Atomic energy Authority,30/01/2014,ROAD TRAVEL,FUSION,EMPLOYEES EXPENSES,100712941,59.14
United Kingdom Atomic energy Authority,United Kingdom Atomic energy Authority,06/02/2014,CAR HIRE,FUSION,EMPLOYEES EXPENSES,100713853,121.34
United Kingdom Atomic energy Authority,United Kingdom Atomic energy Authority,06/02/2014,SUBSISTENCE,FUSION,EMPLOYEES EXPENSES,100713853,266.87
United Kingdom Atomic energy Authority,United Kingdom Atomic energy Authority,06/02/2014,SUBSISTENCE,FUSION,EMPLOYEES EXPENSES,100713853,4.04
United Kingdom Atomic energy Authority,United Kingdom Atomic energy Authority,06/02/2014,ROAD TRAVEL,FUSION,EMPLOYEES EXPENSES,100713853,29.92
United Kingdom Atomic energy Authority,United Kingdom Atomic energy Authority,06/02/2014,SUBSISTENCE,FUSION,EMPLOYEES EXPENSES,100713854,135.04
United Kingdom Atomic energy Authority,United Kingdom Atomic energy Authority,21/02/2014,SUBSISTENCE,FUSION,EMPLOYEES EXPENSES,100714101,12.15
United Kingdom Atomic energy Authority,United Kingdom Atomic energy Authority,30/01/2014,PROFESSIONAL SUBSCRIPTION,FUSION,EMPLOYEES EXPENSES,100712957,236.00
United Kingdom Atomic energy Authority,United Kingdom Atomic energy Authority,01/02/2014,SUBSISTENCE,FUSION,EMPLOYEES EXPENSES,100713805,5.00
United Kingdom Atomic energy Authority,United Kingdom Atomic energy Authority,01/02/2014,SUBSISTENCE,FUSION,EMPLOYEES EXPENSES,100713805,0.60
United Kingdom Atomic energy Authority,United Kingdom Atomic energy Authority,01/02/2014,SUBSISTENCE,FUSION,EMPLOYEES EXPENSES,100713813,10.15
United Kingdom Atomic energy Authority,United Kingdom Atomic energy Authority,01/02/2014,SUBSISTENCE,FUSION,EMPLOYEES EXPENSES,100713813,146.51
United Kingdom Atomic energy Authority,United Kingdom Atomic energy Authority,01/02/2014,ROAD TRAVEL,FUSION,EMPLOYEES EXPENSES,100713813,38.33
United Kingdom Atomic energy Authority,United Kingdom Atomic energy Authority,01/02/2014,ROAD TRAVEL,FUSION,EMPLOYEES EXPENSES,100713823,32.71
United Kingdom Atomic energy Authority,United Kingdom Atomic energy Authority,01/02/2014,ROAD TRAVEL,FUSION,EMPLOYEES EXPENSES,100713825,12.08
United Kingdom Atomic energy Authority,United Kingdom Atomic energy Authority,21/02/2014,MILEAGE ALLOWANCE,FUSION,EMPLOYEES EXPENSES,100714089,4.50
United Kingdom Atomic energy Authority,United Kingdom Atomic energy Authority,21/02/2014,SUBSISTENCE,FUSION,EMPLOYEES EXPENSES,100714090,4.10
United Kingdom Atomic energy Authority,United Kingdom Atomic energy Authority,21/02/2014,SUBSISTENCE,FUSION,EMPLOYEES EXPENSES,100714090,1.04
United Kingdom Atomic energy Authority,United Kingdom Atomic energy Authority,30/01/2014,ROAD TRAVEL,FUSION,EMPLOYEES EXPENSES,100712947,22.51
United Kingdom Atomic energy Authority,United Kingdom Atomic energy Authority,30/01/2014,SUBSISTENCE,FUSION,EMPLOYEES EXPENSES,100712960,6.83
United Kingdom Atomic energy Authority,United Kingdom Atomic energy Authority,30/01/2014,RAIL TRAVEL,FUSION,EMPLOYEES EXPENSES,100712960,22.20
United Kingdom Atomic energy Authority,United Kingdom Atomic energy Authority,21/02/2014,MILEAGE ALLOWANCE,FUSION,EMPLOYEES EXPENSES,100714092,18.00
United Kingdom Atomic energy Authority,United Kingdom Atomic energy Authority,21/02/2014,RAIL TRAVEL,FUSION,EMPLOYEES EXPENSES,100714092,28.50
United Kingdom Atomic energy Authority,United Kingdom Atomic energy Authority,21/02/2014,ROAD TRAVEL,FUSION,EMPLOYEES EXPENSES,100714092,6.50
United Kingdom Atomic energy Authority,United Kingdom Atomic energy Authority,14/02/2014,SUBSISTENCE,FUSION,EMPLOYEES EXPENSES,100713952,68.64
United Kingdom Atomic energy Authority,United Kingdom Atomic energy Authority,14/02/2014,RAIL TRAVEL,FUSION,EMPLOYEES EXPENSES,100713952,17.63
United Kingdom Atomic energy Authority,United Kingdom Atomic energy Authority,21/02/2014,SUBSISTENCE,FUSION,EMPLOYEES EXPENSES,100714104,177.88
United Kingdom Atomic energy Authority,United Kingdom Atomic energy Authority,21/02/2014,SUBSISTENCE,FUSION,EMPLOYEES EXPENSES,100714104,36.69
United Kingdom Atomic energy Authority,United Kingdom Atomic energy Authority,21/02/2014,RAIL TRAVEL,FUSION,EMPLOYEES EXPENSES,100714104,34.00
United Kingdom Atomic energy Authority,United Kingdom Atomic energy Authority,21/02/2014,RAIL TRAVEL,FUSION,EMPLOYEES EXPENSES,100714104,44.29
United Kingdom Atomic energy Authority,United Kingdom Atomic energy Authority,21/02/2014,ROAD TRAVEL,FUSION,EMPLOYEES EXPENSES,100714104,30.00
United Kingdom Atomic energy Authority,United Kingdom Atomic energy Authority,21/02/2014,OTHER EMPLOYEE EXPENSES,FUSION,EMPLOYEES EXPENSES,100714104,3.00
United Kingdom Atomic energy Authority,United Kingdom Atomic energy Authority,14/02/2014,PROFESSIONAL SUBSCRIPTION,FUSION,EMPLOYEES EXPENSES,100713945,98.00
United Kingdom Atomic energy Authority,United Kingdom Atomic energy Authority,14/02/2014,ROAD TRAVEL,FUSION,EMPLOYEES EXPENSES,100713946,99.00
United Kingdom Atomic energy Authority,United Kingdom Atomic energy Authority,14/02/2014,ROAD TRAVEL,FUSION,EMPLOYEES EXPENSES,100713946,9.83
United Kingdom Atomic energy Authority,United Kingdom Atomic energy Authority,21/02/2014,SUBSISTENCE,FUSION,EMPLOYEES EXPENSES,100714115,162.55
United Kingdom Atomic energy Authority,United Kingdom Atomic energy Authority,21/02/2014,SUBSISTENCE,FUSION,EMPLOYEES EXPENSES,100714115,11.62
United Kingdom Atomic energy Authority,United Kingdom Atomic energy Authority,21/02/2014,ROAD TRAVEL,FUSION,EMPLOYEES EXPENSES,100714115,35.00
United Kingdom Atomic energy Authority,United Kingdom Atomic energy Authority,21/02/2014,ROAD TRAVEL,FUSION,EMPLOYEES EXPENSES,100714115,15.16
United Kingdom Atomic energy Authority,United Kingdom Atomic energy Authority,08/02/2014,RAIL TRAVEL,FUSION,EMPLOYEES EXPENSES,100713889,29.70
United Kingdom Atomic energy Authority,United Kingdom Atomic energy Authority,21/02/2014,CAR HIRE,FUSION,EMPLOYEES EXPENSES,100714088,131.83
United Kingdom Atomic energy Authority,United Kingdom Atomic energy Authority,21/02/2014,SUBSISTENCE,FUSION,EMPLOYEES EXPENSES,100714088,250.65
United Kingdom Atomic energy Authority,United Kingdom Atomic energy Authority,21/02/2014,MILEAGE ALLOWANCE,FUSION,EMPLOYEES EXPENSES,100714088,54.00
United Kingdom Atomic energy Authority,United Kingdom Atomic energy Authority,21/02/2014,ROAD TRAVEL,FUSION,EMPLOYEES EXPENSES,100714088,102.30
United Kingdom Atomic energy Authority,United Kingdom Atomic energy Authority,21/02/2014,BUSINESS ENTERTAINMENT,FUSION,EMPLOYEES EXPENSES,100714088,142.66
United Kingdom Atomic energy Authority,United Kingdom Atomic energy Authority,06/02/2014,SUBSISTENCE,FUSION,EMPLOYEES EXPENSES,100713847,329.10
United Kingdom Atomic energy Authority,United Kingdom Atomic energy Authority,06/02/2014,RAIL TRAVEL,FUSION,EMPLOYEES EXPENSES,100713847,2.82
United Kingdom Atomic energy Authority,United Kingdom Atomic energy Authority,06/02/2014,ROAD TRAVEL,FUSION,EMPLOYEES EXPENSES,100713847,6.00
United Kingdom Atomic energy Authority,United Kingdom Atomic energy Authority,08/02/2014,SUBSISTENCE,FUSION,EMPLOYEES EXPENSES,100713875,3.54
United Kingdom Atomic energy Authority,United Kingdom Atomic energy Authority,08/02/2014,MILEAGE ALLOWANCE,FUSION,EMPLOYEES EXPENSES,100713875,4.50
United Kingdom Atomic energy Authority,United Kingdom Atomic energy Authority,08/02/2014,ROAD TRAVEL,FUSION,EMPLOYEES EXPENSES,100713875,5.17
United Kingdom Atomic energy Authority,United Kingdom Atomic energy Authority,08/02/2014,SUBSISTENCE,FUSION,EMPLOYEES EXPENSES,100713876,268.29
United Kingdom Atomic energy Authority,United Kingdom Atomic energy Authority,08/02/2014,RAIL TRAVEL,FUSION,EMPLOYEES EXPENSES,100713876,2.80
United Kingdom Atomic energy Authority,United Kingdom Atomic energy Authority,08/02/2014,ROAD TRAVEL,FUSION,EMPLOYEES EXPENSES,100713876,6.00
United Kingdom Atomic energy Authority,United Kingdom Atomic energy Authority,21/02/2014,SUBSISTENCE,FUSION,EMPLOYEES EXPENSES,100714100,2.70
United Kingdom Atomic energy Authority,United Kingdom Atomic energy Authority,21/02/2014,SUBSISTENCE,FUSION,EMPLOYEES EXPENSES,100714100,14.31
United Kingdom Atomic energy Authority,United Kingdom Atomic energy Authority,21/02/2014,ROAD TRAVEL,FUSION,EMPLOYEES EXPENSES,100714100,28.35
United Kingdom Atomic energy Authority,United Kingdom Atomic energy Authority,01/02/2014,SUBSISTENCE,FUSION,EMPLOYEES EXPENSES,100713798,5.00
United Kingdom Atomic energy Authority,United Kingdom Atomic energy Authority,01/02/2014,SUBSISTENCE,FUSION,EMPLOYEES EXPENSES,100713798,45.22
United Kingdom Atomic energy Authority,United Kingdom Atomic energy Authority,01/02/2014,MILEAGE ALLOWANCE,FUSION,EMPLOYEES EXPENSES,100713798,180.90
United Kingdom Atomic energy Authority,United Kingdom Atomic energy Authority,01/02/2014,PROFESSIONAL SUBSCRIPTION,FUSION,EMPLOYEES EXPENSES,100713829,202.50
United Kingdom Atomic energy Authority,United Kingdom Atomic energy Authority,06/02/2014,SUBSISTENCE,FUSION,EMPLOYEES EXPENSES,100713844,5.00
United Kingdom Atomic energy Authority,United Kingdom Atomic energy Authority,06/02/2014,SUBSISTENCE,FUSION,EMPLOYEES EXPENSES,100713844,75.32
United Kingdom Atomic energy Authority,United Kingdom Atomic energy Authority,06/02/2014,SUBSISTENCE,FUSION,EMPLOYEES EXPENSES,100713864,16.68
United Kingdom Atomic energy Authority,United Kingdom Atomic energy Authority,06/02/2014,SUBSISTENCE,FUSION,EMPLOYEES EXPENSES,100713864,31.18
United Kingdom Atomic energy Authority,United Kingdom Atomic energy Authority,06/02/2014,MILEAGE ALLOWANCE,FUSION,EMPLOYEES EXPENSES,100713864,162.00
United Kingdom Atomic energy Authority,United Kingdom Atomic energy Authority,08/02/2014,PROFESSIONAL SUBSCRIPTION,FUSION,EMPLOYEES EXPENSES,100713886,169.30
United Kingdom Atomic energy Authority,United Kingdom Atomic energy Authority,14/02/2014,SUBSISTENCE,FUSION,EMPLOYEES EXPENSES,100713936,194.06
United Kingdom Atomic energy Authority,United Kingdom Atomic energy Authority,14/02/2014,ROAD TRAVEL,FUSION,EMPLOYEES EXPENSES,100713937,3.70
United Kingdom Atomic energy Authority,United Kingdom Atomic energy Authority,14/02/2014,TAXIS,FUSION,EMPLOYEES EXPENSES,100713938,20.00
United Kingdom Atomic energy Authority,United Kingdom Atomic energy Authority,14/02/2014,RAIL TRAVEL,FUSION,EMPLOYEES EXPENSES,100713938,62.40
United Kingdom Atomic energy Authority,United Kingdom Atomic energy Authority,14/02/2014,SUBSISTENCE,FUSION,EMPLOYEES EXPENSES,100713939,5.41
United Kingdom Atomic energy Authority,United Kingdom Atomic energy Authority,14/02/2014,RAIL TRAVEL,FUSION,EMPLOYEES EXPENSES,100713939,64.50
United Kingdom Atomic energy Authority,United Kingdom Atomic energy Authority,14/02/2014,SUBSISTENCE,FUSION,EMPLOYEES EXPENSES,100713940,3.00
United Kingdom Atomic energy Authority,United Kingdom Atomic energy Authority,14/02/2014,RAIL TRAVEL,FUSION,EMPLOYEES EXPENSES,100713940,157.50
United Kingdom Atomic energy Authority,United Kingdom Atomic energy Authority,14/02/2014,TAXIS,FUSION,EMPLOYEES EXPENSES,100713944,41.34
United Kingdom Atomic energy Authority,United Kingdom Atomic energy Authority,14/02/2014,SUBSISTENCE,FUSION,EMPLOYEES EXPENSES,100713944,152.27
United Kingdom Atomic energy Authority,United Kingdom Atomic energy Authority,14/02/2014,SUBSISTENCE,FUSION,EMPLOYEES EXPENSES,100713944,3.29
United Kingdom Atomic energy Authority,United Kingdom Atomic energy Authority,14/02/2014,OTHER EMPLOYEE EXPENSES,FUSION,EMPLOYEES EXPENSES,100713944,6.99
United Kingdom Atomic energy Authority,United Kingdom Atomic energy Authority,14/02/2014,PROFESSIONAL SUBSCRIPTION,FUSION,EMPLOYEES EXPENSES,100713956,133.00
United Kingdom Atomic energy Authority,United Kingdom Atomic energy Authority,21/02/2014,SUBSISTENCE,FUSION,EMPLOYEES EXPENSES,100714093,10.72
United Kingdom Atomic energy Authority,United Kingdom Atomic energy Authority,21/02/2014,SUBSISTENCE,FUSION,EMPLOYEES EXPENSES,100714093,6.03
United Kingdom Atomic energy Authority,United Kingdom Atomic energy Authority,21/02/2014,RAIL TRAVEL,FUSION,EMPLOYEES EXPENSES,100714093,76.20
United Kingdom Atomic energy Authority,United Kingdom Atomic energy Authority,21/02/2014,OTHER EMPLOYEE EXPENSES,FUSION,EMPLOYEES EXPENSES,100714105,133.00
United Kingdom Atomic energy Authority,United Kingdom Atomic energy Authority,21/02/2014,PROFESSIONAL SUBSCRIPTION,FUSION,EMPLOYEES EXPENSES,100714105,133.00
United Kingdom Atomic energy Authority,United Kingdom Atomic energy Authority,21/02/2014,PROFESSIONAL SUBSCRIPTION,FUSION,EMPLOYEES EXPENSES,100714112,126.00
United Kingdom Atomic energy Authority,United Kingdom Atomic energy Authority,30/01/2014,PROFESSIONAL SUBSCRIPTION,FUSION,EMPLOYEES EXPENSES,100712944,155.00
United Kingdom Atomic energy Authority,United Kingdom Atomic energy Authority,06/02/2014,SUBSISTENCE,FUSION,EMPLOYEES EXPENSES,100713851,17.20
United Kingdom Atomic energy Authority,United Kingdom Atomic energy Authority,06/02/2014,SUBSISTENCE,FUSION,EMPLOYEES EXPENSES,100713851,240.75
United Kingdom Atomic energy Authority,United Kingdom Atomic energy Authority,06/02/2014,MILEAGE ALLOWANCE,FUSION,EMPLOYEES EXPENSES,100713851,329.40
United Kingdom Atomic energy Authority,United Kingdom Atomic energy Authority,06/02/2014,ROAD TRAVEL,FUSION,EMPLOYEES EXPENSES,100713851,4.80
United Kingdom Atomic energy Authority,United Kingdom Atomic energy Authority,14/02/2014,SUBSISTENCE,FUSION,EMPLOYEES EXPENSES,100713941,71.50
United Kingdom Atomic energy Authority,United Kingdom Atomic energy Authority,14/02/2014,SUBSISTENCE,FUSION,EMPLOYEES EXPENSES,100713941,9.17
United Kingdom Atomic energy Authority,United Kingdom Atomic energy Authority,14/02/2014,MILEAGE ALLOWANCE,FUSION,EMPLOYEES EXPENSES,100713941,53.55
United Kingdom Atomic energy Authority,United Kingdom Atomic energy Authority,14/02/2014,ROAD TRAVEL,FUSION,EMPLOYEES EXPENSES,100713941,16.67
United Kingdom Atomic energy Authority,United Kingdom Atomic energy Authority,06/02/2014,SUBSISTENCE,FUSION,EMPLOYEES EXPENSES,100713848,487.60
United Kingdom Atomic energy Authority,United Kingdom Atomic energy Authority,06/02/2014,SUBSISTENCE,FUSION,EMPLOYEES EXPENSES,100713848,9.12
United Kingdom Atomic energy Authority,United Kingdom Atomic energy Authority,06/02/2014,ROAD TRAVEL,FUSION,EMPLOYEES EXPENSES,100713848,16.84
United Kingdom Atomic energy Authority,United Kingdom Atomic energy Authority,01/02/2014,OTHER EMPLOYEE EXPENSES,FUSION,EMPLOYEES EXPENSES,100713821,245.00
United Kingdom Atomic energy Authority,United Kingdom Atomic energy Authority,06/02/2014,BUSINESS ENTERTAINMENT,FUSION,EMPLOYEES EXPENSES,100713843,429.80
United Kingdom Atomic energy Authority,United Kingdom Atomic energy Authority,14/02/2014,ROAD TRAVEL,FUSION,EMPLOYEES EXPENSES,100713954,12.50
United Kingdom Atomic energy Authority,United Kingdom Atomic energy Authority,06/02/2014,PROFESSIONAL SUBSCRIPTION,FUSION,EMPLOYEES EXPENSES,100713845,152.00
United Kingdom Atomic energy Authority,United Kingdom Atomic energy Authority,14/02/2014,SUBSISTENCE,FUSION,EMPLOYEES EXPENSES,100713935,1.92
United Kingdom Atomic energy Authority,United Kingdom Atomic energy Authority,14/02/2014,ROAD TRAVEL,FUSION,EMPLOYEES EXPENSES,100713935,3.80
United Kingdom Atomic energy Authority,United Kingdom Atomic energy Authority,21/02/2014,ROAD TRAVEL,FUSION,EMPLOYEES EXPENSES,100714113,26.35
United Kingdom Atomic energy Authority,United Kingdom Atomic energy Authority,21/02/2014,OTHER EMPLOYEE EXPENSES,FUSION,EMPLOYEES EXPENSES,100714113,40.00
United Kingdom Atomic energy Authority,United Kingdom Atomic energy Authority,01/02/2014,TAXIS,FUSION,EMPLOYEES EXPENSES,100713826,8.17
United Kingdom Atomic energy Authority,United Kingdom Atomic energy Authority,01/02/2014,SUBSISTENCE,FUSION,EMPLOYEES EXPENSES,100713826,"1,077.71"
United Kingdom Atomic energy Authority,United Kingdom Atomic energy Authority,01/02/2014,SUBSISTENCE,FUSION,EMPLOYEES EXPENSES,100713826,13.29
United Kingdom Atomic energy Authority,United Kingdom Atomic energy Authority,01/02/2014,ROAD TRAVEL,FUSION,EMPLOYEES EXPENSES,100713826,29.00
United Kingdom Atomic energy Authority,United Kingdom Atomic energy Authority,01/02/2014,ROAD TRAVEL,FUSION,EMPLOYEES EXPENSES,100713826,4.34
United Kingdom Atomic energy Authority,United Kingdom Atomic energy Authority,30/01/2014,MILEAGE ALLOWANCE,FUSION,EMPLOYEES EXPENSES,100712949,60.30
United Kingdom Atomic energy Authority,United Kingdom Atomic energy Authority,01/02/2014,SUBSISTENCE,FUSION,EMPLOYEES EXPENSES,100713811,125.00
United Kingdom Atomic energy Authority,United Kingdom Atomic energy Authority,01/02/2014,MILEAGE ALLOWANCE,FUSION,EMPLOYEES EXPENSES,100713819,60.30
United Kingdom Atomic energy Authority,United Kingdom Atomic energy Authority,06/02/2014,SUBSISTENCE,FUSION,EMPLOYEES EXPENSES,100713852,274.95
United Kingdom Atomic energy Authority,United Kingdom Atomic energy Authority,06/02/2014,ROAD TRAVEL,FUSION,EMPLOYEES EXPENSES,100713852,29.00
United Kingdom Atomic energy Authority,United Kingdom Atomic energy Authority,06/02/2014,OTHER EMPLOYEE EXPENSES,FUSION,EMPLOYEES EXPENSES,100713852,17.73
United Kingdom Atomic energy Authority,United Kingdom Atomic energy Authority,08/02/2014,MILEAGE ALLOWANCE,FUSION,EMPLOYEES EXPENSES,100713884,60.30
United Kingdom Atomic energy Authority,United Kingdom Atomic energy Authority,08/02/2014,PROFESSIONAL SUBSCRIPTION,FUSION,EMPLOYEES EXPENSES,100713891,202.50
United Kingdom Atomic energy Authority,United Kingdom Atomic energy Authority,08/02/2014,PROFESSIONAL SUBSCRIPTION,FUSION,EMPLOYEES EXPENSES,100713892,35.00
United Kingdom Atomic energy Authority,United Kingdom Atomic energy Authority,08/02/2014,PROFESSIONAL SUBSCRIPTION,FUSION,EMPLOYEES EXPENSES,100713894,233.00
United Kingdom Atomic energy Authority,United Kingdom Atomic energy Authority,14/02/2014,OTHER EMPLOYEE EXPENSES,FUSION,EMPLOYEES EXPENSES,100713943,174.00
United Kingdom Atomic energy Authority,United Kingdom Atomic energy Authority,14/02/2014,MILEAGE ALLOWANCE,FUSION,EMPLOYEES EXPENSES,100713951,60.30
United Kingdom Atomic energy Authority,United Kingdom Atomic energy Authority,21/02/2014,SUBSISTENCE,FUSION,EMPLOYEES EXPENSES,100714099,125.00
United Kingdom Atomic energy Authority,United Kingdom Atomic energy Authority,21/02/2014,PROFESSIONAL SUBSCRIPTION,FUSION,EMPLOYEES EXPENSES,100714102,267.60
United Kingdom Atomic energy Authority,United Kingdom Atomic energy Authority,30/01/2014,MILEAGE ALLOWANCE,FUSION,EMPLOYEES EXPENSES,100712936,13.50
United Kingdom Atomic energy Authority,United Kingdom Atomic energy Authority,30/01/2014,TAXIS,FUSION,EMPLOYEES EXPENSES,100712948,72.45
United Kingdom Atomic energy Authority,United Kingdom Atomic energy Authority,30/01/2014,SUBSISTENCE,FUSION,EMPLOYEES EXPENSES,100712948,112.16
United Kingdom Atomic energy Authority,United Kingdom Atomic energy Authority,30/01/2014,OTHER EMPLOYEE EXPENSES,FUSION,EMPLOYEES EXPENSES,100712948,3.00
United Kingdom Atomic energy Authority,United Kingdom Atomic energy Authority,08/02/2014,TAXIS,FUSION,EMPLOYEES EXPENSES,100713890,6.00
United Kingdom Atomic energy Authority,United Kingdom Atomic energy Authority,08/02/2014,SUBSISTENCE,FUSION,EMPLOYEES EXPENSES,100713890,3.31
United Kingdom Atomic energy Authority,United Kingdom Atomic energy Authority,06/02/2014,TAXIS,FUSION,EMPLOYEES EXPENSES,100713863,10.11
United Kingdom Atomic energy Authority,United Kingdom Atomic energy Authority,06/02/2014,SUBSISTENCE,FUSION,EMPLOYEES EXPENSES,100713863,474.56
United Kingdom Atomic energy Authority,United Kingdom Atomic energy Authority,06/02/2014,SUBSISTENCE,FUSION,EMPLOYEES EXPENSES,100713863,12.50
United Kingdom Atomic energy Authority,United Kingdom Atomic energy Authority,06/02/2014,RAIL TRAVEL,FUSION,EMPLOYEES EXPENSES,100713863,25.50
United Kingdom Atomic energy Authority,United Kingdom Atomic energy Authority,06/02/2014,RAIL TRAVEL,FUSION,EMPLOYEES EXPENSES,100713863,40.77
United Kingdom Atomic energy Authority,United Kingdom Atomic energy Authority,06/02/2014,ROAD TRAVEL,FUSION,EMPLOYEES EXPENSES,100713863,23.00
United Kingdom Atomic energy Authority,United Kingdom Atomic energy Authority,30/01/2014,MILEAGE ALLOWANCE,FUSION,EMPLOYEES EXPENSES,100712935,14.40
United Kingdom Atomic energy Authority,United Kingdom Atomic energy Authority,01/02/2014,MILEAGE ALLOWANCE,FUSION,EMPLOYEES EXPENSES,100713806,6.30
United Kingdom Atomic energy Authority,United Kingdom Atomic energy Authority,01/02/2014,MILEAGE ALLOWANCE,FUSION,EMPLOYEES EXPENSES,100713807,6.30
United Kingdom Atomic energy Authority,United Kingdom Atomic energy Authority,06/02/2014,MILEAGE ALLOWANCE,FUSION,EMPLOYEES EXPENSES,100713842,7.20
United Kingdom Atomic energy Authority,United Kingdom Atomic energy Authority,08/02/2014,MILEAGE ALLOWANCE,FUSION,EMPLOYEES EXPENSES,100713877,12.60
United Kingdom Atomic energy Authority,United Kingdom Atomic energy Authority,14/02/2014,MILEAGE ALLOWANCE,FUSION,EMPLOYEES EXPENSES,100713930,7.20
United Kingdom Atomic energy Authority,United Kingdom Atomic energy Authority,21/02/2014,MILEAGE ALLOWANCE,FUSION,EMPLOYEES EXPENSES,100714086,7.20
United Kingdom Atomic energy Authority,United Kingdom Atomic energy Authority,01/02/2014,TAXIS,SUPPORT SERVICES,EMPLOYEES EXPENSES,100713808,10.00
United Kingdom Atomic energy Authority,United Kingdom Atomic energy Authority,01/02/2014,SUBSISTENCE,SUPPORT SERVICES,EMPLOYEES EXPENSES,100713808,8.55
United Kingdom Atomic energy Authority,United Kingdom Atomic energy Authority,01/02/2014,RAIL TRAVEL,SUPPORT SERVICES,EMPLOYEES EXPENSES,100713808,52.70
United Kingdom Atomic energy Authority,United Kingdom Atomic energy Authority,01/02/2014,ROAD TRAVEL,SUPPORT SERVICES,EMPLOYEES EXPENSES,100713808,3.00
United Kingdom Atomic energy Authority,United Kingdom Atomic energy Authority,06/02/2014,SUBSISTENCE,SUPPORT SERVICES,EMPLOYEES EXPENSES,100713846,160.00
United Kingdom Atomic energy Authority,United Kingdom Atomic energy Authority,06/02/2014,MILEAGE ALLOWANCE,SUPPORT SERVICES,EMPLOYEES EXPENSES,100713846,2.70
United Kingdom Atomic energy Authority,United Kingdom Atomic energy Authority,06/02/2014,ROAD TRAVEL,SUPPORT SERVICES,EMPLOYEES EXPENSES,100713846,29.00
United Kingdom Atomic energy Authority,United Kingdom Atomic energy Authority,14/02/2014,SUBSISTENCE,SUPPORT SERVICES,EMPLOYEES EXPENSES,100713932,4.40
United Kingdom Atomic energy Authority,United Kingdom Atomic energy Authority,14/02/2014,SUBSISTENCE,SUPPORT SERVICES,EMPLOYEES EXPENSES,100713932,2.21
United Kingdom Atomic energy Authority,United Kingdom Atomic energy Authority,14/02/2014,MILEAGE ALLOWANCE,SUPPORT SERVICES,EMPLOYEES EXPENSES,100713932,54.00
United Kingdom Atomic energy Authority,United Kingdom Atomic energy Authority,14/02/2014,ROAD TRAVEL,SUPPORT SERVICES,EMPLOYEES EXPENSES,100713932,3.00
United Kingdom Atomic energy Authority,United Kingdom Atomic energy Authority,21/02/2014,SUBSISTENCE,SUPPORT SERVICES,EMPLOYEES EXPENSES,100714087,33.30
United Kingdom Atomic energy Authority,United Kingdom Atomic energy Authority,21/02/2014,SUBSISTENCE,SUPPORT SERVICES,EMPLOYEES EXPENSES,100714087,80.42
United Kingdom Atomic energy Authority,United Kingdom Atomic energy Authority,21/02/2014,MILEAGE ALLOWANCE,SUPPORT SERVICES,EMPLOYEES EXPENSES,100714087,54.00
United Kingdom Atomic energy Authority,United Kingdom Atomic energy Authority,21/02/2014,TAXIS,SUPPORT SERVICES,EMPLOYEES EXPENSES,100714095,12.00
United Kingdom Atomic energy Authority,United Kingdom Atomic energy Authority,21/02/2014,SUBSISTENCE,SUPPORT SERVICES,EMPLOYEES EXPENSES,100714095,497.03
United Kingdom Atomic energy Authority,United Kingdom Atomic energy Authority,21/02/2014,RAIL TRAVEL,SUPPORT SERVICES,EMPLOYEES EXPENSES,100714095,26.47
United Kingdom Atomic energy Authority,United Kingdom Atomic energy Authority,21/02/2014,ROAD TRAVEL,SUPPORT SERVICES,EMPLOYEES EXPENSES,100714095,31.00
United Kingdom Atomic energy Authority,United Kingdom Atomic energy Authority,21/02/2014,OTHER EMPLOYEE EXPENSES,FUSION,EMPLOYEES EXPENSES,100714095,4.75
United Kingdom Atomic energy Authority,United Kingdom Atomic energy Authority,21/02/2014,SUBSISTENCE,SUPPORT SERVICES,EMPLOYEES EXPENSES,100714097,409.90
United Kingdom Atomic energy Authority,United Kingdom Atomic energy Authority,21/02/2014,SUBSISTENCE,SUPPORT SERVICES,EMPLOYEES EXPENSES,100714097,13.96
United Kingdom Atomic energy Authority,United Kingdom Atomic energy Authority,21/02/2014,RAIL TRAVEL,SUPPORT SERVICES,EMPLOYEES EXPENSES,100714097,28.00
United Kingdom Atomic energy Authority,United Kingdom Atomic energy Authority,21/02/2014,TAXIS,SUPPORT SERVICES,EMPLOYEES EXPENSES,100714110,47.53
United Kingdom Atomic energy Authority,United Kingdom Atomic energy Authority,21/02/2014,SUBSISTENCE,SUPPORT SERVICES,EMPLOYEES EXPENSES,100714110,426.68
United Kingdom Atomic energy Authority,United Kingdom Atomic energy Authority,21/02/2014,RAIL TRAVEL,SUPPORT SERVICES,EMPLOYEES EXPENSES,100714110,30.59
United Kingdom Atomic energy Authority,United Kingdom Atomic energy Authority,21/02/2014,OTHER EMPLOYEE EXPENSES,FUSION,EMPLOYEES EXPENSES,100714110,8.18
United Kingdom Atomic energy Authority,United Kingdom Atomic energy Authority,14/02/2014,EFDA TRAVEL EXPENSES,SUPPORT SERVICES,EMPLOYEES EXPENSES,100713950,493.83
United Kingdom Atomic energy Authority,United Kingdom Atomic energy Authority,30/01/2014,BUSINESS ENTERTAINMENT,FUSION,EMPLOYEES EXPENSES,100712955,208.70
United Kingdom Atomic energy Authority,United Kingdom Atomic energy Authority,01/02/2014,OTHER EMPLOYEE EXPENSES,FUSION,EMPLOYEES EXPENSES,100713824,12.00
United Kingdom Atomic energy Authority,United Kingdom Atomic energy Authority,06/02/2014,CAR HIRE,FUSION,EMPLOYEES EXPENSES,100713855,364.54
United Kingdom Atomic energy Authority,United Kingdom Atomic energy Authority,06/02/2014,SUBSISTENCE,FUSION,EMPLOYEES EXPENSES,100713855,307.89
United Kingdom Atomic energy Authority,United Kingdom Atomic energy Authority,06/02/2014,SUBSISTENCE,FUSION,EMPLOYEES EXPENSES,100713855,3.87
United Kingdom Atomic energy Authority,United Kingdom Atomic energy Authority,06/02/2014,ROAD TRAVEL,FUSION,EMPLOYEES EXPENSES,100713855,2.63
United Kingdom Atomic energy Authority,United Kingdom Atomic energy Authority,06/02/2014,SUBSISTENCE,FUSION,EMPLOYEES EXPENSES,100713856,19.40
United Kingdom Atomic energy Authority,United Kingdom Atomic energy Authority,06/02/2014,ROAD TRAVEL,FUSION,EMPLOYEES EXPENSES,100713856,9.17
United Kingdom Atomic energy Authority,United Kingdom Atomic energy Authority,01/02/2014,SUBSISTENCE,FUSION,EMPLOYEES EXPENSES,100713818,158.22
United Kingdom Atomic energy Authority,United Kingdom Atomic energy Authority,01/02/2014,RAIL TRAVEL,FUSION,EMPLOYEES EXPENSES,100713818,6.58
United Kingdom Atomic energy Authority,United Kingdom Atomic energy Authority,01/02/2014,ROAD TRAVEL,FUSION,EMPLOYEES EXPENSES,100713818,10.22
United Kingdom Atomic energy Authority,United Kingdom Atomic energy Authority,06/02/2014,RAIL TRAVEL,FUSION,EMPLOYEES EXPENSES,100713860,64.50
United Kingdom Atomic energy Authority,United Kingdom Atomic energy Authority,21/02/2014,ROAD TRAVEL,FUSION,EMPLOYEES EXPENSES,100714094,29.26
United Kingdom Atomic energy Authority,United Kingdom Atomic energy Authority,30/01/2014,SUBSISTENCE,SUPPORT SERVICES,EMPLOYEES EXPENSES,100712938,5.00
United Kingdom Atomic energy Authority,United Kingdom Atomic energy Authority,30/01/2014,SUBSISTENCE,SUPPORT SERVICES,EMPLOYEES EXPENSES,100712939,10.54
United Kingdom Atomic energy Authority,United Kingdom Atomic energy Authority,30/01/2014,SUBSISTENCE,SUPPORT SERVICES,EMPLOYEES EXPENSES,100712939,10.54
United Kingdom Atomic energy Authority,United Kingdom Atomic energy Authority,30/01/2014,ROAD TRAVEL,SUPPORT SERVICES,EMPLOYEES EXPENSES,100712939,2.35
United Kingdom Atomic energy Authority,United Kingdom Atomic energy Authority,30/01/2014,ROAD TRAVEL,SUPPORT SERVICES,EMPLOYEES EXPENSES,100712939,2.35
United Kingdom Atomic energy Authority,United Kingdom Atomic energy Authority,01/02/2014,TAXIS,SUPPORT SERVICES,EMPLOYEES EXPENSES,100713800,21.10
United Kingdom Atomic energy Authority,United Kingdom Atomic energy Authority,01/02/2014,SUBSISTENCE,SUPPORT SERVICES,EMPLOYEES EXPENSES,100713800,5.00
United Kingdom Atomic energy Authority,United Kingdom Atomic energy Authority,01/02/2014,SUBSISTENCE,SUPPORT SERVICES,EMPLOYEES EXPENSES,100713800,65.83
United Kingdom Atomic energy Authority,United Kingdom Atomic energy Authority,01/02/2014,ROAD TRAVEL,SUPPORT SERVICES,EMPLOYEES EXPENSES,100713800,36.58
United Kingdom Atomic energy Authority,United Kingdom Atomic energy Authority,01/02/2014,TAXIS,SUPPORT SERVICES,EMPLOYEES EXPENSES,100713801,59.20
United Kingdom Atomic energy Authority,United Kingdom Atomic energy Authority,01/02/2014,RAIL TRAVEL,SUPPORT SERVICES,EMPLOYEES EXPENSES,100713801,94.75
United Kingdom Atomic energy Authority,United Kingdom Atomic energy Authority,01/02/2014,ROAD TRAVEL,SUPPORT SERVICES,EMPLOYEES EXPENSES,100713801,42.00
United Kingdom Atomic energy Authority,United Kingdom Atomic energy Authority,01/02/2014,TAXIS,SUPPORT SERVICES,EMPLOYEES EXPENSES,100713802,48.00
United Kingdom Atomic energy Authority,United Kingdom Atomic energy Authority,01/02/2014,SUBSISTENCE,SUPPORT SERVICES,EMPLOYEES EXPENSES,100713802,4.00
United Kingdom Atomic energy Authority,United Kingdom Atomic energy Authority,01/02/2014,RAIL TRAVEL,SUPPORT SERVICES,EMPLOYEES EXPENSES,100713802,85.00
United Kingdom Atomic energy Authority,United Kingdom Atomic energy Authority,01/02/2014,ROAD TRAVEL,SUPPORT SERVICES,EMPLOYEES EXPENSES,100713802,27.17
United Kingdom Atomic energy Authority,United Kingdom Atomic energy Authority,01/02/2014,TAXIS,SUPPORT SERVICES,EMPLOYEES EXPENSES,100713803,29.00
United Kingdom Atomic energy Authority,United Kingdom Atomic energy Authority,01/02/2014,RAIL TRAVEL,SUPPORT SERVICES,EMPLOYEES EXPENSES,100713803,85.00
United Kingdom Atomic energy Authority,United Kingdom Atomic energy Authority,01/02/2014,ROAD TRAVEL,SUPPORT SERVICES,EMPLOYEES EXPENSES,100713803,27.17
United Kingdom Atomic energy Authority,United Kingdom Atomic energy Authority,06/02/2014,SUBSISTENCE,SUPPORT SERVICES,EMPLOYEES EXPENSES,100713857,2.17
United Kingdom Atomic energy Authority,United Kingdom Atomic energy Authority,06/02/2014,AIR TRAVEL,SUPPORT SERVICES,EMPLOYEES EXPENSES,100713857,91.86
United Kingdom Atomic energy Authority,United Kingdom Atomic energy Authority,06/02/2014,RAIL TRAVEL,SUPPORT SERVICES,EMPLOYEES EXPENSES,100713857,40.00
United Kingdom Atomic energy Authority,United Kingdom Atomic energy Authority,06/02/2014,TAXIS,SUPPORT SERVICES,EMPLOYEES EXPENSES,100713858,58.23
United Kingdom Atomic energy Authority,United Kingdom Atomic energy Authority,06/02/2014,SUBSISTENCE,SUPPORT SERVICES,EMPLOYEES EXPENSES,100713858,9.20
United Kingdom Atomic energy Authority,United Kingdom Atomic energy Authority,06/02/2014,ROAD TRAVEL,SUPPORT SERVICES,EMPLOYEES EXPENSES,100713858,29.00
United Kingdom Atomic energy Authority,United Kingdom Atomic energy Authority,14/02/2014,OTHER EMPLOYEE EXPENSES,SUPPORT SERVICES,EMPLOYEES EXPENSES,100713942,9.50
United Kingdom Atomic energy Authority,United Kingdom Atomic energy Authority,14/02/2014,PROFESSIONAL SUBSCRIPTION,SUPPORT SERVICES,EMPLOYEES EXPENSES,100713942,205.00
United Kingdom Atomic energy Authority,United Kingdom Atomic energy Authority,12/02/2014,MATERIALS & SPARES,FUSION,Enclustra GmbH,5100299521,5585.55
United Kingdom Atomic energy Authority,United Kingdom Atomic energy Authority,05/02/2014,PROFESSIONAL SERVICES,FUSION,ENERGY SAFETY AND RISK CONSULTANTS,5100299341,7694.1
United Kingdom Atomic energy Authority,United Kingdom Atomic energy Authority,27/01/2014,REGULATORY COSTS,FUSION,ENVIRONMENT AGENCY THAMES REGION,5100298058,10
United Kingdom Atomic energy Authority,United Kingdom Atomic energy Authority,10/02/2014,MATERIALS & SPARES,FUSION,ERIKS UK,5100299551,241.48
United Kingdom Atomic energy Authority,United Kingdom Atomic energy Authority,05/02/2014,PROFESSIONAL SERVICES,FUSION,ESR TECHNOLOGY LTD,5100299382,2070
United Kingdom Atomic energy Authority,United Kingdom Atomic energy Authority,10/02/2014,MATERIALS & SPARES,FUSION,ETPS LTD,5100299506,3240
United Kingdom Atomic energy Authority,United Kingdom Atomic energy Authority,06/02/2014,OTHER EXTERNAL COSTS,FUSION,European Physical Society,1900059421," 2,483.03"
United Kingdom Atomic energy Authority,United Kingdom Atomic energy Authority,27/01/2014,PROFESSIONAL SERVICES,SUPPORT SERVICES,EXCEL GLOBAL LTD,5100298937,330
United Kingdom Atomic energy Authority,United Kingdom Atomic energy Authority,03/02/2014,PROFESSIONAL SERVICES,FUSION,FAITHFUL & GOULD,5100299152,26949
United Kingdom Atomic energy Authority,United Kingdom Atomic energy Authority,19/02/2014,IT SOFTWARE,FUSION,FalconStor Software Ltd,5100300274,39642.41
United Kingdom Atomic energy Authority,United Kingdom Atomic energy Authority,03/02/2014,MATERIALS & SPARES,FUSION,FARNELL ELECTRONIC,5100299315,1.16
United Kingdom Atomic energy Authority,United Kingdom Atomic energy Authority,17/02/2014,MATERIALS & SPARES,FUSION,FARNELL ELECTRONIC,5100299939,965
United Kingdom Atomic energy Authority,United Kingdom Atomic energy Authority,17/02/2014,MATERIALS & SPARES,FUSION,FARNELL ELECTRONIC,5100300005,102.58
United Kingdom Atomic energy Authority,United Kingdom Atomic energy Authority,27/01/2014,MATERIALS & SPARES,FUSION,FARNELL ELECTRONIC,5100298921,104.46
United Kingdom Atomic energy Authority,United Kingdom Atomic energy Authority,03/02/2014,MATERIALS & SPARES,FUSION,FARNELL ELECTRONIC,5100299245,49.32
United Kingdom Atomic energy Authority,United Kingdom Atomic energy Authority,10/02/2014,MATERIALS & SPARES,FUSION,FARNELL ELECTRONIC,5100299704,1.2
United Kingdom Atomic energy Authority,United Kingdom Atomic energy Authority,10/02/2014,MATERIALS & SPARES,FUSION,FARNELL ELECTRONIC,5100299776,59.92
United Kingdom Atomic energy Authority,United Kingdom Atomic energy Authority,19/02/2014,MATERIALS & SPARES,FUSION,FARNELL ELECTRONIC,5100299860,78.31
United Kingdom Atomic energy Authority,United Kingdom Atomic energy Authority,19/02/2014,MATERIALS & SPARES,FUSION,FARNELL ELECTRONIC,5100299711,16.15
United Kingdom Atomic energy Authority,United Kingdom Atomic energy Authority,19/02/2014,MATERIALS & SPARES,FUSION,FARNELL ELECTRONIC,5100299777,1274.92
United Kingdom Atomic energy Authority,United Kingdom Atomic energy Authority,19/02/2014,MATERIALS & SPARES,FUSION,FARNELL ELECTRONIC,5100299868,1550.81
United Kingdom Atomic energy Authority,United Kingdom Atomic energy Authority,19/02/2014,MATERIALS & SPARES,FUSION,FARNELL ELECTRONIC,5100299869,247.37
United Kingdom Atomic energy Authority,United Kingdom Atomic energy Authority,19/02/2014,MATERIALS & SPARES,FUSION,FARNELL ELECTRONIC,5100299872,3.36
United Kingdom Atomic energy Authority,United Kingdom Atomic energy Authority,17/02/2014,MATERIALS & SPARES,FUSION,FARNELL ELECTRONIC,5100299925,365.88
United Kingdom Atomic energy Authority,United Kingdom Atomic energy Authority,10/02/2014,MATERIALS & SPARES,FUSION,FARNELL ELECTRONIC,5100295395,21
United Kingdom Atomic energy Authority,United Kingdom Atomic energy Authority,27/01/2014,MATERIALS & SPARES,FUSION,FARNELL ELECTRONIC,5100298966,168.79
United Kingdom Atomic energy Authority,United Kingdom Atomic energy Authority,29/01/2014,MATERIALS & SPARES,FUSION,FARNELL ELECTRONIC,5100299157,230.04
United Kingdom Atomic energy Authority,United Kingdom Atomic energy Authority,03/02/2014,MATERIALS & SPARES,FUSION,FARNELL ELECTRONIC,5100299235,133.46
United Kingdom Atomic energy Authority,United Kingdom Atomic energy Authority,03/02/2014,MATERIALS & SPARES,FUSION,FARNELL ELECTRONIC,5100299295,93.62
United Kingdom Atomic energy Authority,United Kingdom Atomic energy Authority,03/02/2014,MATERIALS & SPARES,FUSION,FARNELL ELECTRONIC,5100299467,37.59
United Kingdom Atomic energy Authority,United Kingdom Atomic energy Authority,10/02/2014,MATERIALS & SPARES,FUSION,FARNELL ELECTRONIC,5100299772,84.85
United Kingdom Atomic energy Authority,United Kingdom Atomic energy Authority,10/02/2014,MATERIALS & SPARES,FUSION,FARNELL ELECTRONIC,5100299774,34
United Kingdom Atomic energy Authority,United Kingdom Atomic energy Authority,17/02/2014,MATERIALS & SPARES,FUSION,FARNELL ELECTRONIC,5100299942,100
United Kingdom Atomic energy Authority,United Kingdom Atomic energy Authority,29/01/2014,MATERIALS & SPARES,FUSION,FARNELL ELECTRONIC,5100298715,129.86
United Kingdom Atomic energy Authority,United Kingdom Atomic energy Authority,29/01/2014,MATERIALS & SPARES,FUSION,FARNELL ELECTRONIC,5100298716,60.26
United Kingdom Atomic energy Authority,United Kingdom Atomic energy Authority,29/01/2014,MATERIALS & SPARES,FUSION,FARNELL ELECTRONIC,5100298910,160.1
United Kingdom Atomic energy Authority,United Kingdom Atomic energy Authority,27/01/2014,MATERIALS & SPARES,FUSION,FARNELL ELECTRONIC,5100298917,1.66
United Kingdom Atomic energy Authority,United Kingdom Atomic energy Authority,27/01/2014,MATERIALS & SPARES,FUSION,FARNELL ELECTRONIC,5100298918,5.24
United Kingdom Atomic energy Authority,United Kingdom Atomic energy Authority,29/01/2014,MATERIALS & SPARES,FUSION,FARNELL ELECTRONIC,5100298920,110.82
United Kingdom Atomic energy Authority,United Kingdom Atomic energy Authority,29/01/2014,MATERIALS & SPARES,FUSION,FARNELL ELECTRONIC,5100299018,353.02
United Kingdom Atomic energy Authority,United Kingdom Atomic energy Authority,03/02/2014,MATERIALS & SPARES,FUSION,FARNELL ELECTRONIC,5100299232,126.98
United Kingdom Atomic energy Authority,United Kingdom Atomic energy Authority,03/02/2014,MATERIALS & SPARES,FUSION,FARNELL ELECTRONIC,5100299241,810.05
United Kingdom Atomic energy Authority,United Kingdom Atomic energy Authority,03/02/2014,MATERIALS & SPARES,FUSION,FARNELL ELECTRONIC,5100299294,1.74
United Kingdom Atomic energy Authority,United Kingdom Atomic energy Authority,03/02/2014,MATERIALS & SPARES,FUSION,FARNELL ELECTRONIC,5100299320,97.68
United Kingdom Atomic energy Authority,United Kingdom Atomic energy Authority,05/02/2014,MATERIALS & SPARES,FUSION,FARNELL ELECTRONIC,5100299385,115.23
United Kingdom Atomic energy Authority,United Kingdom Atomic energy Authority,05/02/2014,MATERIALS & SPARES,FUSION,FARNELL ELECTRONIC,5100299386,190.12
United Kingdom Atomic energy Authority,United Kingdom Atomic energy Authority,03/02/2014,MATERIALS & SPARES,FUSION,FARNELL ELECTRONIC,5100299466,86.13
United Kingdom Atomic energy Authority,United Kingdom Atomic energy Authority,10/02/2014,MATERIALS & SPARES,FUSION,FARNELL ELECTRONIC,5100299707,67.33
United Kingdom Atomic energy Authority,United Kingdom Atomic energy Authority,10/02/2014,MATERIALS & SPARES,FUSION,FARNELL ELECTRONIC,5100299708,109.64
United Kingdom Atomic energy Authority,United Kingdom Atomic energy Authority,10/02/2014,MATERIALS & SPARES,FUSION,FARNELL ELECTRONIC,5100299709,2.62
United Kingdom Atomic energy Authority,United Kingdom Atomic energy Authority,10/02/2014,MATERIALS & SPARES,FUSION,FARNELL ELECTRONIC,5100299773,140.59
United Kingdom Atomic energy Authority,United Kingdom Atomic energy Authority,10/02/2014,MATERIALS & SPARES,FUSION,FARNELL ELECTRONIC,5100299779,60.4
United Kingdom Atomic energy Authority,United Kingdom Atomic energy Authority,17/02/2014,MATERIALS & SPARES,FUSION,FARNELL ELECTRONIC,5100299861,23.36
United Kingdom Atomic energy Authority,United Kingdom Atomic energy Authority,17/02/2014,MATERIALS & SPARES,FUSION,FARNELL ELECTRONIC,5100299862,81.69
United Kingdom Atomic energy Authority,United Kingdom Atomic energy Authority,17/02/2014,MATERIALS & SPARES,FUSION,FARNELL ELECTRONIC,5100299863,41.85
United Kingdom Atomic energy Authority,United Kingdom Atomic energy Authority,17/02/2014,MATERIALS & SPARES,FUSION,FARNELL ELECTRONIC,5100299882,5.4
United Kingdom Atomic energy Authority,United Kingdom Atomic energy Authority,17/02/2014,MATERIALS & SPARES,FUSION,FARNELL ELECTRONIC,5100299884,107.13
United Kingdom Atomic energy Authority,United Kingdom Atomic energy Authority,17/02/2014,MATERIALS & SPARES,FUSION,FARNELL ELECTRONIC,5100299899,10.36
United Kingdom Atomic energy Authority,United Kingdom Atomic energy Authority,17/02/2014,MATERIALS & SPARES,FUSION,FARNELL ELECTRONIC,5100299900,168.93
United Kingdom Atomic energy Authority,United Kingdom Atomic energy Authority,17/02/2014,MATERIALS & SPARES,FUSION,FARNELL ELECTRONIC,5100299901,2.23
United Kingdom Atomic energy Authority,United Kingdom Atomic energy Authority,17/02/2014,MATERIALS & SPARES,FUSION,FARNELL ELECTRONIC,5100299940,231.45
United Kingdom Atomic energy Authority,United Kingdom Atomic energy Authority,17/02/2014,MATERIALS & SPARES,FUSION,FARNELL ELECTRONIC,5100299941,19.26
United Kingdom Atomic energy Authority,United Kingdom Atomic energy Authority,17/02/2014,MATERIALS & SPARES,FUSION,FARNELL ELECTRONIC,5100300016,97.45
United Kingdom Atomic energy Authority,United Kingdom Atomic energy Authority,27/01/2014,MATERIALS & SPARES,FUSION,FARNELL ELECTRONIC,5100298919,72.61
United Kingdom Atomic energy Authority,United Kingdom Atomic energy Authority,03/02/2014,MATERIALS & SPARES,FUSION,FARNELL ELECTRONIC,5100299234,19.14
United Kingdom Atomic energy Authority,United Kingdom Atomic energy Authority,05/02/2014,MATERIALS & SPARES,FUSION,FARNELL ELECTRONIC,5100299313,244.39
United Kingdom Atomic energy Authority,United Kingdom Atomic energy Authority,10/02/2014,MATERIALS & SPARES,FUSION,FARNELL ELECTRONIC,5100299710,2.7
United Kingdom Atomic energy Authority,United Kingdom Atomic energy Authority,10/02/2014,MATERIALS & SPARES,FUSION,FARNELL ELECTRONIC,5100299775,37.11
United Kingdom Atomic energy Authority,United Kingdom Atomic energy Authority,17/02/2014,MATERIALS & SPARES,FUSION,FARNELL ELECTRONIC,5100299883,34.84
United Kingdom Atomic energy Authority,United Kingdom Atomic energy Authority,17/02/2014,MATERIALS & SPARES,FUSION,FARNELL ELECTRONIC,5100299897,23.35
United Kingdom Atomic energy Authority,United Kingdom Atomic energy Authority,27/01/2014,MATERIALS & SPARES,FUSION,FARNELL ELECTRONIC,5100299022,84.92
United Kingdom Atomic energy Authority,United Kingdom Atomic energy Authority,03/02/2014,MATERIALS & SPARES,FUSION,FARNELL ELECTRONIC,5100299296,146
United Kingdom Atomic energy Authority,United Kingdom Atomic energy Authority,03/02/2014,MATERIALS & SPARES,FUSION,FARNELL ELECTRONIC,5100299314,7.8
United Kingdom Atomic energy Authority,United Kingdom Atomic energy Authority,10/02/2014,MATERIALS & SPARES,FUSION,FARNELL ELECTRONIC,5100299778,57
United Kingdom Atomic energy Authority,United Kingdom Atomic energy Authority,17/02/2014,MATERIALS & SPARES,FUSION,FARNELL ELECTRONIC,5100299927,12.46
United Kingdom Atomic energy Authority,United Kingdom Atomic energy Authority,17/02/2014,MATERIALS & SPARES,FUSION,FARNELL ELECTRONIC,5100299928,5.02
United Kingdom Atomic energy Authority,United Kingdom Atomic energy Authority,17/02/2014,MATERIALS & SPARES,FUSION,FARNELL ELECTRONIC,5100299936,658.6
United Kingdom Atomic energy Authority,United Kingdom Atomic energy Authority,17/02/2014,MATERIALS & SPARES,FUSION,FARNELL ELECTRONIC,5100299944,2634.4
United Kingdom Atomic energy Authority,United Kingdom Atomic energy Authority,27/01/2014,MATERIALS & SPARES,FUSION,FARNELL ELECTRONIC,5100299014,31.82
United Kingdom Atomic energy Authority,United Kingdom Atomic energy Authority,27/01/2014,MATERIALS & SPARES,FUSION,FARNELL ELECTRONIC,5100299017,21.83
United Kingdom Atomic energy Authority,United Kingdom Atomic energy Authority,27/01/2014,MATERIALS & SPARES,FUSION,FARNELL ELECTRONIC,5100299156,12.83
United Kingdom Atomic energy Authority,United Kingdom Atomic energy Authority,17/02/2014,MATERIALS & SPARES,FUSION,FARNELL ELECTRONIC,5100299864,105.97
United Kingdom Atomic energy Authority,United Kingdom Atomic energy Authority,17/02/2014,MATERIALS & SPARES,FUSION,FARNELL ELECTRONIC,5100299886,13.26
United Kingdom Atomic energy Authority,United Kingdom Atomic energy Authority,10/02/2014,MATERIALS & SPARES,FUSION,FARNELL ELECTRONIC,5100294235,5.75
United Kingdom Atomic energy Authority,United Kingdom Atomic energy Authority,27/01/2014,MATERIALS & SPARES,FUSION,FARNELL ELECTRONIC,5100298909,369.41
United Kingdom Atomic energy Authority,United Kingdom Atomic energy Authority,27/01/2014,MATERIALS & SPARES,FUSION,FARNELL ELECTRONIC,5100298916,43.68
United Kingdom Atomic energy Authority,United Kingdom Atomic energy Authority,27/01/2014,MATERIALS & SPARES,FUSION,FARNELL ELECTRONIC,5100299114,168.37
United Kingdom Atomic energy Authority,United Kingdom Atomic energy Authority,03/02/2014,MATERIALS & SPARES,FUSION,FARNELL ELECTRONIC,5100299292,35.39
United Kingdom Atomic energy Authority,United Kingdom Atomic energy Authority,05/02/2014,MATERIALS & SPARES,FUSION,FARNELL ELECTRONIC,5100299318,103.61
United Kingdom Atomic energy Authority,United Kingdom Atomic energy Authority,03/02/2014,MATERIALS & SPARES,FUSION,FARNELL ELECTRONIC,5100299390,135.84
United Kingdom Atomic energy Authority,United Kingdom Atomic energy Authority,12/02/2014,MATERIALS & SPARES,FUSION,FARNELL ELECTRONIC,5100299705,296.43
United Kingdom Atomic energy Authority,United Kingdom Atomic energy Authority,10/02/2014,MATERIALS & SPARES,FUSION,FARNELL ELECTRONIC,5100299706,36.94
United Kingdom Atomic energy Authority,United Kingdom Atomic energy Authority,17/02/2014,MATERIALS & SPARES,FUSION,FARNELL ELECTRONIC,5100299870,82.12
United Kingdom Atomic energy Authority,United Kingdom Atomic energy Authority,17/02/2014,MATERIALS & SPARES,FUSION,FARNELL ELECTRONIC,5100299885,91.21
United Kingdom Atomic energy Authority,United Kingdom Atomic energy Authority,17/02/2014,MATERIALS & SPARES,FUSION,FARNELL ELECTRONIC,5100299898,251.8
United Kingdom Atomic energy Authority,United Kingdom Atomic energy Authority,17/02/2014,MATERIALS & SPARES,FUSION,FARNELL ELECTRONIC,5100299926,7.45
United Kingdom Atomic energy Authority,United Kingdom Atomic energy Authority,17/02/2014,MATERIALS & SPARES,FUSION,FARNELL ELECTRONIC,5100300006,26.4
United Kingdom Atomic energy Authority,United Kingdom Atomic energy Authority,17/02/2014,MATERIALS & SPARES,FUSION,FARNELL ELECTRONIC,5100300023,187.11
United Kingdom Atomic energy Authority,United Kingdom Atomic energy Authority,03/02/2014,MATERIALS & SPARES,FUSION,FARNELL ELECTRONIC,5100299236,195.22
United Kingdom Atomic energy Authority,United Kingdom Atomic energy Authority,05/02/2014,MATERIALS & SPARES,FUSION,FARNELL ELECTRONIC,5100299321,19.06
United Kingdom Atomic energy Authority,United Kingdom Atomic energy Authority,03/02/2014,MATERIALS & SPARES,FUSION,FARNELL ELECTRONIC,5100299468,198.12
United Kingdom Atomic energy Authority,United Kingdom Atomic energy Authority,17/02/2014,MATERIALS & SPARES,FUSION,FARNELL ELECTRONIC,5100299871,9.54
United Kingdom Atomic energy Authority,United Kingdom Atomic energy Authority,27/01/2014,MATERIALS & SPARES,FUSION,FARNELL ELECTRONIC,5100299016,48.44
United Kingdom Atomic energy Authority,United Kingdom Atomic energy Authority,10/02/2014,MATERIALS & SPARES,FUSION,FARNELL ELECTRONIC,5100296833,61.2
United Kingdom Atomic energy Authority,United Kingdom Atomic energy Authority,27/01/2014,MATERIALS & SPARES,FUSION,FARNELL ELECTRONIC,5100299021,387.7
United Kingdom Atomic energy Authority,United Kingdom Atomic energy Authority,27/01/2014,MATERIALS & SPARES,FUSION,FARNELL ELECTRONIC,5100299112,20.94
United Kingdom Atomic energy Authority,United Kingdom Atomic energy Authority,17/02/2014,MATERIALS & SPARES,FUSION,FARNELL ELECTRONIC,5100299880,33
United Kingdom Atomic energy Authority,United Kingdom Atomic energy Authority,27/01/2014,MATERIALS & SPARES,FUSION,FARNELL ELECTRONIC,5100297172,42.38
United Kingdom Atomic energy Authority,United Kingdom Atomic energy Authority,03/02/2014,MATERIALS & SPARES,FUSION,FARNELL ELECTRONIC,5100299233,4.8
United Kingdom Atomic energy Authority,United Kingdom Atomic energy Authority,03/02/2014,MATERIALS & SPARES,FUSION,FARNELL ELECTRONIC,5100299240,75.3
United Kingdom Atomic energy Authority,United Kingdom Atomic energy Authority,03/02/2014,MATERIALS & SPARES,FUSION,FARNELL ELECTRONIC,5100299243,740.85
United Kingdom Atomic energy Authority,United Kingdom Atomic energy Authority,17/02/2014,MATERIALS & SPARES,FUSION,FARNELL ELECTRONIC,5100299937,112
United Kingdom Atomic energy Authority,United Kingdom Atomic energy Authority,17/02/2014,MATERIALS & SPARES,FUSION,FARNELL ELECTRONIC,5100299943,62.8
United Kingdom Atomic energy Authority,United Kingdom Atomic energy Authority,03/02/2014,MATERIALS & SPARES,FUSION,FARNELL ELECTRONIC,5100299231,53.45
United Kingdom Atomic energy Authority,United Kingdom Atomic energy Authority,03/02/2014,MATERIALS & SPARES,FUSION,FARNELL ELECTRONIC,5100299244,242.41
United Kingdom Atomic energy Authority,United Kingdom Atomic energy Authority,03/02/2014,MATERIALS & SPARES,FUSION,FARNELL ELECTRONIC,5100299293,134.83
United Kingdom Atomic energy Authority,United Kingdom Atomic energy Authority,17/02/2014,MATERIALS & SPARES,FUSION,FARNELL ELECTRONIC,5100299867,158.58
United Kingdom Atomic energy Authority,United Kingdom Atomic energy Authority,27/01/2014,MATERIALS & SPARES,FUSION,FARNELL ELECTRONIC,5100298908,7.84
United Kingdom Atomic energy Authority,United Kingdom Atomic energy Authority,17/02/2014,MATERIALS & SPARES,FUSION,FARNELL ELECTRONIC,5100300024,327.06
United Kingdom Atomic energy Authority,United Kingdom Atomic energy Authority,27/01/2014,PLANT & EQUIPMENT,FUSION,FESTO LTD,5100298902,2181.48
United Kingdom Atomic energy Authority,United Kingdom Atomic energy Authority,27/01/2014,CONSUMABLES,FUSION,FIRST AID WAREHOUSE,5100299111,107.9
United Kingdom Atomic energy Authority,United Kingdom Atomic energy Authority,27/01/2014,PLANT & EQUIPMENT,SUPPORT SERVICES,FISHER SCIENTIFIC UK LTD,5100298936,252.98
United Kingdom Atomic energy Authority,United Kingdom Atomic energy Authority,27/01/2014,PLANT & EQUIPMENT,SUPPORT SERVICES,FISHER SCIENTIFIC UK LTD,5100299147,368
United Kingdom Atomic energy Authority,United Kingdom Atomic energy Authority,03/02/2014,PLANT & EQUIPMENT,FUSION,FISHER SCIENTIFIC UK LTD,5100298752,28.31
United Kingdom Atomic energy Authority,United Kingdom Atomic energy Authority,03/02/2014,PLANT & EQUIPMENT,FUSION,FISHER SCIENTIFIC UK LTD,5100299439,20.06
United Kingdom Atomic energy Authority,United Kingdom Atomic energy Authority,27/01/2014,PLANT & EQUIPMENT,FUSION,FISHER SCIENTIFIC UK LTD,5100298934,186.56
United Kingdom Atomic energy Authority,United Kingdom Atomic energy Authority,27/01/2014,PLANT & EQUIPMENT,FUSION,FISHER SCIENTIFIC UK LTD,5100299118,119.85
United Kingdom Atomic energy Authority,United Kingdom Atomic energy Authority,27/01/2014,PLANT & EQUIPMENT,FUSION,FISHER SCIENTIFIC UK LTD,5100298935,1963.86
United Kingdom Atomic energy Authority,United Kingdom Atomic energy Authority,17/02/2014,PLANT & EQUIPMENT,FUSION,FISHER SCIENTIFIC UK LTD,5100299787,992.88
United Kingdom Atomic energy Authority,United Kingdom Atomic energy Authority,17/02/2014,PLANT & EQUIPMENT,FUSION,FISHER SCIENTIFIC UK LTD,5100300008,234.61
United Kingdom Atomic energy Authority,United Kingdom Atomic energy Authority,05/02/2014,PLANT & EQUIPMENT,FUSION,FISHER SCIENTIFIC UK LTD,5100298576,85.97
United Kingdom Atomic energy Authority,United Kingdom Atomic energy Authority,03/02/2014,PLANT & EQUIPMENT,FUSION,FISHER SCIENTIFIC UK LTD,5100299146,49.3
United Kingdom Atomic energy Authority,United Kingdom Atomic energy Authority,05/02/2014,PLANT & EQUIPMENT,FUSION,FISHER SCIENTIFIC UK LTD,5100299440,20.86
United Kingdom Atomic energy Authority,United Kingdom Atomic energy Authority,03/02/2014,CONSUMABLES,FUSION,Flame Spray Technologies Ltd,5100299291,935
United Kingdom Atomic energy Authority,United Kingdom Atomic energy Authority,29/01/2014,MATERIALS & SPARES,FUSION,FORGEWELD LTD,5100298844,112
United Kingdom Atomic energy Authority,United Kingdom Atomic energy Authority,03/02/2014,MATERIALS & SPARES,FUSION,FORGEWELD LTD,5100299166,472.33
United Kingdom Atomic energy Authority,United Kingdom Atomic energy Authority,03/02/2014,MATERIALS & SPARES,FUSION,FORGEWELD LTD,5100299167,1199
United Kingdom Atomic energy Authority,United Kingdom Atomic energy Authority,03/02/2014,MATERIALS & SPARES,FUSION,FORGEWELD LTD,5100299169,102
United Kingdom Atomic energy Authority,United Kingdom Atomic energy Authority,03/02/2014,MATERIALS & SPARES,FUSION,FORGEWELD LTD,5100299170,131.2
United Kingdom Atomic energy Authority,United Kingdom Atomic energy Authority,17/02/2014,MATERIALS & SPARES,FUSION,FORGEWELD LTD,5100299784,1987.8
United Kingdom Atomic energy Authority,United Kingdom Atomic energy Authority,17/02/2014,MATERIALS & SPARES,FUSION,FORGEWELD LTD,5100300004,470.07
United Kingdom Atomic energy Authority,United Kingdom Atomic energy Authority,03/02/2014,MATERIALS & SPARES,FUSION,FORGEWELD LTD,5100299168,781.89
United Kingdom Atomic energy Authority,United Kingdom Atomic energy Authority,03/02/2014,MATERIALS & SPARES,FUSION,FORGEWELD LTD,5100299311,1987.8
United Kingdom Atomic energy Authority,United Kingdom Atomic energy Authority,17/02/2014,MATERIALS & SPARES,FUSION,FORGEWELD LTD,5100299419,784.36
United Kingdom Atomic energy Authority,United Kingdom Atomic energy Authority,19/02/2014,EFDA SECONDEE CONTRACT,FUSION,FORSCHUNGSZENTRUM JULICH,5100299141,18422.59
United Kingdom Atomic energy Authority,United Kingdom Atomic energy Authority,03/02/2014,MATERIALS & SPARES,FUSION,FORWARD 2000 LTD,5100299476,102.5
United Kingdom Atomic energy Authority,United Kingdom Atomic energy Authority,27/01/2014,MATERIALS & SPARES,FUSION,FORWARD 2000 LTD,5100299003,255
United Kingdom Atomic energy Authority,United Kingdom Atomic energy Authority,17/02/2014,MATERIALS & SPARES,FUSION,FORWARD 2000 LTD,5100299905,151.18
United Kingdom Atomic energy Authority,United Kingdom Atomic energy Authority,03/02/2014,MATERIALS & SPARES,FUSION,Future Alloys Ltd,1900059401, 510.00
United Kingdom Atomic energy Authority,United Kingdom Atomic energy Authority,10/02/2014,MATERIALS & SPARES,FUSION,GARNER OSBORNE CIRCUITS LTD,5100299073,314.2
United Kingdom Atomic energy Authority,United Kingdom Atomic energy Authority,29/01/2014,MATERIALS & SPARES,FUSION,GARNER OSBORNE CIRCUITS LTD,5100299130,328
United Kingdom Atomic energy Authority,United Kingdom Atomic energy Authority,03/02/2014,HIRED STAFF,FUSION,GENTLE ASSOCIATES LTD,5100299375,3898.24
United Kingdom Atomic energy Authority,United Kingdom Atomic energy Authority,05/02/2014,PROFESSIONAL SERVICES,FUSION,GLANVILLE CONSULTANTS,5100299425,1450.12
United Kingdom Atomic energy Authority,United Kingdom Atomic energy Authority,17/02/2014,PROFESSIONAL SERVICES,PROPERTY,GLANVILLE CONSULTANTS,5100299851,135.92
United Kingdom Atomic energy Authority,United Kingdom Atomic energy Authority,17/02/2014,PROFESSIONAL SERVICES,PROPERTY,GLANVILLE CONSULTANTS,5100299850,3507.99
United Kingdom Atomic energy Authority,United Kingdom Atomic energy Authority,10/02/2014,PLANT & EQUIPMENT,FUSION,GLENAIR UK LTD,5100299190,106.8
United Kingdom Atomic energy Authority,United Kingdom Atomic energy Authority,27/01/2014,PLANT & EQUIPMENT,FUSION,GOODFELLOW CAMBRIDGE LTD,5100299061,230
United Kingdom Atomic energy Authority,United Kingdom Atomic energy Authority,27/01/2014,PLANT & EQUIPMENT,FUSION,GOODFELLOW CAMBRIDGE LTD,5100299145,89.5
United Kingdom Atomic energy Authority,United Kingdom Atomic energy Authority,03/02/2014,PROFESSIONAL SERVICES,SUPPORT SERVICES,Government Actuary's Department,5100299470,39357.26
United Kingdom Atomic energy Authority,United Kingdom Atomic energy Authority,03/02/2014,PROFESSIONAL SERVICES,SUPPORT SERVICES,Government Actuary's Department,5100299472,32549.94
United Kingdom Atomic energy Authority,United Kingdom Atomic energy Authority,03/02/2014,PROFESSIONAL SERVICES,SUPPORT SERVICES,Government Actuary's Department,5100299473,35844.63
United Kingdom Atomic energy Authority,United Kingdom Atomic energy Authority,10/02/2014,PLANT & EQUIPMENT,FUSION,GRANT INSTRUMENTS LTD,5100299654,489
United Kingdom Atomic energy Authority,United Kingdom Atomic energy Authority,12/02/2014,GRANTS & AWARDS,FUSION,GRANTS & AWARDS,1900059438," 2,420.00"
United Kingdom Atomic energy Authority,United Kingdom Atomic energy Authority,10/02/2014,REPAIRS & MAINTENANCE,FUSION,GUYSON INTERNATIONAL,5100299492,595.39
United Kingdom Atomic energy Authority,United Kingdom Atomic energy Authority,10/02/2014,PROFESSIONAL SERVICES,PROPERTY,GVA GRIMLEY,5100299482,4759.24
United Kingdom Atomic energy Authority,United Kingdom Atomic energy Authority,10/02/2014,TAXIS,FUSION,HAROLDS CARS,5100299610,2768.73
United Kingdom Atomic energy Authority,United Kingdom Atomic energy Authority,05/02/2014,,SUPPORT SERVICES,Harwell RFC,1900059408, 759.84
United Kingdom Atomic energy Authority,United Kingdom Atomic energy Authority,12/02/2014,MATERIALS & SPARES,FUSION,Helander Precision Engineering Limited,5100299368,3557.34
United Kingdom Atomic energy Authority,United Kingdom Atomic energy Authority,13/02/2014,CHARITABLE DONATIONS,SUPPORT SERVICES,Helen And Douglas House,1900059445, 150.00
United Kingdom Atomic energy Authority,United Kingdom Atomic energy Authority,03/02/2014,PLANT & EQUIPMENT,FUSION,HEWDEN,5100298559,797.5
United Kingdom Atomic energy Authority,United Kingdom Atomic energy Authority,27/01/2014,PROFESSIONAL SERVICES,FUSION,HILLS WASTE SOLUTIONS LTD,5100299065,70.47
United Kingdom Atomic energy Authority,United Kingdom Atomic energy Authority,03/02/2014,PROFESSIONAL SERVICES,FUSION,HILLS WASTE SOLUTIONS LTD,5100299365,210
United Kingdom Atomic energy Authority,United Kingdom Atomic energy Authority,10/02/2014,PROFESSIONAL SERVICES,FUSION,HILLS WASTE SOLUTIONS LTD,5100299613,637
United Kingdom Atomic energy Authority,United Kingdom Atomic energy Authority,29/01/2014,STATIONERY,FUSION,HOBS REPROGRAPHICS PLC,5100299176,529.25
United Kingdom Atomic energy Authority,United Kingdom Atomic energy Authority,19/02/2014,STATIONERY,FUSION,HOBS REPROGRAPHICS PLC,5100300026,120.75
United Kingdom Atomic energy Authority,United Kingdom Atomic energy Authority,10/02/2014,TRAVEL,SUPPORT SERVICES,Hogg Robinson(Travel)Ltd T/A HRG UK,5100299781,21215.14
United Kingdom Atomic energy Authority,United Kingdom Atomic energy Authority,03/02/2014,MATERIALS & SPARES,FUSION,HOTCHKISS AIR SUPPLY,5100299204,1368.06
United Kingdom Atomic energy Authority,United Kingdom Atomic energy Authority,27/01/2014,MATERIALS & SPARES,FUSION,Hoverdale (UK) Ltd,5100299002,200
United Kingdom Atomic energy Authority,United Kingdom Atomic energy Authority,27/01/2014,MATERIALS & SPARES,FUSION,Hoverdale (UK) Ltd,5100299131,3850
United Kingdom Atomic energy Authority,United Kingdom Atomic energy Authority,12/02/2014,MATERIALS & SPARES,FUSION,Hoverdale (UK) Ltd,5100299503,1498.75
United Kingdom Atomic energy Authority,United Kingdom Atomic energy Authority,10/02/2014,MATERIALS & SPARES,FUSION,Hoverdale (UK) Ltd,5100299692,5875
United Kingdom Atomic energy Authority,United Kingdom Atomic energy Authority,17/02/2014,MATERIALS & SPARES,FUSION,Hoverdale (UK) Ltd,5100299847,375
United Kingdom Atomic energy Authority,United Kingdom Atomic energy Authority,10/02/2014,MATERIALS & SPARES,FUSION,HPC GEARS LTD,5100299608,213.25
United Kingdom Atomic energy Authority,United Kingdom Atomic energy Authority,10/02/2014,MATERIALS & SPARES,FUSION,HPC GEARS LTD,5100299630,1275.19
United Kingdom Atomic energy Authority,United Kingdom Atomic energy Authority,29/01/2014,PROFESSIONAL SERVICES,SUPPORT SERVICES,HSE - FINANCIAL OPERATIONS,5100299082,1904.67
United Kingdom Atomic energy Authority,United Kingdom Atomic energy Authority,03/02/2014,PLANT & EQUIPMENT,FUSION,HT SERVO LTD,5100299201,16368
United Kingdom Atomic energy Authority,United Kingdom Atomic energy Authority,10/02/2014,PLANT & EQUIPMENT,FUSION,HT SERVO LTD,5100299578,6305
United Kingdom Atomic energy Authority,United Kingdom Atomic energy Authority,27/01/2014,PROFESSIONAL SERVICES,FUSION,HUTTON ENGINEERING (PRECISION) LTD,5100298997,1054.26
United Kingdom Atomic energy Authority,United Kingdom Atomic energy Authority,19/02/2014,MATERIALS & SPARES,FUSION,HV WOODING LIMITED,5100299310,139.68
United Kingdom Atomic energy Authority,United Kingdom Atomic energy Authority,03/02/2014,CLEANING,FUSION,HYDROBLAST,5100299287,410
United Kingdom Atomic energy Authority,United Kingdom Atomic energy Authority,10/02/2014,CLEANING,FUSION,HYDROBLAST,5100299577,440
United Kingdom Atomic energy Authority,United Kingdom Atomic energy Authority,17/02/2014,CLEANING,FUSION,HYDROBLAST,5100299918,1720
United Kingdom Atomic energy Authority,United Kingdom Atomic energy Authority,10/02/2014,PROFESSIONAL SERVICES,SUPPORT SERVICES,IET SERVICES LIMITED,5100299714,390
United Kingdom Atomic energy Authority,United Kingdom Atomic energy Authority,27/01/2014,MEDICAL EXPENSES,FUSION,IMASS LTD,5100299133,4985.41
United Kingdom Atomic energy Authority,United Kingdom Atomic energy Authority,10/02/2014,UNIVERSITY PLACEMENT,FUSION,IMPERIAL COLLEGE,5100299490,4174
United Kingdom Atomic energy Authority,United Kingdom Atomic energy Authority,10/02/2014,UNIVERSITY PLACEMENT,FUSION,IMPERIAL COLLEGE,5100299491,9383.35
United Kingdom Atomic energy Authority,United Kingdom Atomic energy Authority,29/01/2014,PLANT & EQUIPMENT,FUSION,INDUSTRIAL RUBBER PLC,5100299185,687.5
United Kingdom Atomic energy Authority,United Kingdom Atomic energy Authority,29/01/2014,PLANT & EQUIPMENT,FUSION,INDUSTRIAL RUBBER PLC,5100299186,1075
United Kingdom Atomic energy Authority,United Kingdom Atomic energy Authority,27/01/2014,MATERIALS & SPARES,FUSION,INFRANOR LIMITED,5100298895,5041.7
United Kingdom Atomic energy Authority,United Kingdom Atomic energy Authority,27/01/2014,PLANT & EQUIPMENT,FUSION,INSIGHT DIRECT LTD,5100299144,551.98
United Kingdom Atomic energy Authority,United Kingdom Atomic energy Authority,03/02/2014,PLANT & EQUIPMENT,FUSION,INSIGHT DIRECT LTD,5100299351,-11.99
United Kingdom Atomic energy Authority,United Kingdom Atomic energy Authority,17/02/2014,PLANT & EQUIPMENT,FUSION,INSIGHT DIRECT LTD,5100299961,24.98
United Kingdom Atomic energy Authority,United Kingdom Atomic energy Authority,03/02/2014,PLANT & EQUIPMENT,SUPPORT SERVICES,INSIGHT DIRECT LTD,5100299330,880.1
United Kingdom Atomic energy Authority,United Kingdom Atomic energy Authority,19/02/2014,PLANT & EQUIPMENT,FUSION,INSTRUMENT TECHNOLOGY LTD,5100299486,1560
United Kingdom Atomic energy Authority,United Kingdom Atomic energy Authority,21/02/2014,PLANT & EQUIPMENT,FUSION,INSTRUMENT TECHNOLOGY LTD,5100300430,-1560
United Kingdom Atomic energy Authority,United Kingdom Atomic energy Authority,21/02/2014,PLANT & EQUIPMENT,FUSION,INSTRUMENT TECHNOLOGY LTD,5100300432,1560
United Kingdom Atomic energy Authority,United Kingdom Atomic energy Authority,27/01/2014,PROFESSIONAL SERVICES,FUSION,INTEGRATE SYSTEMS ENGINEERING LTD,5100299109,6757
United Kingdom Atomic energy Authority,United Kingdom Atomic energy Authority,17/02/2014,PROFESSIONAL SERVICES,FUSION,INTEGRATE SYSTEMS ENGINEERING LTD,5100299845,3134
United Kingdom Atomic energy Authority,United Kingdom Atomic energy Authority,13/02/2014,INTERVIEW EXPENSES,FUSION,INTERVIEW EXPENSES,1900059450, 32.00
United Kingdom Atomic energy Authority,United Kingdom Atomic energy Authority,13/02/2014,INTERVIEW EXPENSES,FUSION,INTERVIEW EXPENSES,1900059466, 72.00
United Kingdom Atomic energy Authority,United Kingdom Atomic energy Authority,13/02/2014,INTERVIEW EXPENSES,FUSION,INTERVIEW EXPENSES,1900059453, 90.00
United Kingdom Atomic energy Authority,United Kingdom Atomic energy Authority,03/02/2014,INTERVIEW EXPENSES,FUSION,INTERVIEW EXPENSES,1900059396, 309.18
United Kingdom Atomic energy Authority,United Kingdom Atomic energy Authority,21/02/2014,INTERVIEW EXPENSES,FUSION,INTERVIEW EXPENSES,1900059489, 481.16
United Kingdom Atomic energy Authority,United Kingdom Atomic energy Authority,30/01/2014,INTERVIEW EXPENSES,FUSION,INTERVIEW EXPENSES,1900059394, 18.55
United Kingdom Atomic energy Authority,United Kingdom Atomic energy Authority,13/02/2014,INTERVIEW EXPENSES,FUSION,INTERVIEW EXPENSES,1900059455, 18.55
United Kingdom Atomic energy Authority,United Kingdom Atomic energy Authority,13/02/2014,INTERVIEW EXPENSES,FUSION,INTERVIEW EXPENSES,1900059456, 18.55
United Kingdom Atomic energy Authority,United Kingdom Atomic energy Authority,13/02/2014,INTERVIEW EXPENSES,FUSION,INTERVIEW EXPENSES,1900059457, 15.25
United Kingdom Atomic energy Authority,United Kingdom Atomic energy Authority,13/02/2014,INTERVIEW EXPENSES,FUSION,INTERVIEW EXPENSES,1900059458, 12.00
United Kingdom Atomic energy Authority,United Kingdom Atomic energy Authority,13/02/2014,INTERVIEW EXPENSES,FUSION,INTERVIEW EXPENSES,1900059459, 12.00
United Kingdom Atomic energy Authority,United Kingdom Atomic energy Authority,13/02/2014,INTERVIEW EXPENSES,FUSION,INTERVIEW EXPENSES,1900059460, 12.00
United Kingdom Atomic energy Authority,United Kingdom Atomic energy Authority,13/02/2014,INTERVIEW EXPENSES,FUSION,INTERVIEW EXPENSES,1900059461, 12.00
United Kingdom Atomic energy Authority,United Kingdom Atomic energy Authority,13/02/2014,INTERVIEW EXPENSES,FUSION,INTERVIEW EXPENSES,1900059452, 26.00
United Kingdom Atomic energy Authority,United Kingdom Atomic energy Authority,13/02/2014,INTERVIEW EXPENSES,FUSION,INTERVIEW EXPENSES,1900059454, 75.00
United Kingdom Atomic energy Authority,United Kingdom Atomic energy Authority,17/02/2014,PUBLICATIONS,FUSION,IOP PUBLISHING LTD,5100299950,843.75
United Kingdom Atomic energy Authority,United Kingdom Atomic energy Authority,17/02/2014,PUBLICATIONS,FUSION,IOP PUBLISHING LTD,5100299951,1068.75
United Kingdom Atomic energy Authority,United Kingdom Atomic energy Authority,17/02/2014,PUBLICATIONS,FUSION,IOP PUBLISHING LTD,5100299952,1125
United Kingdom Atomic energy Authority,United Kingdom Atomic energy Authority,17/02/2014,PUBLICATIONS,FUSION,IOP PUBLISHING LTD,5100299953,1500
United Kingdom Atomic energy Authority,United Kingdom Atomic energy Authority,10/02/2014,PLANT & EQUIPMENT,FUSION,IPM FITTINGS,5100299134,50.24
United Kingdom Atomic energy Authority,United Kingdom Atomic energy Authority,03/02/2014,PLANT & EQUIPMENT,FUSION,IPM FITTINGS,5100299308,33.3
United Kingdom Atomic energy Authority,United Kingdom Atomic energy Authority,14/02/2014,OTHER EXTERNAL COSTS,SUPPORT SERVICES,Irwin Mitchell LLP,1900059467," 3,631.01"
United Kingdom Atomic energy Authority,United Kingdom Atomic energy Authority,20/02/2014,OTHER EXTERNAL COSTS,SUPPORT SERVICES,Irwin Mitchell LLP,1900059486, 980.00
United Kingdom Atomic energy Authority,United Kingdom Atomic energy Authority,14/02/2014,,SUPPORT SERVICES,Irwin Mitchell LLP,1900059468," 6,811.40"
United Kingdom Atomic energy Authority,United Kingdom Atomic energy Authority,10/02/2014,MATERIALS & SPARES,FUSION,ISIS FLUID CONTROL LIMITED,5100299500,1333.95
United Kingdom Atomic energy Authority,United Kingdom Atomic energy Authority,17/02/2014,TRAINING COSTS,FUSION,ISIS TRAINING SERVICES LTD,5100299270,294
United Kingdom Atomic energy Authority,United Kingdom Atomic energy Authority,27/01/2014,PLANT & EQUIPMENT,FUSION,J & J PNEUMATICS LTD,5100299110,1824.09
United Kingdom Atomic energy Authority,United Kingdom Atomic energy Authority,17/02/2014,MATERIALS & SPARES,FUSION,JAC TOOLS LTD,5100299846,53.34
United Kingdom Atomic energy Authority,United Kingdom Atomic energy Authority,17/02/2014,MATERIALS & SPARES,FUSION,JEWSON LTD,5100299832,45.32
United Kingdom Atomic energy Authority,United Kingdom Atomic energy Authority,05/02/2014,PLANT & EQUIPMENT,FUSION,JOHNSON MATTHEY PLC,5100299438,1023.61
United Kingdom Atomic energy Authority,United Kingdom Atomic energy Authority,03/02/2014,PLANT & EQUIPMENT,FUSION,KAISER & KRAFT LTD,5100299250,261
United Kingdom Atomic energy Authority,United Kingdom Atomic energy Authority,03/02/2014,LEGAL FEES,SUPPORT SERVICES,KEOGHS,5100299389,400
United Kingdom Atomic energy Authority,United Kingdom Atomic energy Authority,03/02/2014,LEGAL FEES,SUPPORT SERVICES,KEOGHS,5100299391,192
United Kingdom Atomic energy Authority,United Kingdom Atomic energy Authority,03/02/2014,LEGAL FEES,SUPPORT SERVICES,KEOGHS,5100299392,736
United Kingdom Atomic energy Authority,United Kingdom Atomic energy Authority,19/02/2014,LEGAL FEES,SUPPORT SERVICES,KEOGHS,5100300238,352
United Kingdom Atomic energy Authority,United Kingdom Atomic energy Authority,19/02/2014,LEGAL FEES,SUPPORT SERVICES,KEOGHS,5100300241,704
United Kingdom Atomic energy Authority,United Kingdom Atomic energy Authority,03/02/2014,LEGAL FEES,SUPPORT SERVICES,KEOGHS,5100299387,208
United Kingdom Atomic energy Authority,United Kingdom Atomic energy Authority,03/02/2014,LEGAL FEES,SUPPORT SERVICES,KEOGHS,5100299388,192
United Kingdom Atomic energy Authority,United Kingdom Atomic energy Authority,19/02/2014,LEGAL FEES,SUPPORT SERVICES,KEOGHS,5100300234,288
United Kingdom Atomic energy Authority,United Kingdom Atomic energy Authority,19/02/2014,LEGAL FEES,SUPPORT SERVICES,KEOGHS,5100300235,320
United Kingdom Atomic energy Authority,United Kingdom Atomic energy Authority,19/02/2014,LEGAL FEES,SUPPORT SERVICES,KEOGHS,5100300236,304
United Kingdom Atomic energy Authority,United Kingdom Atomic energy Authority,19/02/2014,LEGAL FEES,SUPPORT SERVICES,KEOGHS,5100300237,752
United Kingdom Atomic energy Authority,United Kingdom Atomic energy Authority,19/02/2014,LEGAL FEES,SUPPORT SERVICES,KEOGHS,5100300239,544
United Kingdom Atomic energy Authority,United Kingdom Atomic energy Authority,19/02/2014,LEGAL FEES,SUPPORT SERVICES,KEOGHS,5100300240,768
United Kingdom Atomic energy Authority,United Kingdom Atomic energy Authority,19/02/2014,LEGAL FEES,SUPPORT SERVICES,KEOGHS,5100300269,1296
United Kingdom Atomic energy Authority,United Kingdom Atomic energy Authority,29/01/2014,MATERIALS & SPARES,FUSION,KEY INDUSTRIAL EQUIPMENT LTD,5100298906,268.85
United Kingdom Atomic energy Authority,United Kingdom Atomic energy Authority,03/02/2014,MATERIALS & SPARES,FUSION,KEY INDUSTRIAL EQUIPMENT LTD,5100299364,141.25
United Kingdom Atomic energy Authority,United Kingdom Atomic energy Authority,07/02/2014,PLANT & EQUIPMENT,FUSION,KGW-Isotherm,5100299793,-1057.11
United Kingdom Atomic energy Authority,United Kingdom Atomic energy Authority,07/02/2014,PLANT & EQUIPMENT,FUSION,KGW-Isotherm,5100299794,1057.11
United Kingdom Atomic energy Authority,United Kingdom Atomic energy Authority,12/02/2014,BUILDING REPAIRS,PROPERTY,KNOWLES & SONS (OXFORD) LTD,5100299502,50785.41
United Kingdom Atomic energy Authority,United Kingdom Atomic energy Authority,12/02/2014,BUILDING REPAIRS,PROPERTY,KNOWLES & SONS (OXFORD) LTD,5100299906,-737.49
United Kingdom Atomic energy Authority,United Kingdom Atomic energy Authority,17/02/2014,BUILDING REPAIRS,PROPERTY,KNOWLES & SONS (OXFORD) LTD,5100299834,23974.43
United Kingdom Atomic energy Authority,United Kingdom Atomic energy Authority,17/02/2014,RENT OF VEHICLE & EQUIPMENT,FUSION,KONSTRUCTA SITE ACCOMMODATION HIRE,5100299893,402
United Kingdom Atomic energy Authority,United Kingdom Atomic energy Authority,12/02/2014,MATERIALS & SPARES,FUSION,K-TECH SUPPLIES LTD,5100299614,21.35
United Kingdom Atomic energy Authority,United Kingdom Atomic energy Authority,05/02/2014,EFDA SECONDEE CONTRACT,FUSION,KTH The Royal Insitute of Technology,5100299379,15129.11
United Kingdom Atomic energy Authority,United Kingdom Atomic energy Authority,03/02/2014,MATERIALS & SPARES,FUSION,KURT J LESKER,5100299436,112.06
United Kingdom Atomic energy Authority,United Kingdom Atomic energy Authority,10/02/2014,MATERIALS & SPARES,FUSION,KURT J LESKER,5100299485,328.5
United Kingdom Atomic energy Authority,United Kingdom Atomic energy Authority,10/02/2014,PLANT & EQUIPMENT,PROPERTY,L J & C A Cannings,5100299611,960
United Kingdom Atomic energy Authority,United Kingdom Atomic energy Authority,10/02/2014,PLANT & EQUIPMENT,PROPERTY,L J & C A Cannings,5100299612,1056
United Kingdom Atomic energy Authority,United Kingdom Atomic energy Authority,17/02/2014,PLANT & EQUIPMENT,PROPERTY,L J & C A Cannings,5100300025,450
United Kingdom Atomic energy Authority,United Kingdom Atomic energy Authority,03/02/2014,MATERIALS & SPARES,FUSION,LAMBDA PHOTOMETRICS LTD,5100299206,343
United Kingdom Atomic energy Authority,United Kingdom Atomic energy Authority,10/02/2014,MATERIALS & SPARES,FUSION,LAMBDA PHOTOMETRICS LTD,5100299488,488
United Kingdom Atomic energy Authority,United Kingdom Atomic energy Authority,03/02/2014,MATERIALS & SPARES,FUSION,Lasermet Ltd,5100299203,163
United Kingdom Atomic energy Authority,United Kingdom Atomic energy Authority,27/01/2014,PLANT & EQUIPMENT,FUSION,LC AUTOMATION LTD,5100298903,710
United Kingdom Atomic energy Authority,United Kingdom Atomic energy Authority,10/02/2014,CAR HIRE,SUPPORT SERVICES,LEASEDRIVE VELO,5100299732,36.44
United Kingdom Atomic energy Authority,United Kingdom Atomic energy Authority,17/02/2014,CAR HIRE,FUSION,LEASEDRIVE VELO,5100299957,102.51
United Kingdom Atomic energy Authority,United Kingdom Atomic energy Authority,17/02/2014,CAR HIRE,FUSION,LEASEDRIVE VELO,5100299959,104.84
United Kingdom Atomic energy Authority,United Kingdom Atomic energy Authority,17/02/2014,CAR HIRE,FUSION,LEASEDRIVE VELO,5100299915,51.94
United Kingdom Atomic energy Authority,United Kingdom Atomic energy Authority,29/01/2014,CAR HIRE,FUSION,LEASEDRIVE VELO,5100299117,72.88
United Kingdom Atomic energy Authority,United Kingdom Atomic energy Authority,27/01/2014,CAR HIRE,FUSION,LEASEDRIVE VELO,5100299116,34.39
United Kingdom Atomic energy Authority,United Kingdom Atomic energy Authority,27/01/2014,CAR HIRE,FUSION,LEASEDRIVE VELO,5100299142,72.88
United Kingdom Atomic energy Authority,United Kingdom Atomic energy Authority,03/02/2014,CAR HIRE,FUSION,LEASEDRIVE VELO,5100299373,36.44
United Kingdom Atomic energy Authority,United Kingdom Atomic energy Authority,03/02/2014,CAR HIRE,FUSION,LEASEDRIVE VELO,5100299437,56.1
United Kingdom Atomic energy Authority,United Kingdom Atomic energy Authority,10/02/2014,CAR HIRE,FUSION,LEASEDRIVE VELO,5100299727,36.44
United Kingdom Atomic energy Authority,United Kingdom Atomic energy Authority,10/02/2014,CAR HIRE,FUSION,LEASEDRIVE VELO,5100299731,89.17
United Kingdom Atomic energy Authority,United Kingdom Atomic energy Authority,10/02/2014,CAR HIRE,FUSION,LEASEDRIVE VELO,5100299734,126.26
United Kingdom Atomic energy Authority,United Kingdom Atomic energy Authority,10/02/2014,CAR HIRE,FUSION,LEASEDRIVE VELO,5100299782,30
United Kingdom Atomic energy Authority,United Kingdom Atomic energy Authority,17/02/2014,CAR HIRE,FUSION,LEASEDRIVE VELO,5100299836,39.88
United Kingdom Atomic energy Authority,United Kingdom Atomic energy Authority,17/02/2014,CAR HIRE,FUSION,LEASEDRIVE VELO,5100299838,79.59
United Kingdom Atomic energy Authority,United Kingdom Atomic energy Authority,17/02/2014,CAR HIRE,FUSION,LEASEDRIVE VELO,5100299914,137.77
United Kingdom Atomic energy Authority,United Kingdom Atomic energy Authority,17/02/2014,CAR HIRE,FUSION,LEASEDRIVE VELO,5100299954,82.56
United Kingdom Atomic energy Authority,United Kingdom Atomic energy Authority,17/02/2014,CAR HIRE,FUSION,LEASEDRIVE VELO,5100299958,36.44
United Kingdom Atomic energy Authority,United Kingdom Atomic energy Authority,17/02/2014,CAR HIRE,FUSION,LEASEDRIVE VELO,5100299960,34.39
United Kingdom Atomic energy Authority,United Kingdom Atomic energy Authority,12/02/2014,CAR HIRE,FUSION,LEASEDRIVE VELO,5100299372,91.72
United Kingdom Atomic energy Authority,United Kingdom Atomic energy Authority,17/02/2014,CAR HIRE,FUSION,LEASEDRIVE VELO,5100299837,29.55
United Kingdom Atomic energy Authority,United Kingdom Atomic energy Authority,03/02/2014,CAR HIRE,FUSION,LEASEDRIVE VELO,5100299374,70.78
United Kingdom Atomic energy Authority,United Kingdom Atomic energy Authority,12/02/2014,CAR HIRE,FUSION,LEASEDRIVE VELO,5100299729,96.12
United Kingdom Atomic energy Authority,United Kingdom Atomic energy Authority,27/01/2014,CAR HIRE,FUSION,LEASEDRIVE VELO,5100298098,18.61
United Kingdom Atomic energy Authority,United Kingdom Atomic energy Authority,05/02/2014,CAR HIRE,FUSION,LEASEDRIVE VELO,5100299370,125.16
United Kingdom Atomic energy Authority,United Kingdom Atomic energy Authority,17/02/2014,CAR HIRE,FUSION,LEASEDRIVE VELO,5100299955,121.78
United Kingdom Atomic energy Authority,United Kingdom Atomic energy Authority,17/02/2014,CAR HIRE,FUSION,LEASEDRIVE VELO,5100300003,11.17
United Kingdom Atomic energy Authority,United Kingdom Atomic energy Authority,27/01/2014,PLANT & EQUIPMENT,FUSION,LEMO UK LTD,5100299139,575.5
United Kingdom Atomic energy Authority,United Kingdom Atomic energy Authority,13/02/2014,CHARITABLE DONATIONS,SUPPORT SERVICES,Leukaemia and Lymphoma Research,1900059448, 150.00
United Kingdom Atomic energy Authority,United Kingdom Atomic energy Authority,03/02/2014,COMPUTER REPAIRS,FUSION,LEVANT UPS LTD,5100298642,4350
United Kingdom Atomic energy Authority,United Kingdom Atomic energy Authority,10/02/2014,PLANT & EQUIPMENT,FUSION,LINDAB LTD,5100299501,48.5
United Kingdom Atomic energy Authority,United Kingdom Atomic energy Authority,27/01/2014,IT EQUIPMENT NON CAPITAL,FUSION,LINDY ELECTRONICS LTD,5100299036,303.95
United Kingdom Atomic energy Authority,United Kingdom Atomic energy Authority,10/02/2014,PROFESSIONAL SERVICES,SUPPORT SERVICES,LOGICA CMG UK LTD,5100299517,2307.85
United Kingdom Atomic energy Authority,United Kingdom Atomic energy Authority,27/01/2014,BUILDING REPAIRS,PROPERTY,LORNE STEWART PLC,5100298792,962.83
United Kingdom Atomic energy Authority,United Kingdom Atomic energy Authority,03/02/2014,MATERIALS & SPARES,FUSION,LPKF LASER AND ELECTRONICS LTD,5100299087,800
United Kingdom Atomic energy Authority,United Kingdom Atomic energy Authority,10/02/2014,MATERIALS & SPARES,FUSION,LPKF LASER AND ELECTRONICS LTD,5100299554,628.9
United Kingdom Atomic energy Authority,United Kingdom Atomic energy Authority,18/02/2014,OTHER EXTERNAL COSTS,FUSION,LTN MB,1900059477," 2,372.98"
United Kingdom Atomic energy Authority,United Kingdom Atomic energy Authority,10/02/2014,PLANT SPARES,FUSION,Lymington Precision Engineers Co Ltd,5100299487,620
United Kingdom Atomic energy Authority,United Kingdom Atomic energy Authority,27/01/2014,STATIONERY,SUPPORT SERVICES,LYRECO UK LIMITED,5100299055,109.19
United Kingdom Atomic energy Authority,United Kingdom Atomic energy Authority,27/01/2014,STATIONERY,FUSION,LYRECO UK LIMITED,5100299050,340.48
United Kingdom Atomic energy Authority,United Kingdom Atomic energy Authority,27/01/2014,STATIONERY,FUSION,LYRECO UK LIMITED,5100299051,25.34
United Kingdom Atomic energy Authority,United Kingdom Atomic energy Authority,27/01/2014,STATIONERY,FUSION,LYRECO UK LIMITED,5100299052,28.5
United Kingdom Atomic energy Authority,United Kingdom Atomic energy Authority,27/01/2014,STATIONERY,FUSION,LYRECO UK LIMITED,5100299053,59.94
United Kingdom Atomic energy Authority,United Kingdom Atomic energy Authority,27/01/2014,STATIONERY,FUSION,LYRECO UK LIMITED,5100299054,579.68
United Kingdom Atomic energy Authority,United Kingdom Atomic energy Authority,03/02/2014,STATIONERY,FUSION,LYRECO UK LIMITED,5100299239,-10.48
United Kingdom Atomic energy Authority,United Kingdom Atomic energy Authority,03/02/2014,STATIONERY,FUSION,LYRECO UK LIMITED,5100299325,174.4
United Kingdom Atomic energy Authority,United Kingdom Atomic energy Authority,03/02/2014,STATIONERY,FUSION,LYRECO UK LIMITED,5100299326,38.9
United Kingdom Atomic energy Authority,United Kingdom Atomic energy Authority,03/02/2014,STATIONERY,FUSION,LYRECO UK LIMITED,5100299327,190.98
United Kingdom Atomic energy Authority,United Kingdom Atomic energy Authority,03/02/2014,STATIONERY,FUSION,LYRECO UK LIMITED,5100299328,508.98
United Kingdom Atomic energy Authority,United Kingdom Atomic energy Authority,10/02/2014,STATIONERY,FUSION,LYRECO UK LIMITED,5100299650,152.36
United Kingdom Atomic energy Authority,United Kingdom Atomic energy Authority,10/02/2014,STATIONERY,FUSION,LYRECO UK LIMITED,5100299651,586.94
United Kingdom Atomic energy Authority,United Kingdom Atomic energy Authority,17/02/2014,STATIONERY,FUSION,LYRECO UK LIMITED,5100299916,2.78
United Kingdom Atomic energy Authority,United Kingdom Atomic energy Authority,17/02/2014,STATIONERY,FUSION,LYRECO UK LIMITED,5100299917,182.57
United Kingdom Atomic energy Authority,United Kingdom Atomic energy Authority,27/01/2014,IT EQUIPMENT NON CAPITAL,FUSION,MAAINTECH,5100298922,3919
United Kingdom Atomic energy Authority,United Kingdom Atomic energy Authority,27/01/2014,IT EQUIPMENT NON CAPITAL,FUSION,MAAINTECH,5100298923,3486
United Kingdom Atomic energy Authority,United Kingdom Atomic energy Authority,29/01/2014,IT EQUIPMENT NON CAPITAL,FUSION,MAAINTECH,5100299154,4163.98
United Kingdom Atomic energy Authority,United Kingdom Atomic energy Authority,10/02/2014,IT EQUIPMENT NON CAPITAL,FUSION,MAAINTECH,5100299643,2260
United Kingdom Atomic energy Authority,United Kingdom Atomic energy Authority,17/02/2014,IT EQUIPMENT NON CAPITAL,FUSION,MAAINTECH,5100299913,2045
United Kingdom Atomic energy Authority,United Kingdom Atomic energy Authority,03/02/2014,PLANT & EQUIPMENT,FUSION,Machine Building Systems Ltd,1900059397," 1,136.83"
United Kingdom Atomic energy Authority,United Kingdom Atomic energy Authority,18/02/2014,OTHER EXTERNAL COSTS,FUSION,Machine Mart Ltd,1900059476, 244.97
United Kingdom Atomic energy Authority,United Kingdom Atomic energy Authority,10/02/2014,PROFESSIONAL SERVICES,FUSION,MACHINING TECHNOLOGY (MACH-TECH),5100299532,2368.32
United Kingdom Atomic energy Authority,United Kingdom Atomic energy Authority,27/01/2014,PLANT & EQUIPMENT,FUSION,MANCHESTER METROLOGY,5100298890,100
United Kingdom Atomic energy Authority,United Kingdom Atomic energy Authority,27/01/2014,PROFESSIONAL SERVICES,FUSION,MARCHAM SCIENTIFIC LTD,5100298933,3250
United Kingdom Atomic energy Authority,United Kingdom Atomic energy Authority,27/01/2014,MATERIALS & SPARES,FUSION,MARK 5,5100299081,190.19
United Kingdom Atomic energy Authority,United Kingdom Atomic energy Authority,12/02/2014,MATERIALS & SPARES,FUSION,MARK 5,5100299429,474
United Kingdom Atomic energy Authority,United Kingdom Atomic energy Authority,03/02/2014,MATERIALS & SPARES,FUSION,MARK 5,5100299430,94.5
United Kingdom Atomic energy Authority,United Kingdom Atomic energy Authority,27/01/2014,MATERIALS & SPARES,FUSION,MASTERGRAVE (BEDFORD) LTD,5100298943,66
United Kingdom Atomic energy Authority,United Kingdom Atomic energy Authority,19/02/2014,PROFESSIONAL SERVICES,FUSION,MATERIAL MEASUREMENTS LTD.,5100299508,168
United Kingdom Atomic energy Authority,United Kingdom Atomic energy Authority,19/02/2014,PROFESSIONAL SERVICES,FUSION,MATERIAL MEASUREMENTS LTD.,5100299510,1132.8
United Kingdom Atomic energy Authority,United Kingdom Atomic energy Authority,19/02/2014,PROFESSIONAL SERVICES,FUSION,MATERIAL MEASUREMENTS LTD.,5100299865,336
United Kingdom Atomic energy Authority,United Kingdom Atomic energy Authority,19/02/2014,PROFESSIONAL SERVICES,FUSION,MATERIAL MEASUREMENTS LTD.,5100299866,201.3
United Kingdom Atomic energy Authority,United Kingdom Atomic energy Authority,10/02/2014,DESIGN & CONSTRUCTION,FUSION,MAYFLEX UK LTD,5100299800,106.39
United Kingdom Atomic energy Authority,United Kingdom Atomic energy Authority,03/02/2014,PROFESSIONAL SERVICES,FUSION,MCBAINS COOPER,5100299224,341.76
United Kingdom Atomic energy Authority,United Kingdom Atomic energy Authority,03/02/2014,PROFESSIONAL SERVICES,PROPERTY,MCBAINS COOPER,5100299221,897.12
United Kingdom Atomic energy Authority,United Kingdom Atomic energy Authority,27/01/2014,PLANT & EQUIPMENT,FUSION,MCDC VACCUUM LTD,5100298957,124
United Kingdom Atomic energy Authority,United Kingdom Atomic energy Authority,03/02/2014,PLANT & EQUIPMENT,FUSION,MCDC VACCUUM LTD,5100299265,110
United Kingdom Atomic energy Authority,United Kingdom Atomic energy Authority,10/02/2014,PLANT & EQUIPMENT,FUSION,MCDC VACCUUM LTD,5100299587,3620
United Kingdom Atomic energy Authority,United Kingdom Atomic energy Authority,29/01/2014,PLANT & EQUIPMENT,FUSION,Mecelec Services Ltd,1900059391," 4,569.60"
United Kingdom Atomic energy Authority,United Kingdom Atomic energy Authority,10/02/2014,MATERIALS & SPARES,FUSION,MECHANICAL CLEANSING SERVICES LIMITED,5100299615,237.2
United Kingdom Atomic energy Authority,United Kingdom Atomic energy Authority,13/02/2014,CHARITABLE DONATIONS,SUPPORT SERVICES,Medical Detection Dogs,1900059447, 150.00
United Kingdom Atomic energy Authority,United Kingdom Atomic energy Authority,18/02/2014,OTHER EXTERNAL COSTS,FUSION,Mercateo,1900059474, 129.00
United Kingdom Atomic energy Authority,United Kingdom Atomic energy Authority,20/02/2014,BUSINESS ENTERTAINMENT,SUPPORT SERVICES,Merton Enterprises Ltd,1900059484, 810.24
United Kingdom Atomic energy Authority,United Kingdom Atomic energy Authority,27/01/2014,MATERIALS & SPARES,FUSION,METALFAST (A DIVISION OF,5100296925,2256
United Kingdom Atomic energy Authority,United Kingdom Atomic energy Authority,27/01/2014,MATERIALS & SPARES,FUSION,METALFAST (A DIVISION OF,5100299085,-2162
United Kingdom Atomic energy Authority,United Kingdom Atomic energy Authority,29/01/2014,MATERIALS & SPARES,FUSION,METALFAST (A DIVISION OF,5100299153,158
United Kingdom Atomic energy Authority,United Kingdom Atomic energy Authority,27/01/2014,MATERIALS & SPARES,FUSION,METALFAST (A DIVISION OF,5100298979,212.5
United Kingdom Atomic energy Authority,United Kingdom Atomic energy Authority,17/02/2014,MATERIALS & SPARES,FUSION,METALWEB,5100299690,718.4
United Kingdom Atomic energy Authority,United Kingdom Atomic energy Authority,17/02/2014,MATERIALS & SPARES,FUSION,METALWEB,5100299998,866.5
United Kingdom Atomic energy Authority,United Kingdom Atomic energy Authority,10/02/2014,PROFESSIONAL SERVICES,FUSION,METRO ENGINEERING AND PLATING WORKS,5100299627,100
United Kingdom Atomic energy Authority,United Kingdom Atomic energy Authority,07/02/2014,TRAINING COURSE FEES,PROPERTY,MEUC Ltd,1900059428, 225.00
United Kingdom Atomic energy Authority,United Kingdom Atomic energy Authority,27/01/2014,PLANT & EQUIPMENT,FUSION,MF HYDRAULICS LTD,5100299115,200
United Kingdom Atomic energy Authority,United Kingdom Atomic energy Authority,30/01/2014,OTHER STAFF COSTS,FUSION,Midcounties Co-operative Ltd,1900059395," 7,244.38"
United Kingdom Atomic energy Authority,United Kingdom Atomic energy Authority,17/02/2014,OTHER EXTERNAL COSTS,FUSION,Milkround Online,1900059472," 1,020.00"
United Kingdom Atomic energy Authority,United Kingdom Atomic energy Authority,10/02/2014,PLANT & EQUIPMENT,FUSION,MILLHILL TOOLS LTD,5100299737,168.38
United Kingdom Atomic energy Authority,United Kingdom Atomic energy Authority,10/02/2014,PLANT & EQUIPMENT,FUSION,MILLHILL TOOLS LTD,5100299738,55.87
United Kingdom Atomic energy Authority,United Kingdom Atomic energy Authority,10/02/2014,PLANT & EQUIPMENT,FUSION,MILLHILL TOOLS LTD,5100299741,18.44
United Kingdom Atomic energy Authority,United Kingdom Atomic energy Authority,10/02/2014,PLANT & EQUIPMENT,FUSION,MILLHILL TOOLS LTD,5100299742,72.35
United Kingdom Atomic energy Authority,United Kingdom Atomic energy Authority,10/02/2014,PLANT & EQUIPMENT,FUSION,MILLHILL TOOLS LTD,5100299748,22.4
United Kingdom Atomic energy Authority,United Kingdom Atomic energy Authority,10/02/2014,PLANT & EQUIPMENT,FUSION,MILLHILL TOOLS LTD,5100299743,55.6
United Kingdom Atomic energy Authority,United Kingdom Atomic energy Authority,10/02/2014,PLANT & EQUIPMENT,FUSION,MILLHILL TOOLS LTD,5100299744,20
United Kingdom Atomic energy Authority,United Kingdom Atomic energy Authority,10/02/2014,PLANT & EQUIPMENT,FUSION,MILLHILL TOOLS LTD,5100299745,24.95
United Kingdom Atomic energy Authority,United Kingdom Atomic energy Authority,10/02/2014,PLANT & EQUIPMENT,FUSION,MILLHILL TOOLS LTD,5100299746,37.76
United Kingdom Atomic energy Authority,United Kingdom Atomic energy Authority,10/02/2014,PLANT & EQUIPMENT,FUSION,MILLHILL TOOLS LTD,5100299747,118.62
United Kingdom Atomic energy Authority,United Kingdom Atomic energy Authority,10/02/2014,HIRED STAFF,FUSION,MORSON INTERNATIONAL,5100299582,-158.41
United Kingdom Atomic energy Authority,United Kingdom Atomic energy Authority,10/02/2014,HIRED STAFF,FUSION,MORSON INTERNATIONAL,5100299585,297940.29
United Kingdom Atomic energy Authority,United Kingdom Atomic energy Authority,27/01/2014,MATERIALS & SPARES,FUSION,MOUSER ELECTRONICS,5100298881,92.88
United Kingdom Atomic energy Authority,United Kingdom Atomic energy Authority,27/01/2014,MATERIALS & SPARES,FUSION,MOUSER ELECTRONICS,5100299086,18.76
United Kingdom Atomic energy Authority,United Kingdom Atomic energy Authority,03/02/2014,PLANT & EQUIPMENT,FUSION,MSC/J & L INDUSTRIAL SUPPLY,5100299227,28.5
United Kingdom Atomic energy Authority,United Kingdom Atomic energy Authority,10/02/2014,PLANT & EQUIPMENT,FUSION,MSC/J & L INDUSTRIAL SUPPLY,5100299537,61.93
United Kingdom Atomic energy Authority,United Kingdom Atomic energy Authority,05/02/2014,PLANT & EQUIPMENT,FUSION,MSC/J & L INDUSTRIAL SUPPLY,5100299225,64.94
United Kingdom Atomic energy Authority,United Kingdom Atomic energy Authority,03/02/2014,ELECTRICITY,FUSION,NATIONAL GRID TRANSCO,5100299289,3298.73
United Kingdom Atomic energy Authority,United Kingdom Atomic energy Authority,17/02/2014,PLANT & EQUIPMENT,FUSION,NEW PIG LTD,5100299835,320.03
United Kingdom Atomic energy Authority,United Kingdom Atomic energy Authority,03/02/2014,MATERIALS & SPARES,FUSION,NEWBURY ELECTRONICS,5100299323,250.1
United Kingdom Atomic energy Authority,United Kingdom Atomic energy Authority,10/02/2014,MATERIALS & SPARES,FUSION,NEWCASTLE OPTICAL ENGINEERING LTD,5100299504,385.25
United Kingdom Atomic energy Authority,United Kingdom Atomic energy Authority,10/02/2014,MATERIALS & SPARES,FUSION,NEWEY & EYRE LTD,5100299559,865.72
United Kingdom Atomic energy Authority,United Kingdom Atomic energy Authority,17/02/2014,MATERIALS & SPARES,FUSION,NEWEY & EYRE LTD,5100299963,21
United Kingdom Atomic energy Authority,United Kingdom Atomic energy Authority,03/02/2014,PLANT & EQUIPMENT,FUSION,NEWPORT SPECTRA-PHYSICS LTD,5100299324,347.4
United Kingdom Atomic energy Authority,United Kingdom Atomic energy Authority,27/01/2014,MATERIALS & SPARES,FUSION,NIGHTSEARCHER LTD,5100298904,234.38
United Kingdom Atomic energy Authority,United Kingdom Atomic energy Authority,27/01/2014,MATERIALS & SPARES,FUSION,NIGHTSEARCHER LTD,5100299058,257.14
United Kingdom Atomic energy Authority,United Kingdom Atomic energy Authority,05/02/2014,REPAIRS & MAINTENANCE,FUSION,NORTHERN DRIVES & CONTROLS,5100298871,244.53
United Kingdom Atomic energy Authority,United Kingdom Atomic energy Authority,05/02/2014,REPAIRS & MAINTENANCE,FUSION,NORTHERN DRIVES & CONTROLS,5100298872,244.53
United Kingdom Atomic energy Authority,United Kingdom Atomic energy Authority,05/02/2014,REPAIRS & MAINTENANCE,FUSION,NORTHERN DRIVES & CONTROLS,5100298873,244.53
United Kingdom Atomic energy Authority,United Kingdom Atomic energy Authority,05/02/2014,REPAIRS & MAINTENANCE,FUSION,NORTHERN DRIVES & CONTROLS,5100298874,244.53
United Kingdom Atomic energy Authority,United Kingdom Atomic energy Authority,05/02/2014,REPAIRS & MAINTENANCE,FUSION,NORTHERN DRIVES & CONTROLS,5100298875,244.53
United Kingdom Atomic energy Authority,United Kingdom Atomic energy Authority,27/01/2014,PROFESSIONAL SERVICES,PROPERTY,NOVUS ENVIRONMENTAL,5100294809,110
United Kingdom Atomic energy Authority,United Kingdom Atomic energy Authority,03/02/2014,PLANT & EQUIPMENT,FUSION,NU START ELECTONICS,5100299398,1862.59
United Kingdom Atomic energy Authority,United Kingdom Atomic energy Authority,10/02/2014,PROFESSIONAL SERVICES,FUSION,NUCLEAR MANAGEMENT CONSULTANCE LTD,5100299579,800
United Kingdom Atomic energy Authority,United Kingdom Atomic energy Authority,17/02/2014,HEALTH PHYSICS,FUSION,NUVIA LIMITED,5100299410,21547.49
United Kingdom Atomic energy Authority,United Kingdom Atomic energy Authority,17/02/2014,HEALTH PHYSICS,SUPPORT SERVICES,NUVIA LIMITED,5100299367,1015.5
United Kingdom Atomic energy Authority,United Kingdom Atomic energy Authority,03/02/2014,MATERIALS & SPARES,FUSION,NXPower (UK) Ltd t/as Cyberpower PC,5100299361,1970
United Kingdom Atomic energy Authority,United Kingdom Atomic energy Authority,03/02/2014,MATERIALS & SPARES,FUSION,NXPower (UK) Ltd t/as Cyberpower PC,5100299362,4456
United Kingdom Atomic energy Authority,United Kingdom Atomic energy Authority,19/02/2014,PLANT & EQUIPMENT,FUSION,OCEAN OPTICS B.V,5100299301,2778
United Kingdom Atomic energy Authority,United Kingdom Atomic energy Authority,05/02/2014,PLANT & EQUIPMENT,FUSION,OCEAN OPTICS B.V,5100299380,237.6
United Kingdom Atomic energy Authority,United Kingdom Atomic energy Authority,17/02/2014,MATERIALS & SPARES,FUSION,OCF COMPUTING,5100299938,771.4
United Kingdom Atomic energy Authority,United Kingdom Atomic energy Authority,05/02/2014,CLEANING,FUSION,OCS CLEANING & SUPPORT SERVICES,5100299010,3283.87
United Kingdom Atomic energy Authority,United Kingdom Atomic energy Authority,05/02/2014,CLEANING,PROPERTY,OCS CLEANING & SUPPORT SERVICES,5100299007,2135.9
United Kingdom Atomic energy Authority,United Kingdom Atomic energy Authority,27/01/2014,CLEANING,PROPERTY,OCS CLEANING & SUPPORT SERVICES,5100299008,27785.25
United Kingdom Atomic energy Authority,United Kingdom Atomic energy Authority,05/02/2014,CLEANING,PROPERTY,OCS CLEANING & SUPPORT SERVICES,5100299012,1157.87
United Kingdom Atomic energy Authority,United Kingdom Atomic energy Authority,03/02/2014,CLEANING,PROPERTY,OCS CLEANING & SUPPORT SERVICES,5100299013,1410.85
United Kingdom Atomic energy Authority,United Kingdom Atomic energy Authority,05/02/2014,CLEANING,PROPERTY,OCS CLEANING & SUPPORT SERVICES,5100299174,1812.09
United Kingdom Atomic energy Authority,United Kingdom Atomic energy Authority,29/01/2014,CLEANING,PROPERTY,OCS CLEANING & SUPPORT SERVICES,5100299175,27785.25
United Kingdom Atomic energy Authority,United Kingdom Atomic energy Authority,03/02/2014,CLEANING,PROPERTY,OCS CLEANING & SUPPORT SERVICES,5100299416,4514.64
United Kingdom Atomic energy Authority,United Kingdom Atomic energy Authority,03/02/2014,MATERIALS & SPARES,FUSION,OERLIKON LEYBOLD VACUUM UK LTD,5100297445,17254.01
United Kingdom Atomic energy Authority,United Kingdom Atomic energy Authority,03/02/2014,MATERIALS & SPARES,FUSION,OERLIKON LEYBOLD VACUUM UK LTD,5100299414,-560.69
United Kingdom Atomic energy Authority,United Kingdom Atomic energy Authority,27/01/2014,MATERIALS & SPARES,FUSION,OERLIKON LEYBOLD VACUUM UK LTD,5100298882,34000
United Kingdom Atomic energy Authority,United Kingdom Atomic energy Authority,10/02/2014,MATERIALS & SPARES,FUSION,OERLIKON LEYBOLD VACUUM UK LTD,5100299478,140
United Kingdom Atomic energy Authority,United Kingdom Atomic energy Authority,10/02/2014,MATERIALS & SPARES,FUSION,OERLIKON LEYBOLD VACUUM UK LTD,5100298754,3145.47
United Kingdom Atomic energy Authority,United Kingdom Atomic energy Authority,21/02/2014,MATERIALS & SPARES,FUSION,OERLIKON LEYBOLD VACUUM UK LTD,5100300433,-3145.47
United Kingdom Atomic energy Authority,United Kingdom Atomic energy Authority,21/02/2014,MATERIALS & SPARES,FUSION,OERLIKON LEYBOLD VACUUM UK LTD,5100300435,3145.47
United Kingdom Atomic energy Authority,United Kingdom Atomic energy Authority,03/02/2014,PROFESSIONAL SERVICES,FUSION,OHES ENNVIRONMENTAL LTD,5100299208,3490
United Kingdom Atomic energy Authority,United Kingdom Atomic energy Authority,06/02/2014,PRINTING & GRAPHICS,FUSION,Optical Vision Ltd,1900059426, 81.00
United Kingdom Atomic energy Authority,United Kingdom Atomic energy Authority,12/02/2014,OTHER REGUL COST,FUSION,OTHER REGUL COST,1900059437," 1,697.50"
United Kingdom Atomic energy Authority,United Kingdom Atomic energy Authority,10/02/2014,MATERIALS & SPARES,FUSION,OUTOKUMPU STAINLESS,5100298879,20431
United Kingdom Atomic energy Authority,United Kingdom Atomic energy Authority,10/02/2014,MATERIALS & SPARES,FUSION,OUTOKUMPU STAINLESS,5100299724,484.84
United Kingdom Atomic energy Authority,United Kingdom Atomic energy Authority,27/01/2014,MATERIALS & SPARES,FUSION,OXFORD BOLTS & BEARINGS,5100298901,59.36
United Kingdom Atomic energy Authority,United Kingdom Atomic energy Authority,03/02/2014,MATERIALS & SPARES,FUSION,OXFORD BOLTS & BEARINGS,5100299426,86.5
United Kingdom Atomic energy Authority,United Kingdom Atomic energy Authority,10/02/2014,MATERIALS & SPARES,FUSION,OXFORD BOLTS & BEARINGS,5100299735,185.2
United Kingdom Atomic energy Authority,United Kingdom Atomic energy Authority,12/02/2014,MATERIALS & SPARES,FUSION,OXFORD BOLTS & BEARINGS,5100299785,399.16
United Kingdom Atomic energy Authority,United Kingdom Atomic energy Authority,05/02/2014,MATERIALS & SPARES,FUSION,OXFORD BOLTS & BEARINGS,5100299435,26.82
United Kingdom Atomic energy Authority,United Kingdom Atomic energy Authority,03/02/2014,MATERIALS & SPARES,FUSION,OXFORD BOLTS & BEARINGS,5100299431,19
United Kingdom Atomic energy Authority,United Kingdom Atomic energy Authority,27/01/2014,MATERIALS & SPARES,FUSION,OXFORD BOLTS & BEARINGS,5100299113,59.87
United Kingdom Atomic energy Authority,United Kingdom Atomic energy Authority,03/02/2014,MATERIALS & SPARES,FUSION,OXFORD BOLTS & BEARINGS,5100299184,127.46
United Kingdom Atomic energy Authority,United Kingdom Atomic energy Authority,03/02/2014,MATERIALS & SPARES,FUSION,OXFORD BOLTS & BEARINGS,5100299428,186.55
United Kingdom Atomic energy Authority,United Kingdom Atomic energy Authority,10/02/2014,MATERIALS & SPARES,FUSION,OXFORD BOLTS & BEARINGS,5100299736,207.32
United Kingdom Atomic energy Authority,United Kingdom Atomic energy Authority,05/02/2014,MATERIALS & SPARES,FUSION,OXFORD BOLTS & BEARINGS,5100299432,37
United Kingdom Atomic energy Authority,United Kingdom Atomic energy Authority,05/02/2014,TRAINING COURSE FEES,FUSION,Oxford Creativity Ltd.,1900059407," 1,525.00"
United Kingdom Atomic energy Authority,United Kingdom Atomic energy Authority,27/01/2014,MATERIALS & SPARES,FUSION,OXFORD POWERSHOP LTD,5100299140,250
United Kingdom Atomic energy Authority,United Kingdom Atomic energy Authority,03/02/2014,TRAINING COURSE FEES,FUSION,OXFORD UNIVERSITY,5100298757,1172.88
United Kingdom Atomic energy Authority,United Kingdom Atomic energy Authority,31/01/2014,TRAINING COURSE FEES,FUSION,OXFORD UNIVERSITY,5100299421,-284.7
United Kingdom Atomic energy Authority,United Kingdom Atomic energy Authority,31/01/2014,TRAINING COURSE FEES,FUSION,OXFORD UNIVERSITY,5100299422,284.7
United Kingdom Atomic energy Authority,United Kingdom Atomic energy Authority,10/02/2014,CONSUMABLES,FUSION,Oxfordshire County Council,5100299619,1697.5
United Kingdom Atomic energy Authority,United Kingdom Atomic energy Authority,27/01/2014,PLANT & EQUIPMENT,FUSION,PATRICO LTD,5100299035,4025.05
United Kingdom Atomic energy Authority,United Kingdom Atomic energy Authority,27/01/2014,STATIONERY,FUSION,PDC PRESENTATION SOLUTIONS LTD,5100299045,32
United Kingdom Atomic energy Authority,United Kingdom Atomic energy Authority,27/01/2014,STATIONERY,FUSION,PDC PRESENTATION SOLUTIONS LTD,5100299047,418.94
United Kingdom Atomic energy Authority,United Kingdom Atomic energy Authority,27/01/2014,TRAINING COURSE FEES,FUSION,PEARCEMAYFIELD ASSOCIATED LTD,5100296809,3600
United Kingdom Atomic energy Authority,United Kingdom Atomic energy Authority,03/02/2014,MATERIALS & SPARES,FUSION,PEI-GENISIS UK LTD,5100299413,4968.95
United Kingdom Atomic energy Authority,United Kingdom Atomic energy Authority,27/01/2014,MATERIALS & SPARES,FUSION,PEI-GENISIS UK LTD,5100298962,968.95
United Kingdom Atomic energy Authority,United Kingdom Atomic energy Authority,27/01/2014,HIRED STAFF,FUSION,PELICAN SOFTWARE LTD,5100299038,5033.65
United Kingdom Atomic energy Authority,United Kingdom Atomic energy Authority,27/01/2014,HIRED STAFF,FUSION,PELICAN SOFTWARE LTD,5100299043,4493.45
United Kingdom Atomic energy Authority,United Kingdom Atomic energy Authority,27/01/2014,HIRED STAFF,FUSION,PELICAN SOFTWARE LTD,5100299044,4672.8
United Kingdom Atomic energy Authority,United Kingdom Atomic energy Authority,27/01/2014,HIRED STAFF,FUSION,PELICAN SOFTWARE LTD,5100299066,-64.75
United Kingdom Atomic energy Authority,United Kingdom Atomic energy Authority,17/02/2014,HIRED STAFF,FUSION,PELICAN SOFTWARE LTD,5100299881,54.72
United Kingdom Atomic energy Authority,United Kingdom Atomic energy Authority,19/02/2014,HIRED STAFF,FUSION,PELICAN SOFTWARE LTD,5100299994,5289.24
United Kingdom Atomic energy Authority,United Kingdom Atomic energy Authority,17/02/2014,PROFESSIONAL SERVICES,FUSION,PERKIN ELMER LAS UK LTD,5100299839,485.16
United Kingdom Atomic energy Authority,United Kingdom Atomic energy Authority,27/01/2014,PLANT & EQUIPMENT,FUSION,PFEIFFER VACUUM UK,5100299148,1023.53
United Kingdom Atomic energy Authority,United Kingdom Atomic energy Authority,27/01/2014,PLANT & EQUIPMENT,FUSION,PFEIFFER VACUUM UK,5100299060,178.3
United Kingdom Atomic energy Authority,United Kingdom Atomic energy Authority,03/02/2014,PLANT & EQUIPMENT,FUSION,PFEIFFER VACUUM UK,5100299317,344
United Kingdom Atomic energy Authority,United Kingdom Atomic energy Authority,03/02/2014,PLANT & EQUIPMENT,FUSION,PFEIFFER VACUUM UK,5100299319,99.25
United Kingdom Atomic energy Authority,United Kingdom Atomic energy Authority,17/02/2014,PLANT & EQUIPMENT,FUSION,PHS GROUP PLC,5100299202,34.13
United Kingdom Atomic energy Authority,United Kingdom Atomic energy Authority,10/02/2014,DESIGN & CONSTRUCTION,FUSION,PIPAWAY ENGINEERING LTD,5100299786,80
United Kingdom Atomic energy Authority,United Kingdom Atomic energy Authority,27/01/2014,PLANT SPARES,FUSION,PLANSEE METALS LTD,5100299150,43.75
United Kingdom Atomic energy Authority,United Kingdom Atomic energy Authority,27/01/2014,PLANT SPARES,FUSION,PLANSEE METALS LTD,5100299151,0.24
United Kingdom Atomic energy Authority,United Kingdom Atomic energy Authority,06/02/2014,PRINTING & GRAPHICS,FUSION,Platform 39 Ltd,1900059422, 149.00
United Kingdom Atomic energy Authority,United Kingdom Atomic energy Authority,27/01/2014,MATERIALS & SPARES,FUSION,PMD (UK) LTD,5100299062,123
United Kingdom Atomic energy Authority,United Kingdom Atomic energy Authority,03/02/2014,MATERIALS & SPARES,FUSION,PMD (UK) LTD,5100299193,15
United Kingdom Atomic energy Authority,United Kingdom Atomic energy Authority,03/02/2014,MATERIALS & SPARES,FUSION,PMD (UK) LTD,5100299194,20
United Kingdom Atomic energy Authority,United Kingdom Atomic energy Authority,03/02/2014,MATERIALS & SPARES,FUSION,PMD (UK) LTD,5100299198,8
United Kingdom Atomic energy Authority,United Kingdom Atomic energy Authority,03/02/2014,MATERIALS & SPARES,FUSION,PMD (UK) LTD,5100299199,24
United Kingdom Atomic energy Authority,United Kingdom Atomic energy Authority,10/02/2014,MATERIALS & SPARES,FUSION,PMD (UK) LTD,5100299493,280
United Kingdom Atomic energy Authority,United Kingdom Atomic energy Authority,10/02/2014,MATERIALS & SPARES,FUSION,PMD (UK) LTD,5100299494,38
United Kingdom Atomic energy Authority,United Kingdom Atomic energy Authority,10/02/2014,MATERIALS & SPARES,FUSION,PMD (UK) LTD,5100299495,57.9
United Kingdom Atomic energy Authority,United Kingdom Atomic energy Authority,03/02/2014,PLANT & EQUIPMENT,FUSION,POWELL & CO,5100299188,169.15
United Kingdom Atomic energy Authority,United Kingdom Atomic energy Authority,27/01/2014,PLANT & EQUIPMENT,FUSION,POWELL & CO,5100298905,232.05
United Kingdom Atomic energy Authority,United Kingdom Atomic energy Authority,10/02/2014,PLANT & EQUIPMENT,FUSION,PRECISION TOOLS,5100299481,183.85
United Kingdom Atomic energy Authority,United Kingdom Atomic energy Authority,12/02/2014,CONSUMABLES,FUSION,PRECISION WATERJET LTD,5100299489,268.95
United Kingdom Atomic energy Authority,United Kingdom Atomic energy Authority,06/02/2014,PLANT & EQUIPMENT,FUSION,Premier Compressor Services Ltd,1900059427," 4,680.00"
United Kingdom Atomic energy Authority,United Kingdom Atomic energy Authority,10/02/2014,STATIONERY,FUSION,PREMIER PAPER GROUP LTD,5100299621,106.92
United Kingdom Atomic energy Authority,United Kingdom Atomic energy Authority,10/02/2014,STATIONERY,FUSION,PREMIER PAPER GROUP LTD,5100299622,-52.41
United Kingdom Atomic energy Authority,United Kingdom Atomic energy Authority,10/02/2014,STATIONERY,FUSION,PREMIER PAPER GROUP LTD,5100299722,302.61
United Kingdom Atomic energy Authority,United Kingdom Atomic energy Authority,06/02/2014,SITE INFRASTRUCTURE,FUSION,Pristine Engraving Ltd,1900059415," 1,056.00"
United Kingdom Atomic energy Authority,United Kingdom Atomic energy Authority,10/02/2014,IT EQUIPMENT NON CAPITAL,FUSION,Probrand Limited,5100299726,144.34
United Kingdom Atomic energy Authority,United Kingdom Atomic energy Authority,10/02/2014,PLANT & EQUIPMENT,FUSION,PULSE POWER AND MEASUREMENT LTD,5100299739,1791.35
United Kingdom Atomic energy Authority,United Kingdom Atomic energy Authority,09/02/2014,BOOKS & PUBLICATIONS,FUSION,PURCHASE CARDS,100713904,552.62
United Kingdom Atomic energy Authority,United Kingdom Atomic energy Authority,09/02/2014,MATERIALS & SPARES,FUSION,PURCHASE CARDS,100713920,"3,757.27"
United Kingdom Atomic energy Authority,United Kingdom Atomic energy Authority,09/02/2014,PLANT & EQUIPMENT,FUSION,PURCHASE CARDS,100713915,"1,269.46"
United Kingdom Atomic energy Authority,United Kingdom Atomic energy Authority,09/02/2014,OTHER EXTERNAL COSTS,FUSION,PURCHASE CARDS,100713907,934.00
United Kingdom Atomic energy Authority,United Kingdom Atomic energy Authority,09/02/2014,OTHER EXTERNAL COSTS,FUSION,PURCHASE CARDS,100713907,"1,005.84"
United Kingdom Atomic energy Authority,United Kingdom Atomic energy Authority,17/02/2014,MATERIALS & SPARES,FUSION,Pycko Scientific Limited,5100300001,15037
United Kingdom Atomic energy Authority,United Kingdom Atomic energy Authority,12/02/2014,PLANT & EQUIPMENT,FUSION,QUARTZELEC LTD,5100299788,57924.7
United Kingdom Atomic energy Authority,United Kingdom Atomic energy Authority,10/02/2014,PLANT & EQUIPMENT,FUSION,QUARTZELEC LTD,5100299831,48304.75
United Kingdom Atomic energy Authority,United Kingdom Atomic energy Authority,27/01/2014,PROFESSIONAL SERVICES,FUSION,RADIOCARBON DATING,5100298876,2000.6
United Kingdom Atomic energy Authority,United Kingdom Atomic energy Authority,27/01/2014,PROFESSIONAL SERVICES,FUSION,RADIOCARBON DATING,5100298885,15816.88
United Kingdom Atomic energy Authority,United Kingdom Atomic energy Authority,27/01/2014,PROFESSIONAL SERVICES,FUSION,RADIOCARBON DATING,5100298886,-5533.4
United Kingdom Atomic energy Authority,United Kingdom Atomic energy Authority,29/01/2014,PLANT & EQUIPMENT,FUSION,REECE SAFETY PRODUCTS LTD,5100298551,203.4
United Kingdom Atomic energy Authority,United Kingdom Atomic energy Authority,10/02/2014,SECURITY & EMERGENCY,PROPERTY,RELIANCE SECURITY GROUP PLC,5100299535,-1500
United Kingdom Atomic energy Authority,United Kingdom Atomic energy Authority,10/02/2014,SECURITY & EMERGENCY,PROPERTY,RELIANCE SECURITY GROUP PLC,5100299723,93476.67
United Kingdom Atomic energy Authority,United Kingdom Atomic energy Authority,10/02/2014,SECURITY & EMERGENCY,PROPERTY,RELIANCE SECURITY GROUP PLC,5100299721,8698.95
United Kingdom Atomic energy Authority,United Kingdom Atomic energy Authority,21/02/2014,MATERIALS & SPARES,FUSION,Repco Technology Ltd,1900059493," 1,145.58"
United Kingdom Atomic energy Authority,United Kingdom Atomic energy Authority,27/01/2014,MATERIALS & SPARES,FUSION,RITTAL,5100298878,105.78
United Kingdom Atomic energy Authority,United Kingdom Atomic energy Authority,17/02/2014,MATERIALS & SPARES,FUSION,RITTAL,5100299833,254.64
United Kingdom Atomic energy Authority,United Kingdom Atomic energy Authority,03/02/2014,PLANT SPARES,FUSION,ROSH ENGINEERING LTD,5100299191,1052
United Kingdom Atomic energy Authority,United Kingdom Atomic energy Authority,17/02/2014,INSPECTION SERVICES,FUSION,ROYAL & SUN ALLIANCE ENGINEERING LT,5100299149,1560.38
United Kingdom Atomic energy Authority,United Kingdom Atomic energy Authority,27/01/2014,MATERIALS & SPARES,SUPPORT SERVICES,RS COMPONENTS LTD,5100299088,140.05
United Kingdom Atomic energy Authority,United Kingdom Atomic energy Authority,03/02/2014,MATERIALS & SPARES,FUSION,RS COMPONENTS LTD,5100299273,68.38
United Kingdom Atomic energy Authority,United Kingdom Atomic energy Authority,03/02/2014,MATERIALS & SPARES,FUSION,RS COMPONENTS LTD,5100299450,205.66
United Kingdom Atomic energy Authority,United Kingdom Atomic energy Authority,10/02/2014,MATERIALS & SPARES,FUSION,RS COMPONENTS LTD,5100299687,193.82
United Kingdom Atomic energy Authority,United Kingdom Atomic energy Authority,17/02/2014,MATERIALS & SPARES,FUSION,RS COMPONENTS LTD,5100299976,302.77
United Kingdom Atomic energy Authority,United Kingdom Atomic energy Authority,03/02/2014,MATERIALS & SPARES,FUSION,RS COMPONENTS LTD,5100299230,219.1
United Kingdom Atomic energy Authority,United Kingdom Atomic energy Authority,03/02/2014,MATERIALS & SPARES,FUSION,RS COMPONENTS LTD,5100299213,307.11
United Kingdom Atomic energy Authority,United Kingdom Atomic energy Authority,03/02/2014,MATERIALS & SPARES,FUSION,RS COMPONENTS LTD,5100299275,39.48
United Kingdom Atomic energy Authority,United Kingdom Atomic energy Authority,03/02/2014,MATERIALS & SPARES,FUSION,RS COMPONENTS LTD,5100299282,423.44
United Kingdom Atomic energy Authority,United Kingdom Atomic energy Authority,10/02/2014,MATERIALS & SPARES,FUSION,RS COMPONENTS LTD,5100299595,48.6
United Kingdom Atomic energy Authority,United Kingdom Atomic energy Authority,10/02/2014,MATERIALS & SPARES,FUSION,RS COMPONENTS LTD,5100299667,105.81
United Kingdom Atomic energy Authority,United Kingdom Atomic energy Authority,17/02/2014,MATERIALS & SPARES,FUSION,RS COMPONENTS LTD,5100299978,19
United Kingdom Atomic energy Authority,United Kingdom Atomic energy Authority,27/01/2014,MATERIALS & SPARES,FUSION,RS COMPONENTS LTD,5100299103,65.69
United Kingdom Atomic energy Authority,United Kingdom Atomic energy Authority,03/02/2014,MATERIALS & SPARES,FUSION,RS COMPONENTS LTD,5100299226,367.82
United Kingdom Atomic energy Authority,United Kingdom Atomic energy Authority,03/02/2014,MATERIALS & SPARES,FUSION,RS COMPONENTS LTD,5100299242,22.29
United Kingdom Atomic energy Authority,United Kingdom Atomic energy Authority,03/02/2014,MATERIALS & SPARES,FUSION,RS COMPONENTS LTD,5100299283,7.23
United Kingdom Atomic energy Authority,United Kingdom Atomic energy Authority,03/02/2014,MATERIALS & SPARES,FUSION,RS COMPONENTS LTD,5100299441,7.51
United Kingdom Atomic energy Authority,United Kingdom Atomic energy Authority,03/02/2014,MATERIALS & SPARES,FUSION,RS COMPONENTS LTD,5100299442,984.23
United Kingdom Atomic energy Authority,United Kingdom Atomic energy Authority,10/02/2014,MATERIALS & SPARES,FUSION,RS COMPONENTS LTD,5100299580,39.86
United Kingdom Atomic energy Authority,United Kingdom Atomic energy Authority,19/02/2014,MATERIALS & SPARES,FUSION,RS COMPONENTS LTD,5100299625,174.48
United Kingdom Atomic energy Authority,United Kingdom Atomic energy Authority,10/02/2014,MATERIALS & SPARES,FUSION,RS COMPONENTS LTD,5100299670,459.7
United Kingdom Atomic energy Authority,United Kingdom Atomic energy Authority,17/02/2014,MATERIALS & SPARES,FUSION,RS COMPONENTS LTD,5100299974,44.44
United Kingdom Atomic energy Authority,United Kingdom Atomic energy Authority,27/01/2014,MATERIALS & SPARES,FUSION,RS COMPONENTS LTD,5100299093,415.27
United Kingdom Atomic energy Authority,United Kingdom Atomic energy Authority,03/02/2014,MATERIALS & SPARES,FUSION,RS COMPONENTS LTD,5100299280,157.54
United Kingdom Atomic energy Authority,United Kingdom Atomic energy Authority,17/02/2014,MATERIALS & SPARES,FUSION,RS COMPONENTS LTD,5100299669,284.22
United Kingdom Atomic energy Authority,United Kingdom Atomic energy Authority,27/01/2014,MATERIALS & SPARES,FUSION,RS COMPONENTS LTD,5100299089,333.85
United Kingdom Atomic energy Authority,United Kingdom Atomic energy Authority,27/01/2014,MATERIALS & SPARES,FUSION,RS COMPONENTS LTD,5100299095,50.82
United Kingdom Atomic energy Authority,United Kingdom Atomic energy Authority,05/02/2014,MATERIALS & SPARES,FUSION,RS COMPONENTS LTD,5100299446,181.78
United Kingdom Atomic energy Authority,United Kingdom Atomic energy Authority,10/02/2014,MATERIALS & SPARES,FUSION,RS COMPONENTS LTD,5100299685,17.56
United Kingdom Atomic energy Authority,United Kingdom Atomic energy Authority,17/02/2014,MATERIALS & SPARES,FUSION,RS COMPONENTS LTD,5100299969,49.35
United Kingdom Atomic energy Authority,United Kingdom Atomic energy Authority,10/02/2014,MATERIALS & SPARES,FUSION,RS COMPONENTS LTD,5100299660,341.86
United Kingdom Atomic energy Authority,United Kingdom Atomic energy Authority,10/02/2014,MATERIALS & SPARES,FUSION,RS COMPONENTS LTD,5100299663,305.87
United Kingdom Atomic energy Authority,United Kingdom Atomic energy Authority,10/02/2014,MATERIALS & SPARES,FUSION,RS COMPONENTS LTD,5100299668,46.74
United Kingdom Atomic energy Authority,United Kingdom Atomic energy Authority,10/02/2014,MATERIALS & SPARES,FUSION,RS COMPONENTS LTD,5100299680,12.97
United Kingdom Atomic energy Authority,United Kingdom Atomic energy Authority,17/02/2014,MATERIALS & SPARES,FUSION,RS COMPONENTS LTD,5100299971,207.72
United Kingdom Atomic energy Authority,United Kingdom Atomic energy Authority,27/01/2014,MATERIALS & SPARES,FUSION,RS COMPONENTS LTD,5100299107,302.35
United Kingdom Atomic energy Authority,United Kingdom Atomic energy Authority,03/02/2014,MATERIALS & SPARES,FUSION,RS COMPONENTS LTD,5100299214,55.74
United Kingdom Atomic energy Authority,United Kingdom Atomic energy Authority,10/02/2014,MATERIALS & SPARES,FUSION,RS COMPONENTS LTD,5100299605,117.39
United Kingdom Atomic energy Authority,United Kingdom Atomic energy Authority,27/01/2014,MATERIALS & SPARES,FUSION,RS COMPONENTS LTD,5100299090,36.29
United Kingdom Atomic energy Authority,United Kingdom Atomic energy Authority,27/01/2014,MATERIALS & SPARES,FUSION,RS COMPONENTS LTD,5100299101,458.01
United Kingdom Atomic energy Authority,United Kingdom Atomic energy Authority,03/02/2014,MATERIALS & SPARES,FUSION,RS COMPONENTS LTD,5100299217,101.67
United Kingdom Atomic energy Authority,United Kingdom Atomic energy Authority,03/02/2014,MATERIALS & SPARES,FUSION,RS COMPONENTS LTD,5100299274,37.34
United Kingdom Atomic energy Authority,United Kingdom Atomic energy Authority,03/02/2014,MATERIALS & SPARES,FUSION,RS COMPONENTS LTD,5100299277,41.97
United Kingdom Atomic energy Authority,United Kingdom Atomic energy Authority,10/02/2014,MATERIALS & SPARES,FUSION,RS COMPONENTS LTD,5100299597,132.41
United Kingdom Atomic energy Authority,United Kingdom Atomic energy Authority,10/02/2014,MATERIALS & SPARES,FUSION,RS COMPONENTS LTD,5100299659,284.03
United Kingdom Atomic energy Authority,United Kingdom Atomic energy Authority,10/02/2014,MATERIALS & SPARES,FUSION,RS COMPONENTS LTD,5100299674,26.05
United Kingdom Atomic energy Authority,United Kingdom Atomic energy Authority,03/02/2014,MATERIALS & SPARES,FUSION,RS COMPONENTS LTD,5100299276,38.84
United Kingdom Atomic energy Authority,United Kingdom Atomic energy Authority,03/02/2014,MATERIALS & SPARES,FUSION,RS COMPONENTS LTD,5100299279,91.4
United Kingdom Atomic energy Authority,United Kingdom Atomic energy Authority,10/02/2014,MATERIALS & SPARES,FUSION,RS COMPONENTS LTD,5100299606,214.44
United Kingdom Atomic energy Authority,United Kingdom Atomic energy Authority,27/01/2014,MATERIALS & SPARES,FUSION,RS COMPONENTS LTD,5100299104,65.13
United Kingdom Atomic energy Authority,United Kingdom Atomic energy Authority,27/01/2014,MATERIALS & SPARES,FUSION,RS COMPONENTS LTD,5100299106,106.08
United Kingdom Atomic energy Authority,United Kingdom Atomic energy Authority,03/02/2014,MATERIALS & SPARES,FUSION,RS COMPONENTS LTD,5100299222,58.92
United Kingdom Atomic energy Authority,United Kingdom Atomic energy Authority,03/02/2014,MATERIALS & SPARES,FUSION,RS COMPONENTS LTD,5100299271,32.2
United Kingdom Atomic energy Authority,United Kingdom Atomic energy Authority,10/02/2014,MATERIALS & SPARES,FUSION,RS COMPONENTS LTD,5100299586,38.4
United Kingdom Atomic energy Authority,United Kingdom Atomic energy Authority,10/02/2014,MATERIALS & SPARES,FUSION,RS COMPONENTS LTD,5100299601,13.66
United Kingdom Atomic energy Authority,United Kingdom Atomic energy Authority,10/02/2014,MATERIALS & SPARES,FUSION,RS COMPONENTS LTD,5100299604,21.18
United Kingdom Atomic energy Authority,United Kingdom Atomic energy Authority,10/02/2014,MATERIALS & SPARES,FUSION,RS COMPONENTS LTD,5100299607,79.98
United Kingdom Atomic energy Authority,United Kingdom Atomic energy Authority,10/02/2014,MATERIALS & SPARES,FUSION,RS COMPONENTS LTD,5100299655,9.81
United Kingdom Atomic energy Authority,United Kingdom Atomic energy Authority,10/02/2014,MATERIALS & SPARES,FUSION,RS COMPONENTS LTD,5100299682,19.29
United Kingdom Atomic energy Authority,United Kingdom Atomic energy Authority,17/02/2014,MATERIALS & SPARES,FUSION,RS COMPONENTS LTD,5100299977,24.15
United Kingdom Atomic energy Authority,United Kingdom Atomic energy Authority,03/02/2014,MATERIALS & SPARES,FUSION,RS COMPONENTS LTD,5100299445,74.08
United Kingdom Atomic energy Authority,United Kingdom Atomic energy Authority,03/02/2014,MATERIALS & SPARES,FUSION,RS COMPONENTS LTD,5100299447,222.51
United Kingdom Atomic energy Authority,United Kingdom Atomic energy Authority,03/02/2014,MATERIALS & SPARES,FUSION,RS COMPONENTS LTD,5100299448,1524.14
United Kingdom Atomic energy Authority,United Kingdom Atomic energy Authority,03/02/2014,MATERIALS & SPARES,FUSION,RS COMPONENTS LTD,5100299454,160.94
United Kingdom Atomic energy Authority,United Kingdom Atomic energy Authority,10/02/2014,MATERIALS & SPARES,FUSION,RS COMPONENTS LTD,5100299596,134.31
United Kingdom Atomic energy Authority,United Kingdom Atomic energy Authority,10/02/2014,MATERIALS & SPARES,FUSION,RS COMPONENTS LTD,5100299677,82.76
United Kingdom Atomic energy Authority,United Kingdom Atomic energy Authority,03/02/2014,MATERIALS & SPARES,FUSION,RS COMPONENTS LTD,5100299452,27.76
United Kingdom Atomic energy Authority,United Kingdom Atomic energy Authority,10/02/2014,MATERIALS & SPARES,FUSION,RS COMPONENTS LTD,5100299581,93.61
United Kingdom Atomic energy Authority,United Kingdom Atomic energy Authority,29/01/2014,MATERIALS & SPARES,FUSION,RS COMPONENTS LTD,5100296441,43.86
United Kingdom Atomic energy Authority,United Kingdom Atomic energy Authority,29/01/2014,MATERIALS & SPARES,FUSION,RS COMPONENTS LTD,5100298413,57.16
United Kingdom Atomic energy Authority,United Kingdom Atomic energy Authority,29/01/2014,MATERIALS & SPARES,FUSION,RS COMPONENTS LTD,5100299260,-43.86
United Kingdom Atomic energy Authority,United Kingdom Atomic energy Authority,10/02/2014,MATERIALS & SPARES,FUSION,RS COMPONENTS LTD,5100299600,55.05
United Kingdom Atomic energy Authority,United Kingdom Atomic energy Authority,10/02/2014,MATERIALS & SPARES,FUSION,RS COMPONENTS LTD,5100299679,551.83
United Kingdom Atomic energy Authority,United Kingdom Atomic energy Authority,17/02/2014,MATERIALS & SPARES,FUSION,RS COMPONENTS LTD,5100299972,71.31
United Kingdom Atomic energy Authority,United Kingdom Atomic energy Authority,17/02/2014,MATERIALS & SPARES,FUSION,RS COMPONENTS LTD,5100299975,108.9
United Kingdom Atomic energy Authority,United Kingdom Atomic energy Authority,03/02/2014,MATERIALS & SPARES,FUSION,RS COMPONENTS LTD,5100299223,98.6
United Kingdom Atomic energy Authority,United Kingdom Atomic energy Authority,03/02/2014,MATERIALS & SPARES,FUSION,RS COMPONENTS LTD,5100299278,75.45
United Kingdom Atomic energy Authority,United Kingdom Atomic energy Authority,03/02/2014,MATERIALS & SPARES,FUSION,RS COMPONENTS LTD,5100299284,18.65
United Kingdom Atomic energy Authority,United Kingdom Atomic energy Authority,03/02/2014,MATERIALS & SPARES,FUSION,RS COMPONENTS LTD,5100299449,435.77
United Kingdom Atomic energy Authority,United Kingdom Atomic energy Authority,10/02/2014,MATERIALS & SPARES,FUSION,RS COMPONENTS LTD,5100299603,68.56
United Kingdom Atomic energy Authority,United Kingdom Atomic energy Authority,10/02/2014,MATERIALS & SPARES,FUSION,RS COMPONENTS LTD,5100299656,128.58
United Kingdom Atomic energy Authority,United Kingdom Atomic energy Authority,10/02/2014,MATERIALS & SPARES,FUSION,RS COMPONENTS LTD,5100299661,78.6
United Kingdom Atomic energy Authority,United Kingdom Atomic energy Authority,10/02/2014,MATERIALS & SPARES,FUSION,RS COMPONENTS LTD,5100299666,76.56
United Kingdom Atomic energy Authority,United Kingdom Atomic energy Authority,27/01/2014,MATERIALS & SPARES,FUSION,RS COMPONENTS LTD,5100299099,95.07
United Kingdom Atomic energy Authority,United Kingdom Atomic energy Authority,27/01/2014,MATERIALS & SPARES,FUSION,RS COMPONENTS LTD,5100299102,82.16
United Kingdom Atomic energy Authority,United Kingdom Atomic energy Authority,03/02/2014,MATERIALS & SPARES,FUSION,RS COMPONENTS LTD,5100299229,72.74
United Kingdom Atomic energy Authority,United Kingdom Atomic energy Authority,05/02/2014,MATERIALS & SPARES,FUSION,RS COMPONENTS LTD,5100299281,47.67
United Kingdom Atomic energy Authority,United Kingdom Atomic energy Authority,05/02/2014,MATERIALS & SPARES,FUSION,RS COMPONENTS LTD,5100299443,505.21
United Kingdom Atomic energy Authority,United Kingdom Atomic energy Authority,03/02/2014,MATERIALS & SPARES,FUSION,RS COMPONENTS LTD,5100299444,84.83
United Kingdom Atomic energy Authority,United Kingdom Atomic energy Authority,05/02/2014,MATERIALS & SPARES,FUSION,RS COMPONENTS LTD,5100299453,53.13
United Kingdom Atomic energy Authority,United Kingdom Atomic energy Authority,10/02/2014,MATERIALS & SPARES,FUSION,RS COMPONENTS LTD,5100299593,78.04
United Kingdom Atomic energy Authority,United Kingdom Atomic energy Authority,03/02/2014,MATERIALS & SPARES,FUSION,RS COMPONENTS LTD,5100299228,10.08
United Kingdom Atomic energy Authority,United Kingdom Atomic energy Authority,03/02/2014,MATERIALS & SPARES,FUSION,RS COMPONENTS LTD,5100299212,88.24
United Kingdom Atomic energy Authority,United Kingdom Atomic energy Authority,03/02/2014,MATERIALS & SPARES,FUSION,RS COMPONENTS LTD,5100299219,46.12
United Kingdom Atomic energy Authority,United Kingdom Atomic energy Authority,03/02/2014,MATERIALS & SPARES,FUSION,RS COMPONENTS LTD,5100299220,293.73
United Kingdom Atomic energy Authority,United Kingdom Atomic energy Authority,03/02/2014,MATERIALS & SPARES,FUSION,RS COMPONENTS LTD,5100299272,17.28
United Kingdom Atomic energy Authority,United Kingdom Atomic energy Authority,03/02/2014,MATERIALS & SPARES,FUSION,RS COMPONENTS LTD,5100299462,502.77
United Kingdom Atomic energy Authority,United Kingdom Atomic energy Authority,10/02/2014,MATERIALS & SPARES,FUSION,RS COMPONENTS LTD,5100299583,152.98
United Kingdom Atomic energy Authority,United Kingdom Atomic energy Authority,10/02/2014,MATERIALS & SPARES,FUSION,RS COMPONENTS LTD,5100299584,28.71
United Kingdom Atomic energy Authority,United Kingdom Atomic energy Authority,10/02/2014,MATERIALS & SPARES,FUSION,RS COMPONENTS LTD,5100299673,759.44
United Kingdom Atomic energy Authority,United Kingdom Atomic energy Authority,10/02/2014,MATERIALS & SPARES,FUSION,RS COMPONENTS LTD,5100299684,93.54
United Kingdom Atomic energy Authority,United Kingdom Atomic energy Authority,03/02/2014,MATERIALS & SPARES,FUSION,RS COMPONENTS LTD,5100299285,196.76
United Kingdom Atomic energy Authority,United Kingdom Atomic energy Authority,03/02/2014,MATERIALS & SPARES,FUSION,RS COMPONENTS LTD,5100299451,13.56
United Kingdom Atomic energy Authority,United Kingdom Atomic energy Authority,27/01/2014,MATERIALS & SPARES,FUSION,RS COMPONENTS LTD,5100299092,8
United Kingdom Atomic energy Authority,United Kingdom Atomic energy Authority,17/02/2014,MATERIALS & SPARES,FUSION,RS COMPONENTS LTD,5100299973,58.1
United Kingdom Atomic energy Authority,United Kingdom Atomic energy Authority,27/01/2014,MATERIALS & SPARES,FUSION,RS COMPONENTS LTD,5100299098,580.06
United Kingdom Atomic energy Authority,United Kingdom Atomic energy Authority,10/02/2014,MATERIALS & SPARES,FUSION,RS COMPONENTS LTD,5100299602,154
United Kingdom Atomic energy Authority,United Kingdom Atomic energy Authority,29/01/2014,MATERIALS & SPARES,FUSION,RS COMPONENTS LTD,5100297777,34.51
United Kingdom Atomic energy Authority,United Kingdom Atomic energy Authority,27/01/2014,MATERIALS & SPARES,PROPERTY,RS COMPONENTS LTD,5100299091,26.88
United Kingdom Atomic energy Authority,United Kingdom Atomic energy Authority,17/02/2014,MATERIALS & SPARES,PROPERTY,RS COMPONENTS LTD,5100299970,17.28
United Kingdom Atomic energy Authority,United Kingdom Atomic energy Authority,29/01/2014,HIRED STAFF,FUSION,RULLION ENGINEERING PERSONNEL LTD,5100299298,767227.24
United Kingdom Atomic energy Authority,United Kingdom Atomic energy Authority,05/02/2014,MATERIALS & SPARES,FUSION,Safetykleen UK Limited,5100299424,343.42
United Kingdom Atomic energy Authority,United Kingdom Atomic energy Authority,10/02/2014,TRAINING COSTS,SUPPORT SERVICES,SCA TRAINING & CONSULTANCY SERVICES,5100299246,297
United Kingdom Atomic energy Authority,United Kingdom Atomic energy Authority,12/02/2014,TRAINING COSTS,SUPPORT SERVICES,SCA TRAINING & CONSULTANCY SERVICES,5100299544,190
United Kingdom Atomic energy Authority,United Kingdom Atomic energy Authority,10/02/2014,IT EQUIPMENT NON CAPITAL,FUSION,SCAN COMPUTERS INTERNATIONAL LTD,5100297757,1873.43
United Kingdom Atomic energy Authority,United Kingdom Atomic energy Authority,03/02/2014,IT EQUIPMENT NON CAPITAL,FUSION,SCAN COMPUTERS INTERNATIONAL LTD,5100299248,2728.21
United Kingdom Atomic energy Authority,United Kingdom Atomic energy Authority,10/02/2014,IT EQUIPMENT NON CAPITAL,FUSION,SCAN COMPUTERS INTERNATIONAL LTD,5100299696,1575.16
United Kingdom Atomic energy Authority,United Kingdom Atomic energy Authority,27/01/2014,IT EQUIPMENT NON CAPITAL,FUSION,SCAN COMPUTERS INTERNATIONAL LTD,5100298956,470.04
United Kingdom Atomic energy Authority,United Kingdom Atomic energy Authority,05/02/2014,IT EQUIPMENT NON CAPITAL,FUSION,SCANNING & DATA SOLUTIONS LTD,5100299306,1830.58
United Kingdom Atomic energy Authority,United Kingdom Atomic energy Authority,03/02/2014,MATERIALS & SPARES,FUSION,SCHROFF UK LTD,5100299322,175.7
United Kingdom Atomic energy Authority,United Kingdom Atomic energy Authority,27/01/2014,MATERIALS & SPARES,FUSION,SCHROFF UK LTD,5100298958,343.24
United Kingdom Atomic energy Authority,United Kingdom Atomic energy Authority,10/02/2014,MATERIALS & SPARES,FUSION,SCHROFF UK LTD,5100299652,26.9
United Kingdom Atomic energy Authority,United Kingdom Atomic energy Authority,03/02/2014,MATERIALS & SPARES,FUSION,SCHROFF UK LTD,5100299369,185.47
United Kingdom Atomic energy Authority,United Kingdom Atomic energy Authority,13/02/2014,SOFTWARE - NON-CAP,FUSION,Science and Technology Facilities Council,1900059443, 331.52
United Kingdom Atomic energy Authority,United Kingdom Atomic energy Authority,27/01/2014,PROFESSIONAL SERVICES,FUSION,SCIENTIFIC MANUFACTURING,5100296598,3775.2
United Kingdom Atomic energy Authority,United Kingdom Atomic energy Authority,27/01/2014,PROFESSIONAL SERVICES,FUSION,SCIENTIFIC MANUFACTURING,5100297733,469.8
United Kingdom Atomic energy Authority,United Kingdom Atomic energy Authority,10/02/2014,PROFESSIONAL SERVICES,FUSION,SCIENTIFIC MANUFACTURING,5100299125,3132
United Kingdom Atomic energy Authority,United Kingdom Atomic energy Authority,27/01/2014,PROFESSIONAL SERVICES,FUSION,SCIENTIFIC MANUFACTURING,5100299126,1279.5
United Kingdom Atomic energy Authority,United Kingdom Atomic energy Authority,27/01/2014,PROFESSIONAL SERVICES,FUSION,SCIENTIFIC MANUFACTURING,5100299155,198
United Kingdom Atomic energy Authority,United Kingdom Atomic energy Authority,10/02/2014,PROFESSIONAL SERVICES,FUSION,SCIENTIFIC MANUFACTURING,5100299290,1354
United Kingdom Atomic energy Authority,United Kingdom Atomic energy Authority,03/02/2014,PROFESSIONAL SERVICES,FUSION,SCIENTIFICS LTD,5100299015,228
United Kingdom Atomic energy Authority,United Kingdom Atomic energy Authority,27/01/2014,PROFESSIONAL SERVICES,FUSION,SCIENTIFICS LTD,5100298312,6210
United Kingdom Atomic energy Authority,United Kingdom Atomic energy Authority,12/02/2014,PROFESSIONAL SERVICES,FUSION,SCIENTIFICS LTD,5100299383,270
United Kingdom Atomic energy Authority,United Kingdom Atomic energy Authority,05/02/2014,PROFESSIONAL SERVICES,FUSION,SCIENTIFICS LTD,5100299475,900
United Kingdom Atomic energy Authority,United Kingdom Atomic energy Authority,12/02/2014,PROFESSIONAL SERVICES,FUSION,SCIENTIFICS LTD,5100299572,270
United Kingdom Atomic energy Authority,United Kingdom Atomic energy Authority,10/02/2014,PROFESSIONAL SERVICES,FUSION,SCIENTIFICS LTD,5100299538,1260.5
United Kingdom Atomic energy Authority,United Kingdom Atomic energy Authority,27/01/2014,PROFESSIONAL SERVICES,FUSION,SCIENTIFICS LTD,5100298897,93
United Kingdom Atomic energy Authority,United Kingdom Atomic energy Authority,03/02/2014,SITE SUPPORT SERVICES,FUSION,SCION ESTATES,5100299418,194
United Kingdom Atomic energy Authority,United Kingdom Atomic energy Authority,03/02/2014,SITE SUPPORT SERVICES,PROPERTY,SCION ESTATES,5100299417,310.4
United Kingdom Atomic energy Authority,United Kingdom Atomic energy Authority,03/02/2014,SITE SUPPORT SERVICES,PROPERTY,SCION ESTATES,5100299420,310.4
United Kingdom Atomic energy Authority,United Kingdom Atomic energy Authority,17/02/2014,SITE SUPPORT SERVICES,PROPERTY,SCION ESTATES,5100300030,4155
United Kingdom Atomic energy Authority,United Kingdom Atomic energy Authority,27/01/2014,MATERIALS & SPARES,FUSION,SCREWFIX DIRECT LTD,5100298959,186.21
United Kingdom Atomic energy Authority,United Kingdom Atomic energy Authority,03/02/2014,MATERIALS & SPARES,FUSION,SCREWFIX DIRECT LTD,5100299463,141.66
United Kingdom Atomic energy Authority,United Kingdom Atomic energy Authority,17/02/2014,MATERIALS & SPARES,FUSION,SCREWFIX DIRECT LTD,5100299888,19.16
United Kingdom Atomic energy Authority,United Kingdom Atomic energy Authority,17/02/2014,MATERIALS & SPARES,FUSION,SCREWFIX DIRECT LTD,5100299889,26.59
United Kingdom Atomic energy Authority,United Kingdom Atomic energy Authority,03/02/2014,MATERIALS & SPARES,FUSION,SCREWFIX DIRECT LTD,5100299464,39.57
United Kingdom Atomic energy Authority,United Kingdom Atomic energy Authority,05/02/2014,MATERIALS & SPARES,FUSION,SCREWFIX DIRECT LTD,5100299465,77.9
United Kingdom Atomic energy Authority,United Kingdom Atomic energy Authority,27/01/2014,MATERIALS & SPARES,FUSION,SCREWFIX DIRECT LTD,5100297360,654.76
United Kingdom Atomic energy Authority,United Kingdom Atomic energy Authority,27/01/2014,MATERIALS & SPARES,FUSION,SCREWFIX DIRECT LTD,5100298960,258.32
United Kingdom Atomic energy Authority,United Kingdom Atomic energy Authority,27/01/2014,MATERIALS & SPARES,FUSION,SCREWFIX DIRECT LTD,5100298961,83.33
United Kingdom Atomic energy Authority,United Kingdom Atomic energy Authority,27/01/2014,MATERIALS & SPARES,FUSION,SCREWFIX DIRECT LTD,5100299037,-262.88
United Kingdom Atomic energy Authority,United Kingdom Atomic energy Authority,17/02/2014,MATERIALS & SPARES,FUSION,SCREWFIX DIRECT LTD,5100299887,127.98
United Kingdom Atomic energy Authority,United Kingdom Atomic energy Authority,03/02/2014,SOFTWARE,FUSION,SDC SYSTEMS LIMITED,5100299237,7122
United Kingdom Atomic energy Authority,United Kingdom Atomic energy Authority,10/02/2014,CONSUMABLES,FUSION,SEAWARD ELECTRONIC LTD,5100299695,42.1
United Kingdom Atomic energy Authority,United Kingdom Atomic energy Authority,10/02/2014,MATERIALS & SPARES,FUSION,SEETRU LTD,5100299377,80.81
